Workbook

Sheet Budget
H2: Power Budget Spreadsheet
B3: Steps
B4: 1.Select loads (click Add/Delete/Edit/Archive to add devices, if needed) | H4: 3.Enter Minimum Average Temperature | N4: 5.Enter Sun Hours for area
B5: 2.Adjust Program Intervals (scan and communications intervals) | H5: 4.Enter Desired Backup and Battery Size (auto selection optional) | N5: 6.Size Solar panel (auto selection optional)
B7: LOADS
B8: Select Devices
E9: Program Interval | H9: Lowest AveTemp | J9: Storage Reserve | L9: Charging Source
E10: Scan | F10: Comms | H10: Min | J10: Battery | K10: Desired | L10: Equiv. | M10: Solar
E11: Interval | F11: Interval | H11: Average | J11: Size | K11: Backup | L11: Sun | M11: Panel
E12: 38 | F12: 30 | H12: 6 | J12: 5 | K12: 5 | L12: Hours | M12: 9
E13: =LOOKUP(E12,Calculations!A35:A84,Calculations!E35:E84) -> 10 | F13: =Calculations!L34 -> 1 | H13: =Calculations!P34 -> -2 | J13: =LOOKUP(J12,Batteries!$A$2:$A$101,Batteries!$B$2:$B$101) -> 400 Ah | K13: =Calculations!M34 -> 30 | L13: =Calculations!R34 -> 0.7 | M13: =LOOKUP($M$12,SolarPanels!$A$2:$A$101,SolarPanels!$B$2:$B$101) -> 45 Watt
H14: 28 | J14: =LOOKUP(J12,Batteries!$A$2:$A$101,Batteries!$C$2:$C$101) -> 400 | L14: 23 | M14: =LOOKUP($M$12,SolarPanels!$A$2:$A$101,SolarPanels!$E$2:$E$101)*(Calculations!L2+4.75) -> 45
E15: Seconds | F15: 3 | H15: 2 | K15: 4 | L15: 1
H16: =J14*Calculations!P37 -> 321.4252101 | J16: =Defaults!L24 -> 121.1691949 | K16: =Calculations!S34 -> 79.58092243 | M16: =Calculations!M8 -> 81.9172022
L17: =$K$20/$K$13 -> 2.652697414 | M17: =IF(Display!$B$5=1,Calculations!$B$892/Calculations!$B$2,(Budget!$L$13*Calculations!$J$6)/Calculations!$B$2) -> 0.5267139961 | N17: =$M$17+$L$17 -> 3.17941141
J18: Estimated battery amp hours corrected for temperature: | K18: =H16 -> 321.4252101 | L18: Amp Hours | M18: Daily Load
J19: Minimum estimated battery amperage required for system: | K19: =ROUNDUP(J16/Calculations!Y7,0) -> 151 | L19: Amp Hours | M19: =Calculations!B2 -> 3.231178531 | N19: Amp Hours
J20: Estimated backup with selected battery: | K20: =Calculations!$S$34 -> 79.58092243 | L20: =IF($K$15=1,"Seconds",IF($K$15=2,"Minutes",IF($K$15=3,"Hours",IF($K$15=4,"Days",IF($K$15=5,"Weeks","Months"))))) -> Days | M20: Minimum Daily Solar
J21: Estimated solar panel wattage requirement for system: | K21: =M16 -> 81.9172022 | L21: Watts | M21: =IF(Display!$B$5=1,Calculations!$B$894,Calculations!$B$3) -> 1.7 - 14.2 | N21: Amp Hours
B24: System Total: | C24: =Calculations!L28*1000 -> 112.193699 | D24: mAmps | O24: Hint: Increase Solar Panel size | R24: Hint: Larger battery or
O25: or decrease loads or try slower | R25: smaller load or try slower
O26: Scan or Comms Interval | R26: Scan or Comms interval
H31: Depth of Discharge
H32: =Calculations!K89 -> 0.0125658257 | I32: Day 1 | T32: =M19*Calculations!L2 -> 42.81311554
H33: =Calculations!K90 -> 0.02513165139 | I33: 2
H34: =Calculations!K91 -> 0.03769747709 | I34: 3
H35: =Calculations!K92 -> 0.05026330278 | I35: 4
H36: =Calculations!K93 -> 0.06282912848 | I36: 5
H37: =Calculations!K94 -> 0.07539495418 | I37: 6
H38: =Calculations!K95 -> 0.08796077987 | I38: 7
H39: =Calculations!K96 -> 0.1005266056 | I39: 8
H40: =Calculations!K97 -> 0.1130924313 | I40: 9
H41: =Calculations!K98 -> 0.125658257 | I41: 10
H42: =Calculations!K99 -> 0.1382240827 | I42: 11
H43: =Calculations!K100 -> 0.1507899084 | I43: 12
H44: =Calculations!K101 -> 0.1633557341 | I44: 13
H45: =Calculations!K102 -> 0.1759215597 | I45: 14
F112: Sunshine Hours per day

Sheet Locations
B1: Peak Sun Hours | N1: Temperature | AA1: Location Box Options
A2: Place | B2: January | C2: February | D2: March | E2: April | F2: May | G2: June | H2: July | I2: August | J2: September | K2: October | L2: November | M2: December | N2: January | O2: February | P2: March | Q2: April | R2: May | S2: June | T2: July | U2: August | V2: September | W2: October | X2: November | Y2: December | AA2: Add New
A3: Atitlan Guatemala | B3: 5.31 | C3: 5.76 | D3: 6.07 | E3: 6.03 | F3: 5.55 | G3: 5.31 | H3: 5.55 | I3: 5.28 | J3: 4.7 | K3: 4.8 | L3: 5 | M3: 5.12 | N3: 22.3 | O3: 23.4 | P3: 24.3 | Q3: 24.8 | R3: 24.2 | S3: 23.6 | T3: 23.6 | U3: 23.6 | V3: 23.1 | W3: 22.9 | X3: 22.8 | Y3: 22.3 | AA3: Edit
A4: Barrow, Alaska | B4: 0 | C4: 0.21 | D4: 1.34 | E4: 3.41 | F4: 5.51 | G4: 6.96 | H4: 6.13 | I4: 3.7 | J4: 1.89 | K4: 0.53 | L4: 0.02 | M4: 0 | N4: -24.4 | O4: -24.1 | P4: -20.9 | Q4: -13.1 | R4: -3.94 | S4: 2.95 | T4: 5.57 | U4: 3.97 | V4: -0.45 | W4: -9.86 | X4: -19.7 | Y4: -23.3 | AA4: Delete
A5: Cartagena, Colombia | B5: 5.8 | C5: 6.25 | D5: 6.5 | E5: 6.26 | F5: 5.64 | G5: 5.67 | H5: 5.85 | I5: 5.85 | J5: 5.28 | K5: 4.88 | L5: 4.93 | M5: 5.22 | N5: 26.81 | O5: 27.43 | P5: 27.74 | Q5: 26.8 | R5: 26.46 | S5: 26.65 | T5: 26.51 | U5: 26.42 | V5: 26.07 | W5: 25.93 | X5: 25.99 | Y5: 25.98
A6: CENT | B6: 0.95 | C6: 1.6 | D6: 2.44 | E6: 3.55 | F6: 4.53 | G6: 5.5 | H6: 6.52 | I6: 5.42 | J6: 3.92 | K6: 2.2 | L6: 1.03 | M6: 0.71 | N6: -1.03 | O6: -1.33 | P6: -0.83 | Q6: 0.23 | R6: 3.69 | S6: 6.41 | T6: 10.53 | U6: 10.46 | V6: 8.53 | W6: 4.06 | X6: 1.43 | Y6: -1.39
A7: Columbus Ohio | B7: 1.81 | C7: 2.54 | D7: 3.45 | E7: 4.59 | F7: 5 | G7: 5.83 | H7: 5.76 | I7: 5.09 | J7: 4.38 | K7: 3.26 | L7: 2 | M7: 1.56 | N7: -1.14 | O7: 0.71 | P7: 4.79 | Q7: 11.2 | R7: 16.8 | S7: 21.7 | T7: 23.6 | U7: 22.7 | V7: 19 | W7: 13.1 | X7: 6.97 | Y7: 0.87
A8: Durango Colorado | B8: 2.71 | C8: 3.48 | D8: 4.67 | E8: 5.54 | F8: 6.65 | G8: 7.45 | H8: 6.71 | I8: 5.87 | J8: 5.26 | K8: 4.04 | L8: 2.89 | M8: 2.49 | N8: -7.07 | O8: -4.57 | P8: -0.32 | Q8: 4.55 | R8: 10.2 | S8: 15.5 | T8: 18.1 | U8: 16.4 | V8: 12.2 | W8: 5.72 | X8: -1.8 | Y8: -6.81
A9: Escalante Utah | B9: 2.72 | C9: 3.54 | D9: 4.91 | E9: 6.02 | F9: 6.91 | G9: 7.46 | H9: 6.57 | I9: 5.8 | J9: 5.22 | K9: 4.09 | L9: 3.04 | M9: 2.53 | N9: -2.45 | O9: 0.11 | P9: 4.61 | Q9: 9.51 | R9: 15.2 | S9: 21 | T9: 24.2 | U9: 22.7 | V9: 17.7 | W9: 10.4 | X9: 2.13 | Y9: -2.66
A10: Goblin Valley Utah | B10: 2.64 | C10: 3.57 | D10: 5.03 | E10: 6.09 | F10: 6.82 | G10: 7.06 | H10: 6.44 | I10: 5.6 | J10: 5.01 | K10: 3.94 | L10: 2.97 | M10: 2.46 | N10: -4.11 | O10: -1.36 | P10: 3.43 | Q10: 8.52 | R10: 14.4 | S10: 20.3 | T10: 23.7 | U10: 22 | V10: 16.7 | W10: 9.36 | X10: 1 | Y10: -4.13
A11: Grand Canyon | B11: 2.84 | C11: 3.7 | D11: 5.19 | E11: 6.47 | F11: 7.16 | G11: 7.43 | H11: 6.77 | I11: 6.07 | J11: 5.44 | K11: 4.29 | L11: 3.16 | M11: 2.62 | N11: 1.66 | O11: 3.71 | P11: 7.78 | Q11: 12.4 | R11: 17.8 | S11: 23 | T11: 25 | U11: 24.9 | V11: 20.5 | W11: 13.8 | X11: 5.67 | Y11: 1.21
A12: Hanksville Utah | B12: 2.64 | C12: 3.57 | D12: 5.03 | E12: 6.09 | F12: 6.82 | G12: 7.06 | H12: 6.44 | I12: 5.6 | J12: 5.01 | K12: 3.94 | L12: 2.97 | M12: 2.46 | N12: -4.11 | O12: -1.36 | P12: 3.43 | Q12: 8.52 | R12: 14.4 | S12: 20.3 | T12: 23.7 | U12: 22 | V12: 16.7 | W12: 9.36 | X12: 1 | Y12: -4.13
A13: HorseShoe Canyon, Utah, United States | B13: 2.37 | C13: 3.14 | D13: 4.62 | E13: 5.7 | F13: 6.58 | G13: 6.9 | H13: 6.48 | I13: 5.6 | J13: 4.68 | K13: 3.66 | L13: 2.76 | M13: 2.29 | N13: -4.62 | O13: -1.7 | P13: 3.06 | Q13: 7.95 | R13: 13.91 | S13: 19.8 | T13: 23 | U13: 21.26 | V13: 16.12 | W13: 8.88 | X13: 0.64 | Y13: -4.49
A14: Juneau, Alaska | B14: 0.4 | C14: 1.08 | D14: 2.24 | E14: 3.75 | F14: 4.93 | G14: 5.2 | H14: 4.8 | I14: 3.85 | J14: 2.5 | K14: 1.39 | L14: 0.57 | M14: 0.24 | N14: -8.31 | O14: -7.26 | P14: -5.54 | Q14: -1.35 | R14: 3 | S14: 7.83 | T14: 11 | U14: 10.6 | V14: 6.71 | W14: 1.53 | X14: -4.83 | Y14: -7.09
A15: Lahore, Pakistan | B15: 3.01 | C15: 3.98 | D15: 5.11 | E15: 6.27 | F15: 7.19 | G15: 7.2 | H15: 6.08 | I15: 5.65 | J15: 5.6 | K15: 4.9 | L15: 3.82 | M15: 3.01 | N15: 8.65 | O15: 10.97 | P15: 16.22 | Q15: 22.47 | R15: 25 | S15: 25 | T15: 25 | U15: 25 | V15: 23.93 | W15: 20.3 | X15: 15.55 | Y15: 10.82
A16: Logan, UT | B16: 1.94 | C16: 2.66 | D16: 3.79 | E16: 4.94 | F16: 5.92 | G16: 6.97 | H16: 6.88 | I16: 5.9 | J16: 4.56 | K16: 3.17 | L16: 1.98 | M16: 1.72 | N16: -9.8 | O16: -7.67 | P16: -2.21 | Q16: 3.74 | R16: 9.68 | S16: 15.33 | T16: 19.85 | U16: 18.51 | V16: 12.4 | W16: 5.39 | X16: -3.06 | Y16: -9.41
A17: New York, NY | B17: 1.79 | C17: 2.66 | D17: 3.66 | E17: 4.44 | F17: 5.21 | G17: 5.7 | H17: 5.65 | I17: 5 | J17: 3.98 | K17: 2.89 | L17: 1.89 | M17: 1.57 | N17: -3.49 | O17: -1.86 | P17: 2.75 | Q17: 9 | R17: 15.63 | S17: 20.98 | T17: 23.45 | U17: 22.41 | V17: 18.34 | W17: 11.6 | X17: 5.6 | Y17: -0.39
A18: Primeville Oregon | B18: 1.61 | C18: 2.56 | D18: 3.76 | E18: 4.93 | F18: 6.05 | G18: 6.97 | H18: 7.41 | I18: 6.49 | J18: 4.98 | K18: 3.16 | L18: 1.75 | M18: 1.37 | N18: 0.14 | O18: 0.96 | P18: 3.29 | Q18: 5.88 | R18: 9.76 | S18: 13.7 | T18: 17.9 | U18: 17.7 | V18: 13.9 | W18: 8.47 | X18: 2.69 | Y18: -0.19
A19: Reykjavik, Iceland | B19: 0.11 | C19: 0.53 | D19: 1.31 | E19: 2.77 | F19: 4.11 | G19: 4.71 | H19: 4.16 | I19: 3.27 | J19: 2.17 | K19: 0.97 | L19: 0.25 | M19: 0.03 | N19: -2.6 | O19: -2.59 | P19: -1.59 | Q19: 1.37 | R19: 5.24 | S19: 8.49 | T19: 10.31 | U19: 9.58 | V19: 6.29 | W19: 2.75 | X19: -0.04 | Y19: -1.91
A20: Santiago, Chile | B20: 16.6 | C20: 16.24 | D20: 14.55 | E20: 10.47 | F20: 6.9 | G20: 4.39 | H20: 3.11 | I20: 4.44 | J20: 6.55 | K20: 9.87 | L20: 12.63 | M20: 15.41 | N20: 7.66 | O20: 6.72 | P20: 5.35 | Q20: 4.01 | R20: 2.79 | S20: 2.38 | T20: 2.49 | U20: 3.2 | V20: 4.36 | W20: 5.72 | X20: 7.09 | Y20: 7.86
A21: Schenectady New York | B21: 1.75 | C21: 2.66 | D21: 3.61 | E21: 4.36 | F21: 5.08 | G21: 5.62 | H21: 5.61 | I21: 5 | J21: 4.01 | K21: 2.82 | L21: 1.77 | M21: 1.47 | N21: -6.01 | O21: -4.44 | P21: 0.31 | Q21: 7.34 | R21: 14.2 | S21: 19.7 | T21: 22.1 | U21: 21.1 | V21: 16.8 | W21: 9.89 | X21: 3.68 | Y21: -2.57
A22: Tajikistan | B22: 2.02 | C22: 2.75 | D22: 3.68 | E22: 4.63 | F22: 5.67 | G22: 6.72 | H22: 7.13 | I22: 6.86 | J22: 5.88 | K22: 3.99 | L22: 2.54 | M22: 1.77 | N22: -14 | O22: -12.8 | P22: -8.51 | Q22: -3.98 | R22: 1.08 | S22: 7.94 | T22: 11.7 | U22: 11.3 | V22: 6.51 | W22: -0.08 | X22: -5.95 | Y22: -11.4
A23: Tokyo, Japan | B23: 2.59 | C23: 3.4 | D23: 4.14 | E23: 4.89 | F23: 5 | G23: 4.32 | H23: 4.36 | I23: 4.35 | J23: 3.33 | K23: 2.98 | L23: 2.5 | M23: 2.32 | N23: 3.73 | O23: 3.7 | P23: 6.59 | Q23: 11.97 | R23: 16.49 | S23: 20.01 | T23: 23.18 | U23: 24.44 | V23: 21.87 | W23: 16.61 | X23: 11.59 | Y23: 6.43
A24: uplo | B24: 0.93 | C24: 1.73 | D24: 2.57 | E24: 3.77 | F24: 4.76 | G24: 5.88 | H24: 6.94 | I24: 5.79 | J24: 4.04 | K24: 2.2 | L24: 1 | M24: 0.71 | N24: -1.4 | O24: -2 | P24: -1.61 | Q24: -0.52 | R24: 2.62 | S24: 5.72 | T24: 10.3 | U24: 10.19 | V24: 8.23 | W24: 3.51 | X24: 0.29 | Y24: -2.03
A25: VAN | B25: 1.09 | C25: 1.82 | D25: 2.61 | E25: 3.62 | F25: 4.72 | G25: 5.77 | H25: 6.71 | I25: 5.88 | J25: 4.42 | K25: 2.56 | L25: 1.09 | M25: 0.86 | N25: -0.63 | O25: -1.17 | P25: -0.58 | Q25: 0.4 | R25: 3.57 | S25: 6.45 | T25: 11.08 | U25: 10.91 | V25: 9.13 | W25: 4.3 | X25: 0.81 | Y25: -1.33
A26: Vancouver, BC, Canada | B26: 1.04 | C26: 1.9 | D26: 3.05 | E26: 4.36 | F26: 5.22 | G26: 5.53 | H26: 5.75 | I26: 4.94 | J26: 3.75 | K26: 2.05 | L26: 1.22 | M26: 0.86 | N26: -3.22 | O26: -2.39 | P26: 0.18 | Q26: 3.49 | R26: 7.89 | S26: 11.46 | T26: 14.78 | U26: 14.77 | V26: 10.63 | W26: 5.2 | X26: 0.17 | Y26: -3.65

Sheet Version
G1: PBFun | H1: Do not delete the "PBFun" in the cell next to this. It is used in the vba to make sure the vba only runs on the power budget spreadsheet.
D2: PB_EP_07-15-14_2013_v2

Sheet Calculations
B1: AHr/day | C1: mWatt Hours | K1: Instantaneous | L1: Design Voltage | T1: Units per hour
A2: Useage | B2: =Defaults!L15 -> 3.231178531 | C2: =K2*24 -> 35677.59628 | D2: mW | E2: =Budget!M19*L2 -> 42.81311554 | F2: Wh | K2: =L28*L2*1000 -> 1486.566512 | L2: 13.25 | N2: 1 | O2: Hour/day at 1000 W/m2 | T2: Converstion | V2: 60 | X2: C0 | Y2: 0.819
A3: Production | B3: =Defaults!K19 -> 1.775 | C3: =K3*24 -> 23518.75 | D3: mW | K3: =Defaults!K21 -> 979.9479167 | L3: Charged Voltage | N3: 1000 | O3: joules per second | S3: Time | T3: To Hours | V3: Hours | X3: C1 | Y3: 0.011 | Z3: Y3*Y5 | AA3: =Y3*Y5 -> -0.01529
A4: Net | B4: =B3-B2 -> -1.456178531 | E4: =B3/B2 -> 0.5493351676 | F4: Times more generated that used. | L4: 13.2 | N4: 3600 | O4: seconds | R4: 1 | S4: Sec | T4: 3600 | U4: 1 | V4: =U4*T4/60 -> 60 | X4: C2 | Y4: -7.607e-05 | Z4: Y4*AA5 | AA4: =Y4*AA5 -> -0.000146974847
B5: Battery size | G5: Solar Panel | N5: =N2*N4*N3/1000000 -> 3.6 | O5: MJ/m2/day | R5: 2 | S5: milliSec | T5: 3600000 | U5: 1 | X5: T | Y5: =IF(Display!$B$5=1,$AC$224,P36) -> -1.39 | Z5: Y52 | AA5: =Y5^2 -> 1.9321
B6: =Budget!J12 -> 5 | C6: =Budget!J14 -> 400 | E6: =D8/24 -> 79.58092243 | F6: days | G6: =Budget!M12 -> 9 | I6: =Budget!M13 -> 45 Watt | J6: =VLOOKUP($G$6,FullSolarPanelListwNum,5) -> 2.5 | K6: =Defaults!K21 -> 979.9479167 | L6: mW Generated | R6: 3 | S6: microSec | T6: 3600000000 | U6: 1 | X6: CF(T) | Y6: =Y2+Y3*Y5+Y4*Y5^2 -> 0.8035630252 | AA6: =Y2+Y3*Y5+Y4*AA5 -> 0.8035630252
B7: Desired Reserve | D7: Calculate Reserve | F7: Multiple Batteries | G7: Suns Hours (worst) | I7: Min Hrs needed | K7: Or this many panels | M7: Panel size needed | R7: 4 | S7: Min | T7: 60 | U7: 1 | V7: =U7/T7 -> 0.01666666667 | Y7: =$Y$2+$Y$3*Y5+$Y$4*Y5^2 -> 0.8035630252 | AA7: =Y2+AA3+AA4 -> 0.8035630252
B8: =Calculations!M37 -> 720 | C8: Hrs | D8: =Calculations!K88 -> 1909.942138 | E8: Hrs | F8: =Defaults!L26 -> 0.3769747709 | G8: =IF(IF(Display!$B$5=1,$AB$224,Calculations!$R$35)=0,0.0001,IF(Display!$B$5=1,$AB$224,Calculations!$R$35)) -> 0.71 | H8: Hrs./day | I8: per day | J8: =Defaults!L20 -> 1.292471412 | K8: =LOOKUP($G$6,SolarPanels!A2:A101,SolarPanels!F2:F101) -> 1.820382271 | M8: =K8*Budget!M14 -> 81.9172022 | N8: watt | R8: 5 | S8: 5 Min | T8: 12 | U8: 5 | V8: =V2/U8 -> 12
R9: 6 | S9: 10 Min | T9: 6 | U9: 10
A10: 2 | R10: 7 | S10: 15 Min | T10: 4 | U10: 15
A11: Calculator for device current (calculate Duty Cycle) | R11: 8 | S11: 30 Min | T11: 2 | U11: 30
A12: Device | B12: Nominal current (Amps) | C12: Quiescent current (Amps) | D12: Interval of time "on" mSec per Scan | H12: Scan Interval | L12: Average current (Amps) | M12: Duty Cycle | N12: % of Total | Q12: mW-hr | R12: 9 | S12: Hour | T12: 1 | U12: 60
A13: 64 | B13: =LOOKUP($A13,All!$A$2:$A$1001,All!$C$2:$C$1001) -> 0.01 | C13: =LOOKUP($A13,All!$A$2:$A$1001,All!$D$2:$D$1001) -> 0.0006 | D13: =LOOKUP($A13,All!$A$2:$A$1001,All!$E$2:$E$1001) -> 250 | E13: 12 | F13: =LOOKUP($A13,All!$A$2:$A$1001,All!$F$2:$F$1001) -> 0 | G13: =LOOKUP($E13,$R$4:$R$24,$T$4:$T$24) -> 3600 | H13: =IF(D13>0, Budget!$E$13, Calculations!$L$35) -> 10 | I13: 1 | J13: =LOOKUP($A13,All!$A$2:$A$1001,All!$G$2:$G$1001) -> 1 | K13: =LOOKUP($I13,$R$4:$R$24,$T$4:$T$24) -> 3600 | L13: =M13*B13 + (1-M13)*C13 -> 0.000835 | M13: =IF(D13>0,(IF((D13/1000/H13*K13/G13)>1,1,(D13/1000/H13*K13/G13))),(IF(F13>0,(IF((F13/H13*K13/G13)>1,1,(F13/H13*K13/G13))),J13))) -> 0.025 | N13: =L13/$L$28 -> 0.007442485696 | O13: =IF(D13>0,(IF((D13/1000/H13*K13/G13)>1,1,(D13/1000/H13*K13/G13))),(IF(F13>0,(IF((F13/H13*K13/G13)>1,1,(F13/H13*K13/G13))),J13))) -> 0.025 | P13: =IF(D13>0,(IF((D13/1000/H13*K13/G13)>1, 1,(D13/1000/H13*K13/G13))),IF((F13/H13*K13/G13)>1,1,(F13/H13*K13/G13))) -> 0.025 | R13: 10 | S13: 1440 Min | T13: 0.041667 | U13: 1440 | V13: =V2/U13 -> 0.04166666667
A14: 14 | B14: =LOOKUP($A14,All!$A$2:$A$1001,All!$C$2:$C$1001) -> 0.00025 | C14: =LOOKUP($A14,All!$A$2:$A$1001,All!$D$2:$D$1001) -> 0 | D14: =LOOKUP($A14,All!$A$2:$A$1001,All!$E$2:$E$1001) -> 2 | E14: 12 | F14: =LOOKUP($A14,All!$A$2:$A$1001,All!$F$2:$F$1001) -> 0 | G14: 3600 | H14: =IF(D14>0, Budget!$E$13, Calculations!$L$35) -> 10 | I14: 1 | J14: =LOOKUP($A14,All!$A$2:$A$1001,All!$G$2:$G$1001) -> 1 | K14: 3600 | L14: 5e-08 | M14: 0.0002 | N14: =L14/$L$28 -> 4.456578261e-07 | R14: 11 | S14: Day | T14: 0.041667 | U14: 1
A15: 14 | B15: =LOOKUP($A15,All!$A$2:$A$1001,All!$C$2:$C$1001) -> 0.00025 | C15: =LOOKUP($A15,All!$A$2:$A$1001,All!$D$2:$D$1001) -> 0 | D15: =LOOKUP($A15,All!$A$2:$A$1001,All!$E$2:$E$1001) -> 2 | E15: 12 | F15: =LOOKUP($A15,All!$A$2:$A$1001,All!$F$2:$F$1001) -> 0 | G15: 3600 | H15: =IF(D15>0, Budget!$E$13, Calculations!$L$35) -> 10 | I15: 1 | J15: =LOOKUP($A15,All!$A$2:$A$1001,All!$G$2:$G$1001) -> 1 | K15: 3600 | L15: 5e-08 | M15: 0.0002 | N15: 4.456578261e-07 | R15: 12 | S15: Scan | T15: 3600
A16: 271 | B16: =LOOKUP($A16,All!$A$2:$A$1001,All!$C$2:$C$1001) -> 0.25 | C16: =LOOKUP($A16,All!$A$2:$A$1001,All!$D$2:$D$1001) -> 0.001 | D16: =LOOKUP($A16,All!$A$2:$A$1001,All!$E$2:$E$1001) -> 400 | E16: 12 | F16: =LOOKUP($A16,All!$A$2:$A$1001,All!$F$2:$F$1001) -> 0 | G16: 3600 | H16: =IF(D16>0, Budget!$E$13, Calculations!$L$35) -> 10 | I16: 1 | J16: =LOOKUP($A16,All!$A$2:$A$1001,All!$G$2:$G$1001) -> 1 | K16: 3600 | L16: 0.01096 | M16: 0.04 | N16: 0.09768819548 | R16: 13 | T16: 24
A17: 190 | B17: =LOOKUP($A17,All!$A$2:$A$1001,All!$C$2:$C$1001) -> 0.02 | C17: =LOOKUP($A17,All!$A$2:$A$1001,All!$D$2:$D$1001) -> 0.02 | D17: =LOOKUP($A17,All!$A$2:$A$1001,All!$E$2:$E$1001) -> 86400000 | E17: 12 | F17: =LOOKUP($A17,All!$A$2:$A$1001,All!$F$2:$F$1001) -> 6 | G17: 3600 | H17: =IF(D17>0, Budget!$E$13, Calculations!$L$35) -> 10 | I17: 1 | J17: =LOOKUP($A17,All!$A$2:$A$1001,All!$G$2:$G$1001) -> 1 | K17: 3600 | L17: 0.02 | M17: 1 | N17: 0.1782631304 | R17: 14 | T17: 30
A18: 189 | B18: =LOOKUP($A18,All!$A$2:$A$1001,All!$C$2:$C$1001) -> 0.023 | C18: =LOOKUP($A18,All!$A$2:$A$1001,All!$D$2:$D$1001) -> 0.02 | D18: =LOOKUP($A18,All!$A$2:$A$1001,All!$E$2:$E$1001) -> 86400000 | E18: 12 | F18: =LOOKUP($A18,All!$A$2:$A$1001,All!$F$2:$F$1001) -> 2 | G18: 3600 | H18: =IF(D18>0, Budget!$E$13, Calculations!$L$35) -> 10 | I18: 1 | J18: =LOOKUP($A18,All!$A$2:$A$1001,All!$G$2:$G$1001) -> 1 | K18: 3600 | L18: 0.023 | M18: 1 | N18: 0.2050026 | R18: 15 | T18: 7
A19: 101 | B19: =LOOKUP($A19,All!$A$2:$A$1001,All!$C$2:$C$1001) -> 0.004 | C19: =LOOKUP($A19,All!$A$2:$A$1001,All!$D$2:$D$1001) -> 1e-06 | D19: =LOOKUP($A19,All!$A$2:$A$1001,All!$E$2:$E$1001) -> 10 | E19: 12 | F19: =LOOKUP($A19,All!$A$2:$A$1001,All!$F$2:$F$1001) -> 0 | G19: 3600 | H19: =IF(D19>0, Budget!$E$13, Calculations!$L$35) -> 10 | I19: 1 | J19: =LOOKUP($A19,All!$A$2:$A$1001,All!$G$2:$G$1001) -> 1 | K19: 3600 | L19: 4.999e-06 | M19: 0.001 | N19: 4.455686945e-05 | R19: 16
A20: 58 | B20: =LOOKUP($A20,All!$A$2:$A$1001,All!$C$2:$C$1001) -> 0 | C20: =LOOKUP($A20,All!$A$2:$A$1001,All!$D$2:$D$1001) -> 0 | D20: =LOOKUP($A20,All!$A$2:$A$1001,All!$E$2:$E$1001) -> 86400000 | E20: 12 | F20: =LOOKUP($A20,All!$A$2:$A$1001,All!$F$2:$F$1001) -> 0 | G20: 3600 | H20: =IF(D20>0, Budget!$E$13, Calculations!$L$35) -> 10 | I20: 1 | J20: =LOOKUP($A20,All!$A$2:$A$1001,All!$G$2:$G$1001) -> 1 | K20: 3600 | L20: 0 | M20: 1 | N20: 0 | R20: 17
A21: 174 | B21: =LOOKUP($A21,All!$A$2:$A$1001,All!$C$2:$C$1001) -> 0.02 | C21: =LOOKUP($A21,All!$A$2:$A$1001,All!$D$2:$D$1001) -> 0.004 | D21: =LOOKUP($A21,All!$A$2:$A$1001,All!$E$2:$E$1001) -> 50 | E21: 12 | F21: =LOOKUP($A21,All!$A$2:$A$1001,All!$F$2:$F$1001) -> 0 | G21: 3600 | H21: =IF(D21>0, Budget!$E$13, Calculations!$L$35) -> 10 | I21: 1 | J21: =LOOKUP($A21,All!$A$2:$A$1001,All!$G$2:$G$1001) -> 1 | K21: 3600 | L21: 0.00408 | M21: 0.005 | N21: 0.03636567861 | R21: 18
A22: 121 | B22: =LOOKUP($A22,All!$A$2:$A$1001,All!$C$2:$C$1001) -> 0.002 | C22: =LOOKUP($A22,All!$A$2:$A$1001,All!$D$2:$D$1001) -> 8e-05 | D22: =LOOKUP($A22,All!$A$2:$A$1001,All!$E$2:$E$1001) -> 86400000 | E22: 12 | F22: =LOOKUP($A22,All!$A$2:$A$1001,All!$F$2:$F$1001) -> 0 | G22: 3600 | H22: =IF(D22>0, Budget!$E$13, Calculations!$L$35) -> 10 | I22: 1 | J22: =LOOKUP($A22,All!$A$2:$A$1001,All!$G$2:$G$1001) -> 1 | K22: 3600 | L22: 0.002 | M22: 1 | N22: 0.01782631304 | R22: 19
A23: 273 | B23: =LOOKUP($A23,All!$A$2:$A$1001,All!$C$2:$C$1001) -> 0.008 | C23: =LOOKUP($A23,All!$A$2:$A$1001,All!$D$2:$D$1001) -> 0.0001 | D23: =LOOKUP($A23,All!$A$2:$A$1001,All!$E$2:$E$1001) -> 10000 | E23: 12 | F23: =LOOKUP($A23,All!$A$2:$A$1001,All!$F$2:$F$1001) -> 0 | G23: 3600 | H23: =IF(D23>0, Budget!$E$13, Calculations!$L$35) -> 10 | I23: 1 | J23: =LOOKUP($A23,All!$A$2:$A$1001,All!$G$2:$G$1001) -> 1 | K23: 3600 | L23: 0.008 | M23: 1 | N23: 0.07130525218 | R23: 20
A24: 291 | B24: =LOOKUP($A24,All!$A$2:$A$1001,All!$C$2:$C$1001) -> 0.11 | C24: =LOOKUP($A24,All!$A$2:$A$1001,All!$D$2:$D$1001) -> 0.03 | D24: =LOOKUP($A24,All!$A$2:$A$1001,All!$E$2:$E$1001) -> 1150 | E24: 12 | F24: =LOOKUP($A24,All!$A$2:$A$1001,All!$F$2:$F$1001) -> 0 | G24: 3600 | H24: =IF(D24>0, Budget!$E$13, Calculations!$L$35) -> 10 | I24: 1 | J24: =LOOKUP($A24,All!$A$2:$A$1001,All!$G$2:$G$1001) -> 1 | K24: 3600 | L24: 0.0392 | M24: 0.115 | N24: 0.3493957357 | R24: 21
A25: 174 | B25: =LOOKUP($A25,All!$A$2:$A$1001,All!$C$2:$C$1001) -> 0.02 | C25: =LOOKUP($A25,All!$A$2:$A$1001,All!$D$2:$D$1001) -> 0.004 | D25: =LOOKUP($A25,All!$A$2:$A$1001,All!$E$2:$E$1001) -> 50 | E25: 12 | F25: =LOOKUP($A25,All!$A$2:$A$1001,All!$F$2:$F$1001) -> 0 | G25: 3600 | H25: =IF(D25>0, Budget!$E$13, Calculations!$L$35) -> 10 | I25: 1 | J25: =LOOKUP($A25,All!$A$2:$A$1001,All!$G$2:$G$1001) -> 1 | K25: 3600 | L25: 0.00408 | M25: 0.005 | N25: 0.03636567861 | R25: 22
A26: 246 | B26: =LOOKUP($A26,All!$A$2:$A$1001,All!$C$2:$C$1001) -> 0.0016 | C26: =LOOKUP($A26,All!$A$2:$A$1001,All!$D$2:$D$1001) -> 0 | D26: =LOOKUP($A26,All!$A$2:$A$1001,All!$E$2:$E$1001) -> 210 | E26: 12 | F26: =LOOKUP($A26,All!$A$2:$A$1001,All!$F$2:$F$1001) -> 0 | G26: 3600 | H26: =IF(D26>0, Budget!$E$13, Calculations!$L$35) -> 10 | I26: 1 | J26: =LOOKUP($A26,All!$A$2:$A$1001,All!$G$2:$G$1001) -> 1 | K26: 3600 | L26: 3.36e-05 | M26: 0.021 | N26: 0.0002994820591
L27: system total
A28: Milli-watts Consumed | B28: =K2 -> 1486.566512 | D28: =B28*24 -> 35677.59628 | E28: mWHr/day | K28: Avg Amps | L28: =SUM(L13:L26) -> 0.112193699
L31: Com Intv | M31: Bat Reserv | P31: Min Bat Temp | R31: Peak Sun | S31: Calc Resrv
E32: Scan | L32: =Budget!F12 -> 30 | M32: =Budget!K12 -> 5 | P32: =Budget!$H$14 -> 28 | R32: =Budget!$L$14 -> 23 | S32: =K88 -> 1909.942138
B33: Sunshine | E33: Interval | F33: 60 | G33: 24 | H33: 7 | I33: 4.285715 | J33: 30 | K33: Unit of time> | L33: =Budget!F15 -> 3 | M33: =Budget!K15 -> 4 | P33: =Budget!H15 -> 2 | R33: =Budget!L15 -> 1 | S33: =M33 -> 4
B34: Hours/day | C34: Temp °C | D34: Temp °F | E34: Seconds | F34: Min | G34: Hours | H34: Days | I34: Weeks | J34: Months | L34: =LOOKUP(L33,A35:A37,L35:L37) -> 1 | M34: =LOOKUP(M33,A35:A40,M35:M40) -> 30 | P34: =LOOKUP(P33,A35:A36,P35:P36) -> -2 | R34: =LOOKUP(R33,A35:A36,R35:R36) -> 0.7 | S34: =LOOKUP(S33,A35:A40,S35:S40) -> 79.58092243
A35: 1 | B35: 24 | C35: 25 | D35: =C35*1.8+32 -> 77 | E35: 31536000 | F35: =E35/$F$33 -> 525600 | G35: =F35/$F$33 -> 8760 | H35: =G35/$G$33 -> 365 | I35: =H35/$H$33 -> 52.14285714 | J35: =I35/$I$33 -> 12.16666464 | K35: Seconds | L35: =LOOKUP($L$32,Calculations!$A$35:$A$84,Calculations!$E$35:$E$84) -> 3600 | M35: =LOOKUP($M$32,Calculations!$A$35:$A$84,Calculations!$E$35:$E$84) -> 2592000 | N35: Hours/day | O35: Temp °F | P35: =P36*1.8+32 -> 28.4 | R35: =LOOKUP($R$32,Calculations!A35:A64,Calculations!B35:B64) -> 0.7 | S35: =S36*F33 -> 6875791.698
A36: 2 | B36: 9 | C36: =C35-1 -> 24 | D36: =C36*1.8+32 -> 75.2 | E36: 15552000 | F36: 259200 | G36: =F36/$F$33 -> 4320 | H36: =G36/$G$33 -> 180 | I36: =H36/$H$33 -> 25.71428571 | J36: 6 | K36: Minutes | L36: =LOOKUP($L$32,Calculations!$A$35:$A$84,Calculations!$F$35:$F$84) -> 60 | M36: =LOOKUP($M$32,Calculations!$A$35:$A$84,Calculations!$F$35:$F$84) -> 43200 | N36: MJ/m2/day | O36: Temp °C | P36: =LOOKUP(P32,A35:A140,C35:C140) -> -2 | R36: =R35*N5 -> 2.52 | S36: =S37*F33 -> 114596.5283
A37: 3 | B37: 8.5 | C37: 23 | D37: =C37*1.8+32 -> 73.4 | E37: 7776000 | F37: 129600 | G37: 2160 | H37: =G37/$G$33 -> 90 | I37: =H37/$H$33 -> 12.85714286 | J37: =I37/$I$33 -> 2.9999995 | K37: Hours | L37: =LOOKUP($L$32,Calculations!$A$35:$A$84,Calculations!$G$35:$G$84) -> 1 | M37: =LOOKUP($M$32,Calculations!$A$35:$A$84,Calculations!$G$35:$G$84) -> 720 | O37: Capacity Factor | P37: =IF(Y6>1, 1, Y6) -> 0.8035630252 | S37: =S32 -> 1909.942138
A38: 4 | B38: 8 | C38: 22 | D38: 71.6 | E38: 5184000 | F38: 86400 | G38: 1440 | H38: =G38/$G$33 -> 60 | I38: 8.571428571 | J38: 1.999999667 | K38: Days | L38: =LOOKUP($L$32,Calculations!$A$35:$A$84,Calculations!$H$35:$H$84) -> 0.04166666667 | M38: =LOOKUP($M$32,Calculations!$A$35:$A$84,Calculations!$H$35:$H$84) -> 30 | S38: =S37/G33 -> 79.58092243
A39: 5 | B39: 7.5 | C39: 21 | D39: 69.8 | E39: 2592000 | F39: 43200 | G39: 720 | H39: 30 | I39: 4.285714286 | J39: 0.9999998333 | K39: Weeks | L39: =LOOKUP($L$32,Calculations!$A$35:$A$84,Calculations!$I$35:$I$84) -> 0.005952380952 | M39: =LOOKUP($M$32,Calculations!$A$35:$A$84,Calculations!$I$35:$I$84) -> 4.285714286 | S39: =S38/H33 -> 11.3687032
A40: 6 | B40: 7 | C40: 20 | D40: 68 | E40: 1209600 | F40: 20160 | G40: 336 | H40: 14 | I40: 2 | J40: 0.4666665889 | K40: Months | L40: =LOOKUP($L$32,Calculations!$A$35:$A$84,Calculations!$J$35:$J$84) -> 0.001388888657 | M40: =LOOKUP($M$32,Calculations!$A$35:$A$84,Calculations!$J$35:$J$84) -> 0.9999998333 | S40: =S38/J33 -> 2.652697414
A41: 7 | B41: 6.5 | C41: 19 | D41: 66.2 | E41: 1036800 | F41: 17280 | G41: 288 | H41: 12 | I41: 1.714285714 | J41: 0.3999999333
A42: 8 | B42: 6 | C42: 18 | D42: 64.4 | E42: 864000 | F42: 14400 | G42: 240 | H42: 10 | I42: 1.428571429 | J42: 0.3333332778 | O42: 24 Hour Simulation
A43: 9 | B43: 5.5 | C43: 17 | D43: 62.6 | E43: 777600 | F43: 12960 | G43: 216 | H43: 9 | I43: 1.285714286 | J43: 0.29999995 | N43: Initial Value
A44: 10 | B44: 5 | C44: 16 | D44: 60.8 | E44: 691200 | F44: 11520 | G44: 192 | H44: 8 | I44: 1.142857143 | J44: =I44/$I$33 -> 0.2666666222 | N44: Voltage | O44: Amp-Hours | P44: Consuption | Q44: Reguvination
A45: 11 | B45: 4.5 | C45: 15 | D45: 59 | E45: 604800 | F45: 10080 | G45: 168 | H45: 7 | I45: 1 | J45: 0.2333332944 | N45: =L4 -> 13.2 | O45: =Defaults!L25 -> 321.4252101 | P45: (withdrawals) | Q45: (deposits)
A46: 12 | B46: 4 | C46: 14 | D46: 57.2 | E46: 518400 | F46: =E46/$F$33 -> 8640 | G46: 144 | H46: 6 | I46: 0.8571428571 | J46: 0.1999999667 | O46: =O45 -> 321.4252101 | P46: =Defaults!L15/24 -> 0.1346324388 | Q46: =Defaults!J19 -> 2.5
A47: 13 | B47: 3.5 | C47: 13 | D47: 55.4 | E47: 432000 | F47: 7200 | G47: 120 | H47: 5 | I47: 0.7142857143 | J47: 0.1666666389 | N47: 12:00:00 | O47: =O46 -> 321.4252101 | P47: =P46 -> 0.1346324388 | Q47: =IF(R47>0,$Q$46,0) -> 0 | R47: =S70 -> 0 | S47: =Defaults!I19 -> 0.71
A48: 14 | B48: 3 | C48: 12 | D48: 53.6 | E48: 345600 | F48: 5760 | G48: 96 | H48: 4 | I48: 0.5714285714 | J48: 0.1333333111 | N48: 01:00:00 | O48: =IF(O47-P47+Q47>$O$45,$O$45,O47-P47+Q47) -> 321.2905776 | P48: =P46 -> 0.1346324388 | Q48: 0 | R48: =S69 -> 0 | S48: =IF(S47-1>0,S47-1,0) -> 0
A49: 15 | B49: 2.5 | C49: 11 | D49: 51.8 | E49: 259200 | F49: 4320 | G49: 72 | H49: 3 | I49: 0.4285714286 | J49: 0.09999998333 | N49: 02:00:00 | O49: 321.1559452 | P49: =P48 -> 0.1346324388 | Q49: 0 | R49: =S68 -> 0 | S49: 0
A50: 16 | B50: 2 | C50: 10 | D50: 50 | E50: 172800 | F50: 2880 | G50: 48 | H50: 2 | I50: 0.2857142857 | J50: 0.06666665556 | N50: 03:00:00 | O50: 321.0213127 | P50: 0.1346324388 | Q50: 0 | R50: =S67 -> 0 | S50: 0
A51: 17 | B51: 1.5 | C51: 9 | D51: 48.2 | E51: 86400 | F51: 1440 | G51: 24 | H51: 1 | I51: 0.1428571429 | J51: 0.03333332778 | N51: 04:00:00 | O51: 320.8866803 | P51: 0.1346324388 | Q51: 0 | R51: =S66 -> 0 | S51: 0
A52: 18 | B52: 1 | C52: 8 | D52: 46.4 | E52: 64800 | F52: 1080 | G52: 18 | H52: 0.75 | I52: 0.1071428571 | J52: 0.02499999583 | N52: 05:00:00 | O52: 320.7520479 | P52: 0.1346324388 | Q52: 0 | R52: =S65 -> 0 | S52: 0
A53: 19 | B53: 0.95 | C53: 7 | D53: 44.6 | E53: 43200 | F53: 720 | G53: 12 | H53: 0.5 | I53: 0.07142857143 | J53: 0.01666666389 | N53: 06:00:00 | O53: 320.6174154 | P53: 0.1346324388 | Q53: 0 | R53: =S64 -> 0 | S53: 0
A54: 20 | B54: 0.9 | C54: 6 | D54: 42.8 | E54: 39600 | F54: 660 | G54: 11 | H54: 0.4583333333 | I54: 0.06547619048 | J54: 0.01527777523 | N54: 07:00:00 | O54: 320.482783 | P54: 0.1346324388 | Q54: 0 | R54: =S63 -> 0 | S54: 0
A55: 21 | B55: 0.85 | C55: 5 | D55: 41 | E55: 36000 | F55: 600 | G55: 10 | H55: 0.4166666667 | I55: 0.05952380952 | J55: 0.01388888657 | N55: 08:00:00 | O55: 320.3481506 | P55: 0.1346324388 | Q55: 0 | R55: =S62 -> 0 | S55: 0
A56: 22 | B56: 0.8 | C56: 4 | D56: 39.2 | E56: 32400 | F56: 540 | G56: 9 | H56: 0.375 | I56: 0.05357142857 | J56: 0.01249999792 | N56: 09:00:00 | O56: 320.2135181 | P56: 0.1346324388 | Q56: 0 | R56: =S61 -> 0 | S56: 0
A57: 23 | B57: 0.7 | C57: 3 | D57: 37.4 | E57: 28800 | F57: 480 | G57: 8 | H57: 0.3333333333 | I57: 0.04761904762 | J57: 0.01111110926 | N57: 10:00:00 | O57: 320.0788857 | P57: 0.1346324388 | Q57: 0 | R57: =S60 -> 0 | S57: 0
A58: 24 | B58: 0.6 | C58: 2 | D58: 35.6 | E58: 25200 | F58: 420 | G58: 7 | H58: 0.2916666667 | I58: 0.04166666667 | J58: 0.009722220602 | N58: 11:00:00 | O58: 319.9442532 | P58: 0.1346324388 | Q58: 0 | R58: =S59 -> 0 | S58: 0
A59: 25 | B59: 0.5 | C59: 1 | D59: 33.8 | E59: 21600 | F59: 360 | G59: 6 | H59: 0.25 | I59: 0.03571428571 | J59: 0.008333331944 | N59: 12:00:00 | O59: 319.8096208 | P59: 0.1346324388 | Q59: 0 | R59: =S58 -> 0 | S59: 0
A60: 26 | B60: 0.4 | C60: 0 | D60: 32 | E60: 18000 | F60: 300 | G60: 5 | H60: 0.2083333333 | I60: 0.02976190476 | J60: 0.006944443287 | N60: 01:00:00 | O60: 319.6749884 | P60: 0.1346324388 | Q60: 0 | R60: =S57 -> 0 | S60: 0
A61: 27 | B61: 0.25 | C61: -1 | D61: 30.2 | E61: 14400 | F61: 240 | G61: 4 | H61: 0.1666666667 | I61: 0.02380952381 | J61: 0.00555555463 | N61: 02:00:00 | O61: 319.5403559 | P61: 0.1346324388 | Q61: 0 | R61: =S56 -> 0 | S61: 0
A62: 28 | B62: 0.2 | C62: -2 | D62: 28.4 | E62: 10800 | F62: 180 | G62: 3 | H62: 0.125 | I62: 0.01785714286 | J62: 0.004166665972 | N62: 03:00:00 | O62: 319.4057235 | P62: 0.1346324388 | Q62: 0 | R62: =S55 -> 0 | S62: 0
A63: 29 | B63: 0.1 | C63: -3 | D63: 26.6 | E63: 7200 | F63: 120 | G63: 2 | H63: 0.08333333333 | I63: 0.0119047619 | J63: 0.002777777315 | N63: 04:00:00 | O63: 319.271091 | P63: 0.1346324388 | Q63: 0 | R63: =S54 -> 0 | S63: 0
A64: 30 | B64: 0.001 | C64: -4 | D64: 24.8 | E64: 3600 | F64: 60 | G64: 1 | H64: 0.04166666667 | I64: 0.005952380952 | J64: 0.001388888657 | N64: 05:00:00 | O64: 319.1364586 | P64: 0.1346324388 | Q64: 0 | R64: =S53 -> 0 | S64: 0
A65: 31 | C65: -5 | D65: 23 | E65: 1800 | F65: 30 | G65: 0.5 | H65: 0.02083333333 | I65: 0.002976190476 | J65: 0.0006944443287 | N65: 06:00:00 | O65: 319.0018262 | P65: 0.1346324388 | Q65: 0 | R65: =S52 -> 0 | S65: 0
A66: 32 | C66: -6 | D66: 21.2 | E66: 900 | F66: 15 | G66: 0.25 | H66: 0.01041666667 | I66: 0.001488095238 | J66: 0.0003472221644 | N66: 07:00:00 | O66: 318.8671937 | P66: 0.1346324388 | Q66: 0 | R66: =S51 -> 0 | S66: 0
A67: 33 | C67: -7 | D67: 19.4 | E67: 600 | F67: 10 | G67: 0.1666666667 | H67: 0.006944444444 | I67: 0.0009920634921 | J67: 0.0002314814429 | N67: 08:00:00 | O67: 318.7325613 | P67: 0.1346324388 | Q67: 0 | R67: =S50 -> 0 | S67: 0
A68: 34 | C68: =C67-1 -> -8 | D68: 17.6 | E68: 300 | F68: 5 | G68: 0.08333333333 | H68: 0.003472222222 | I68: 0.000496031746 | J68: 0.0001157407215 | N68: 09:00:00 | O68: 318.5979288 | P68: 0.1346324388 | Q68: 0 | R68: =S49 -> 0 | S68: 0
A69: 35 | C69: -9 | D69: 15.8 | E69: 60 | F69: 1 | G69: 0.01666666667 | H69: 0.0006944444444 | I69: 9.920634921e-05 | J69: 2.314814429e-05 | N69: 10:00:00 | O69: 318.4632964 | P69: 0.1346324388 | Q69: 0 | R69: =S48 -> 0 | S69: 0
A70: 36 | C70: -10 | D70: 14 | E70: 30 | F70: 0.5 | G70: 0.008333333333 | H70: 0.0003472222222 | I70: 4.96031746e-05 | J70: 1.157407215e-05 | N70: 11:00:00 | O70: 318.328664 | P70: 0.1346324388 | Q70: 2.5 | R70: =S47 -> 0.71 | S70: 0
A71: 37 | C71: -11 | D71: 12.2 | E71: 20 | F71: 0.3333333333 | G71: 0.005555555556 | H71: 0.0002314814815 | I71: 3.306878307e-05 | J71: 7.716048097e-06 | N71: 12:00:00 | O71: 320.6940315 | P71: 0.1346324388 | R71: Lacking | S71: Excess
A72: 38 | C72: -12 | D72: 10.4 | E72: 10 | F72: 0.1666666667 | G72: 0.002777777778 | H72: 0.0001157407407 | I72: 1.653439153e-05 | J72: 3.858024048e-06 | P72: =SUM(P48:P71) -> 3.231178531 | Q72: =SUM(Q48:Q70) -> 2.5 | R72: =IF(P72-Q72>0,P72-Q72,0) -> 0.7311785312 | S72: =IF(Q72-P72>0,Q72-P72,0) -> 0
A73: 39 | C73: -13 | D73: 8.6 | E73: 5 | F73: 0.08333333333 | G73: 0.001388888889 | H73: 5.787037037e-05 | I73: 8.267195767e-06 | J73: 1.929012024e-06 | O73: =MIN(O47:O71) -> 318.328664 | P73: Cycle Service Life
A74: 40 | C74: -14 | D74: 6.8 | E74: 2 | F74: 0.03333333333 | G74: 0.0005555555556 | H74: 2.314814815e-05 | I74: 3.306878307e-06 | J74: 7.716048097e-07
A75: 41 | C75: -15 | D75: 5 | E75: 1 | F75: 0.01666666667 | G75: 0.0002777777778 | H75: 1.157407407e-05 | I75: 1.653439153e-06 | J75: 3.858024048e-07 | Q75: Diminished
A76: 42 | C76: -16 | D76: 3.2 | E76: 0.75 | F76: 0.0125 | G76: 0.0002083333333 | H76: 8.680555556e-06 | I76: 1.240079365e-06 | J76: 2.893518036e-07 | O76: Depth of Discharge | Q76: Bat life
A77: 43 | C77: -17 | D77: 1.4 | E77: 0.5 | F77: 0.008333333333 | G77: 0.0001388888889 | H77: 5.787037037e-06 | I77: 8.267195767e-07 | J77: 1.929012024e-07 | N77: =Calculations!K89 -> 0.0125658257 | O77: 1 day D of D | Q77: =IF(N77<0.2999, 4, IF(N77<0.4999, 2,1)) -> 4
A78: 44 | C78: -18 | D78: -0.4 | E78: 0.333 | F78: 0.00555 | G78: 9.25e-05 | H78: 3.854166667e-06 | I78: 5.505952381e-07 | J78: 1.284722008e-07 | N78: =Calculations!K90 -> 0.02513165139 | O78: 2 day W/O charge | Q78: =IF(N78<0.2999, 4, IF(N78<0.4999, 2,1)) -> 4
A79: 45 | C79: -19 | D79: -2.2 | E79: 0.25 | F79: 0.004166666667 | G79: 6.944444444e-05 | H79: 2.893518519e-06 | I79: 4.133597884e-07 | J79: 9.645060121e-08 | N79: =Calculations!K91 -> 0.03769747709 | O79: 3 day W/O charge | Q79: =IF(N79<0.2999, 4, IF(N79<0.4999, 2,1)) -> 4
A80: 46 | C80: -20 | D80: -4 | E80: 0.2 | F80: 0.003333333333 | G80: 5.555555556e-05 | H80: 2.314814815e-06 | I80: 3.306878307e-07 | J80: 7.716048097e-08 | N80: =Calculations!K92 -> 0.05026330278 | O80: 4 day W/O charge | Q80: =IF(N80<0.2999, 4, IF(N80<0.4999, 2,1)) -> 4
A81: 47 | C81: -21 | D81: -5.8 | E81: 0.15 | F81: 0.0025 | G81: 4.166666667e-05 | H81: 1.736111111e-06 | I81: 2.48015873e-07 | J81: 5.787036073e-08 | N81: =Calculations!K93 -> 0.06282912848 | O81: 5 day W/O charge | Q81: =IF(N81<0.2999, 4, IF(N81<0.4999, 2,1)) -> 4
A82: 48 | C82: -22 | D82: -7.6 | E82: 0.1 | F82: 0.001666666667 | G82: 2.777777778e-05 | H82: 1.157407407e-06 | I82: 1.653439153e-07 | J82: 3.858024048e-08
A83: 49 | C83: -23 | D83: -9.4 | E83: 0.05 | F83: 0.0008333333333 | G83: 1.388888889e-05 | H83: 5.787037037e-07 | I83: 8.267195767e-08 | J83: 1.929012024e-08
A84: 50 | C84: -24 | D84: -11.2 | E84: 0.01 | F84: 0.0001666666667 | G84: 2.777777778e-06 | H84: 1.157407407e-07 | I84: 1.653439153e-08 | J84: 3.858024048e-09
A85: 51 | C85: -25 | D85: -13
A86: 52 | C86: -26 | D86: -14.8 | E86: Day | F86: Reserve Time during Storms/stollen panels | P86: Comparison of Charge into Battery and draw from battery.
A87: 53 | C87: -27 | D87: -16.6 | E87: 0 | F87: =O45 -> 321.4252101 | H87: =Defaults!L15 -> 3.231178531 | I87: 0 | K87: =F87/H87*Defaults!K24 -> 79.58092243 | L87: Reserve Days | O87: draw => | P87: =Defaults!L15 -> 3.231178531
A88: 54 | C88: -28 | D88: -18.4 | E88: 0 | F88: =F87 -> 321.4252101 | H88: =H87/Defaults!$K$24 -> 4.038973164 | I88: 0 | K88: =K87*24 -> 1909.942138 | L88: Reserve Hours | O88: charge | P88: =Defaults!K19 -> 1.775
A89: 55 | C89: -29 | D89: -20.2 | E89: 1 | F89: =IF((F88-H88+I88>$F$87),$F$87,IF(F88-H88+I88<0,0,F88-H88+I88)) -> 317.3862369 | H89: =H88 -> 4.038973164 | I89: 0 | J89: =IF(F89/$O$45<0,0,F89/$O$45) -> 0.9874341743 | K89: =1-J89 -> 0.0125658257 | L89: 1 day | O89: Day | P89: Reserve
A90: 56 | C90: -30 | D90: -22 | E90: 2 | F90: 313.3472637 | H90: 4.038973164 | I90: 0 | J90: 0.9748683486 | K90: 0.02513165139 | L90: 2 days | O90: 0 | P90: =Defaults!$L$25 -> 321.4252101 | R90: Discharge | S90: =O73/O45 -> 0.9903662003
A91: 57 | C91: -31 | D91: -23.8 | E91: 3 | F91: 309.3082906 | H91: 4.038973164 | I91: 0 | J91: 0.9623025229 | K91: 0.03769747709 | L91: 3 days | O91: 1 | P91: =IF((P90-$P$87+$P$88>$P$90),$P$90,IF(P90-$P$87+$P$88<0,0,P90-$P$87+$P$88)) -> 319.9690315 | R91: 1 day | S91: =O73 -> 318.328664 | T91: =IF(S91/$O$45<0,0,S91/$O$45) -> 0.9903662003 | U91: =1-T91 -> 0.0096337997
A92: 58 | C92: -32 | D92: -25.6 | E92: 4 | F92: 305.2693174 | H92: 4.038973164 | I92: 0 | J92: 0.9497366972 | K92: 0.05026330278 | L92: 4 days | O92: 2 | P92: 318.512853 | R92: 2 days | S92: =IF(S91-($O$45-$O$73)>0,S91-($O$45-$O$73), 0) -> 315.2321179 | T92: =S92/$O$45 -> 0.9807324006 | U92: 0.0192675994
A93: 59 | C93: -33 | D93: -27.4 | E93: 5 | F93: 301.2303442 | H93: 4.038973164 | I93: 0 | J93: 0.9371708715 | K93: 0.06282912848 | L93: 5 days | O93: 3 | P93: 317.0566745 | R93: 3 days | S93: 312.1355718 | T93: 0.9710986009 | U93: 0.0289013991
A94: 60 | C94: -34 | D94: -29.2 | E94: 6 | F94: 297.1913711 | H94: 4.038973164 | I94: 0 | J94: 0.9246050458 | K94: 0.07539495418 | L94: 6 days | O94: 4 | P94: 315.6004959 | R94: 4 days | S94: 309.0390257 | T94: 0.9614648012 | U94: 0.0385351988
A95: 61 | C95: -35 | D95: -31 | E95: 7 | F95: 293.1523979 | H95: 4.038973164 | I95: 0 | J95: 0.9120392201 | K95: 0.08796077987 | L95: 7 days | O95: 5 | P95: 314.1443174 | R95: 5 days | S95: 305.9424796 | T95: 0.9518310015 | U95: 0.0481689985
A96: 62 | C96: -36 | D96: -32.8 | E96: 8 | F96: 289.1134247 | H96: 4.038973164 | I96: 0 | J96: 0.8994733944 | K96: 0.1005266056 | L96: 8 | O96: 6 | P96: 312.6881389 | R96: 6 days | S96: 302.8459335 | T96: 0.9421972018 | U96: 0.0578027982
A97: 63 | C97: -37 | D97: -34.6 | E97: 9 | F97: 285.0744516 | H97: 4.038973164 | I97: 0 | J97: 0.8869075687 | K97: 0.1130924313 | L97: 9 | O97: 7 | P97: 311.2319603 | R97: 7 days | S97: 299.7493874 | T97: 0.9325634021 | U97: 0.0674365979
A98: 64 | C98: -38 | D98: -36.4 | E98: 10 | F98: 281.0354784 | H98: 4.038973164 | I98: 0 | J98: 0.874341743 | K98: 0.125658257 | L98: 10 | O98: 8 | P98: 309.7757818 | R98: 8 | S98: 296.6528413 | T98: 0.9229296024 | U98: 0.0770703976
A99: 65 | C99: -39 | D99: -38.2 | E99: 11 | F99: 276.9965053 | H99: 4.038973164 | I99: 0 | J99: 0.8617759173 | K99: 0.1382240827 | L99: 11 | O99: 9 | P99: 308.3196033 | R99: 9 | S99: 293.5562952 | T99: 0.9132958027 | U99: 0.0867041973
A100: 66 | C100: =C99-1 -> -40 | D100: -40 | E100: 12 | F100: 272.9575321 | H100: 4.038973164 | I100: 0 | J100: 0.8492100916 | K100: 0.1507899084 | L100: 12 | O100: 10 | P100: 306.8634247 | R100: 10 | S100: 290.4597491 | T100: 0.903662003 | U100: 0.096337997
A101: 67 | C101: -41 | D101: =C101*1.8+32 -> -41.8 | E101: 13 | F101: 268.9185589 | H101: 4.038973164 | I101: 0 | J101: 0.8366442659 | K101: 0.1633557341 | L101: 13 | O101: 11 | P101: 305.4072462 | R101: 11 | S101: 287.363203 | T101: 0.8940282033 | U101: 0.1059717967
A102: 68 | C102: -42 | D102: -43.6 | E102: 14 | F102: 264.8795858 | H102: 4.038973164 | I102: 1 | J102: 0.8240784403 | K102: 0.1759215597 | L102: 14 | O102: 12 | P102: 303.9510677 | R102: 12 | S102: 284.266657 | T102: 0.8843944036 | U102: 0.1156055964
A103: 69 | C103: -43 | D103: -45.4 | O103: 13 | P103: 302.4948892 | R103: 13 | S103: 281.1701109 | T103: 0.8747606039 | U103: 0.1252393961
A104: 70 | C104: -44 | D104: -47.2 | O104: 14 | P104: 301.0387106 | R104: 14 | S104: 278.0735648 | T104: 0.8651268042 | U104: 0.1348731958
A105: 71 | C105: -45 | D105: -49 | S105: 274.9770187 | T105: 0.8554930045 | U105: 0.1445069955
A106: 72 | C106: -46 | D106: -50.8 | S106: 271.8804726 | T106: 0.8458592048 | U106: 0.1541407952
A107: 73 | C107: -47 | D107: -52.6 | S107: 268.7839265 | T107: 0.8362254051 | U107: 0.1637745949
A108: 74 | C108: -48 | D108: -54.4 | S108: 265.6873804 | T108: 0.8265916054 | U108: 0.1734083946
A109: 75 | C109: -49 | D109: -56.2 | S109: 262.5908343 | T109: 0.8169578057 | U109: 0.1830421943
A110: 76 | C110: -50 | D110: -58 | S110: 259.4942882 | T110: 0.807324006 | U110: 0.192675994
A111: 77 | C111: -51 | D111: -59.8
A112: 78 | C112: -52 | D112: -61.6
A113: 79 | C113: -53 | D113: -63.4
A114: 80 | C114: -54 | D114: -65.2
A115: 81 | C115: -55 | D115: -67
A116: 82 | C116: -56 | D116: -68.8
A117: 83 | C117: -57 | D117: -70.6
A118: 84 | C118: -58 | D118: -72.4
A119: 85 | C119: -59 | D119: -74.2
A120: 86 | C120: -60 | D120: -76
A121: 87 | C121: -61 | D121: -77.8
A122: 88 | C122: -62 | D122: -79.6
A123: 89 | C123: -63 | D123: -81.4
A124: 90 | C124: -64 | D124: -83.2
A125: 91 | C125: -65 | D125: -85
A126: 92 | C126: -66 | D126: -86.8
A127: 93 | C127: -67 | D127: -88.6
A128: 94 | C128: -68 | D128: -90.4
A129: 95 | C129: -69 | D129: -92.2
A130: 96 | C130: -70 | D130: -94
A131: 97 | C131: -71 | D131: -95.8
A132: 98 | C132: =C131-1 -> -72 | D132: -97.6
A133: 99 | C133: -73 | D133: -99.4
A134: 100 | C134: -74 | D134: -101.2
A135: 101 | C135: -75 | D135: -103
A136: 102 | C136: -76 | D136: -104.8
A137: 103 | C137: -77 | D137: -106.6
A138: 104 | C138: -78 | D138: -108.4
A139: 105 | C139: -79 | D139: -110.2
A140: 106 | C140: -80 | D140: -112
A144: Adjusted picture Sizes | B144: Actual Picture Sizes | F144: Percent | H144: Battery Adjust | N144: OldAdjust battery picture | R144: Solar New
A145: =picSize("Image3",B145*100) ->  | B145: =Budget!M19/E147 -> 0.6454381343 | D145: Daily Load | E145: =$B$2 -> 3.231178531 | F145: =E145/E147 -> 0.6454381343 | K145: Minimum estimated battery amperage required for backup: | L145: =Defaults!L24 -> 121.1691949 | N145: =BatterypicSize("Image2", $O$145) ->  | O145: =Budget!$H$16-Budget!$J$16 -> 200.2560151 | R145: Production/Useage
A146: =picSize("Image4",B146*100) ->  | B146: =Budget!M21/E147 ->  | D146: Daily Solar | E146: =$B$3 -> 1.775 | F146: =E146/E147 -> 0.3545618657 | K146: Estimated battery amp hours corrected for temperature: | L146: =Budget!H16 -> 321.4252101 | R146: =IF($B$3/$B$2>2,2,$B$3/$B$2) -> 0.5493351676
D147: Total | E147: =$E$145+$E$146 -> 5.006178531 | F147: =(F145+F146)*100 -> 100 | K147: Total: | L147: =L145+L146 -> 442.594405 | R147: =R146*100 -> 54.93351676
E148: Solar Panel Size: | F148: =(2.4*F146)*2 -> 1.701896955 | K148: Battery Size: | L148: =(L146/L147)*2 -> 1.452459437 | R148: =R147*100 -> 5493.351676
A149: =adjustedBatt(Calculations!H16) ->  | F149: =SolarPicSize("Image4",F148*65) ->  | L149: =BattPicSize(IF($N$888>0.8,"Image1",(IF($N$888 >0.7,"Image5","Image6"))),L148*175,$N$888) -> 
I151: Regression for solar input | Q151: Regression for temperature
A152: Test calculations for annual power simulation (Logan) | I152: c6 | J152: c5 | K152: c4 | L152: c3 | M152: c2 | N152: c1 | O152: b | Q152: c6 | R152: c5 | S152: c4 | T152: c3 | U152: c2 | V152: c1 | W152: b
I154: =INDEX(LINEST(y,x^{1,2,3,4,5,6}),1) -> 7.360557875e-14 | J154: =INDEX(LINEST(y,x^{1,2,3,4,5,6}),1,2) -> -1.589982843e-10 | K154: =INDEX(LINEST(y,x^{1,2,3,4,5,6}),1,3) -> 1.275994777e-07 | L154: =INDEX(LINEST(y,x^{1,2,3,4,5,6}),1,4) -> -4.63790755e-05 | M154: =INDEX(LINEST(y,x^{1,2,3,4,5,6}),1,5) -> 0.007313567528 | N154: =INDEX(LINEST(y,x^{1,2,3,4,5,6}),1,6) -> -0.3635414625 | O154: =INDEX(LINEST(y,x^{1,2,3,4,5,6}),1,7) -> 7.353677699 | Q154: =INDEX(LINEST(z,x^{1,2,3,4,5,6}),1) -> 5.476124311e-14 | R154: =INDEX(LINEST(z,x^{1,2,3,4,5,6}),1,2) -> -1.275443322e-10 | S154: =INDEX(LINEST(z,x^{1,2,3,4,5,6}),1,3) -> 1.114240063e-07 | T154: =INDEX(LINEST(z,x^{1,2,3,4,5,6}),1,4) -> -4.487222492e-05 | U154: =INDEX(LINEST(z,x^{1,2,3,4,5,6}),1,5) -> 0.008144989285 | V154: =INDEX(LINEST(z,x^{1,2,3,4,5,6}),1,6) -> -0.525557143 | W154: =INDEX(LINEST(z,x^{1,2,3,4,5,6}),1,7) -> 6.821231928
B155: Load | D155: Charge
A156: Day | B156: Load (amp*hr) | C156: Corrected-regression (amps*hr) | D156: Solar (amps*hr)-regression | E156: Battery Amps (corrected for lowest temperature) | F156: % of charge (Based on one temperature) | G156: Conditional Formatting Values | H156: Conditional Formatting Values 2 | I156: Minimum Temperature | J156: Min temp multiplied by 0.10 | K156: Battery Capacity Factor | L156: Battery Capacity | M156: Batt Amps (Temp Corr) | N156: % of charge
E157: =Budget!$H$16 -> 321.4252101 | M157: =$C$6*K158 -> 354.127475
A158: 1 | B158: =Budget!$M$19 -> 3.231178531 | C158: =IF($D158-ABS($B$891)<0,0,$D158-ABS($B$891)) -> 6.241611954 | D158: =($I$154*$A158^6)+($J$154*$A158^5)+($K$154*$A158^4)+($L$154*$A158^3)+($M$154*$A158^2)+($N$154*$A158^1)+$O$154 -> 6.997403552 | E158: =IF(($E157-$B158+$D158>$E$157),$E$157,IF($E157-$B158+$D158<0,0,$E157-$B158+$D158)) -> 321.4252101 | F158: =E158/$E$157 -> 1 | G158: =IF(F158<=0.5,NA(),F158) -> 1 | H158: =IF(F158>0.5,NA(),F158) ->  | I158: =($Q$154*$A158^6)+($R$154*$A158^5)+($S$154*$A158^4)+($T$154*$A158^3)+($U$154*$A158^2)+($V$154*$A158^1)+$W$154 -> 6.303775013 | J158: =I158*0.1 -> 0.6303775013 | K158: =IF(($Y$2+$Y$3*$I158+$Y$4*$I158^2)>1,1,($Y$2+$Y$3*$I158+$Y$4*$I158^2)) -> 0.8853186875 | L158: =$C$6*K158 -> 354.127475 | M158: =IF(($C158-$B158>=0),IF($M157-$B158+$C158>$L158,$L158,$M157-$B158+$C158),IF($M157<$L158,IF($M157-$B158+$C158<0,0,$M157-$B158+$C158),IF($L158-$B158+$C158<0,0,$L158-$B158+$C158))) -> 354.127475 | N158: =M158/L158 -> 1
A159: =A158+1 -> 2 | B159: =Budget!$M$19 -> 3.231178531 | C159: =IF($D159-ABS($B$891)<0,0,$D159-ABS($B$891)) -> 5.89968845 | D159: =($I$154*$A159^6)+($J$154*$A159^5)+($K$154*$A159^4)+($L$154*$A159^3)+($M$154*$A159^2)+($N$154*$A159^1)+$O$154 -> 6.655480048 | E159: =IF(($E158-$B159+$D159>$E$157),$E$157,IF($E158-$B159+$D159<0,0,$E158-$B159+$D159)) -> 321.4252101 | F159: =E159/$E$157 -> 1 | G159: =IF(F159<=0.5,NA(),F159) -> 1 | H159: =IF(F159>0.5,NA(),F159) ->  | I159: =($Q$154*$A159^6)+($R$154*$A159^5)+($S$154*$A159^4)+($T$154*$A159^3)+($U$154*$A159^2)+($V$154*$A159^1)+$W$154 -> 5.8023404 | J159: =I159*0.1 -> 0.58023404 | K159: =IF(($Y$2+$Y$3*$I159+$Y$4*$I159^2)>1,1,($Y$2+$Y$3*$I159+$Y$4*$I159^2)) -> 0.880264684 | L159: 352.1058736 | M159: 352.1058736 | N159: =M159/L159 -> 1
A160: =A159+1 -> 3 | B160: =Budget!$M$19 -> 3.231178531 | C160: 5.571841883 | D160: 6.327633481 | E160: 321.4252101 | F160: 1 | G160: 1 | I160: 5.316662847 | J160: 0.5316662847 | K160: =IF(($Y$2+$Y$3*$I160+$Y$4*$I160^2)>1,1,($Y$2+$Y$3*$I160+$Y$4*$I160^2)) -> 0.8753330279 | L160: 350.1332112 | M160: 350.1332112 | N160: 1
A161: 4 | B161: =Budget!$M$19 -> 3.231178531 | C161: 5.257801573 | D161: 6.013593171 | E161: 321.4252101 | F161: 1 | G161: 1 | I161: 4.846479756 | J161: 0.4846479756 | K161: =IF(($Y$2+$Y$3*$I161+$Y$4*$I161^2)>1,1,($Y$2+$Y$3*$I161+$Y$4*$I161^2)) -> 0.8705245173 | L161: 348.2098069 | M161: 348.2098069 | N161: 1
A162: 5 | B162: =Budget!$M$19 -> 3.231178531 | C162: 4.957299846 | D162: 5.713091444 | E162: 321.4252101 | F162: 1 | G162: 1 | I162: 4.391531159 | J162: 0.4391531159 | K162: 0.8658397913 | L162: 346.3359165 | M162: 346.3359165 | N162: 1
A163: 6 | B163: =Budget!$M$19 -> 3.231178531 | C163: 4.670072013 | D163: 5.425863611 | E163: 321.4252101 | F163: 1 | G163: 1 | I163: 3.9515597 | J163: 0.39515597 | K163: 0.861279337 | L163: 344.5117348 | M163: 344.5117348 | N163: 1
A164: 7 | B164: =Budget!$M$19 -> 3.231178531 | C164: 4.395856352 | D164: 5.15164795 | E164: 321.4252101 | F164: 1 | G164: 1 | I164: 3.526310621 | J164: 0.3526310621 | K164: 0.8568434965 | L164: =$C$6*K164 -> 342.7373986 | M164: =IF(($C164-$B164>=0),IF($M163-$B164+$C164>$L164,$L164,$M163-$B164+$C164),IF($M163<$L164,IF($M163-$B164+$C164<0,0,$M163-$B164+$C164),IF($L164-$B164+$C164<0,0,$L164-$B164+$C164))) -> 342.7373986 | N164: 1 | O164: 15 | P164: 6.97
A165: 8 | B165: =Budget!$M$19 -> 3.231178531 | C165: 4.134394093 | D165: 4.890185691 | E165: 321.4252101 | F165: 1 | G165: 1 | I165: 3.115531747 | J165: 0.3115531747 | K165: 0.8525324729 | L165: 341.0129891 | M165: 341.0129891 | N165: 1 | O165: 45 | P165: 6.88
A166: 9 | B166: =Budget!$M$19 -> 3.231178531 | C166: 3.885429393 | D166: 4.641220991 | E166: 321.4252101 | F166: 1 | G166: 1 | I166: 2.718973472 | J166: 0.2718973472 | K166: 0.8483463366 | L166: 339.3385346 | M166: 339.3385346 | N166: 1 | O166: =O165+31 -> 76 | P166: 5.9
A167: 10 | B167: =Budget!$M$19 -> 3.231178531 | C167: 3.648709322 | D167: 4.40450092 | E167: 321.4252101 | F167: 1 | G167: 1 | I167: 2.336388742 | J167: 0.2336388742 | K167: 0.8442850319 | L167: 337.7140128 | M167: 337.7140128 | N167: 1 | O167: =O166+30 -> 106 | P167: 4.56
A168: 11 | B168: =Budget!$M$19 -> 3.231178531 | C168: 3.423983842 | D168: 4.17977544 | E168: 321.4252101 | F168: 1 | G168: 1 | I168: 1.967533042 | J168: 0.1967533042 | K168: 0.8403483823 | L168: 336.1393529 | M168: 336.1393529 | N168: 1 | O168: =O167+31 -> 137 | P168: 3.17
A169: 12 | B169: =Budget!$M$19 -> 3.231178531 | C169: 3.211005791 | D169: 3.966797389 | E169: 321.4252101 | F169: 1 | G169: 1 | I169: 1.612164379 | J169: 0.1612164379 | K169: 0.8365360966 | L169: 334.6144386 | M169: 334.5942659 | N169: 0.9999397135 | O169: =O168+30 -> 167 | P169: 1.98
A170: 13 | B170: =Budget!$M$19 -> 3.231178531 | C170: 3.009530861 | D170: 3.765322459 | E170: 321.4252101 | F170: 1 | G170: 1 | I170: 1.270043269 | J170: 0.1270043269 | K170: 0.8328477743 | L170: 333.1391097 | M170: 332.917462 | N170: 0.9993346693 | O170: =O169+31 -> 198 | P170: 1.72
A171: 14 | B171: =Budget!$M$19 -> 3.231178531 | C171: 2.819317581 | D171: 3.575109179 | E171: 321.4252101 | F171: 1 | G171: 1 | I171: 0.940932721 | J171: 0.0940932721 | K171: 0.829282911 | L171: 331.7131644 | M171: 331.3013035 | N171: 0.9987583823 | O171: =O170+30 -> 228 | P171: 1.94
A172: 15 | B172: =Budget!$M$19 -> 3.231178531 | C172: 2.6401273 | D172: 3.395918898 | E172: 321.4252101 | F172: 1 | G172: 1 | I172: 0.6245982229 | J172: 0.06245982229 | K172: 0.8258409038 | L172: 330.3363615 | M172: 329.7453103 | N172: 0.9982107594 | O172: =O171+31 -> 259 | P172: 2.66
A173: 16 | B173: =Budget!$M$19 -> 3.231178531 | C173: 2.471724168 | D173: 3.227515766 | E173: 321.4215473 | F173: 0.9999886046 | G173: 0.9999886046 | I173: 0.3208077259 | J173: 0.03208077259 | K173: 0.822521056 | L173: 329.0084224 | M173: 328.2489681 | N173: 0.9976916872 | O173: =O172+30 -> 289 | P173: 3.79
A174: 17 | B174: =Budget!$M$19 -> 3.231178531 | C174: 2.313875114 | D174: 3.069666712 | E174: 321.2600355 | F174: 0.9994861181 | G174: 0.9994861181 | I174: 0.02933163052 | J174: 0.002933163052 | K174: 0.8193225825 | L174: 327.729033 | M174: 326.8117296 | N174: 0.997201031 | O174: =O173+31 -> 320 | P174: 4.94
A175: 18 | B175: =Budget!$M$19 -> 3.231178531 | C175: 2.166349835 | D175: 2.922141433 | E175: 320.9509984 | F175: 0.9985246593 | G175: 0.9985246593 | I175: -0.2500572284 | J175: -0.02500572284 | K175: 0.8162446139 | L175: 326.4978456 | M175: 325.4330169 | N175: 0.9967386348 | O175: =O174+30 -> 350 | P175: 5.92
A176: 19 | B176: =Budget!$M$19 -> 3.231178531 | C176: 2.028920771 | D176: 2.784712369 | E176: 320.5045322 | F176: 0.997135639 | G176: 0.997135639 | I176: -0.5175835964 | J176: -0.05175835964 | K176: 0.8132862018 | L176: 325.3144807 | M176: 324.112223 | N176: 0.9963043214
A177: 20 | B177: =Budget!$M$19 -> 3.231178531 | C177: 1.901363091 | D177: 2.657154689 | E177: 319.9305084 | F177: 0.9953497683 | G177: 0.9953497683 | I177: -0.7734698139 | J177: -0.07734698139 | K177: 0.8104463227 | L177: 324.1785291 | M177: 322.7824075 | N177: 0.9956933559
A178: 21 | B178: =Budget!$M$19 -> 3.231178531 | C178: 1.783454672 | D178: 2.53924627 | E178: 319.2385761 | F178: 0.9931970677 | G178: 0.9931970677 | I178: -1.017935831 | J178: -0.1017935831 | K178: 0.8077238826 | L178: 323.0895531 | M178: 321.3346837 | N178: 0.9945684738
A179: 22 | B179: =Budget!$M$19 -> 3.231178531 | C179: 1.674976084 | D179: 2.430767682 | E179: 318.4381653 | F179: 0.9907068746 | G179: 0.9907068746 | I179: -1.251199221 | J179: -0.1251199221 | K179: 0.805117721 | L179: 322.0470884 | M179: 319.7784812 | N179: 0.9929556662
A180: 23 | B180: =Budget!$M$19 -> 3.231178531 | C180: 1.575710569 | D180: 2.331502167 | E180: 317.5384889 | F180: 0.9879078522 | G180: 0.9879078522 | I180: -1.473475197 | J180: -0.1473475197 | K180: 0.802626615 | L180: 321.050646 | M180: 318.1230133 | N180: 0.9908810875
A181: 24 | B181: =Budget!$M$19 -> 3.231178531 | C181: 1.485444025 | D181: 2.241235623 | E181: 316.548546 | F181: 0.9848279976 | G181: 0.9848279976 | I181: -1.684976625 | J181: -0.1684976625 | K181: 0.8002492833 | L181: 320.0997133 | M181: 316.3772788 | N181: 0.9883710157
A182: 25 | B182: =Budget!$M$19 -> 3.231178531 | C182: 1.403964988 | D182: 2.159756586 | E182: 315.477124 | F182: 0.98149465 | G182: 0.98149465 | I182: -1.885914037 | J182: -0.1885914037 | K182: 0.7979843896 | L182: 319.1937558 | M182: 314.5500652 | N182: 0.9854518125
A183: 26 | B183: =Budget!$M$19 -> 3.231178531 | C183: 1.331064613 | D183: 2.086856211 | E183: 314.3328017 | F183: 0.9779344989 | G183: 0.9779344989 | I183: -2.076495648 | J183: -0.2076495648 | K183: 0.7958305466 | L183: 318.3322187 | M183: 312.6499513 | N183: 0.982149883
A184: 27 | B184: =Budget!$M$19 -> 3.231178531 | C184: 1.266536657 | D184: 2.022328255 | E184: 313.1239514 | F184: 0.974173592 | G184: 0.974173592 | I184: -2.256927369 | J184: -0.2256927369 | K184: 0.7937863196 | L184: 317.5145278 | M184: 310.6853094 | N184: 0.9784916348
A185: 28 | B185: =Budget!$M$19 -> 3.231178531 | C185: 1.210177463 | D185: 1.965969061 | E185: 311.858742 | F185: 0.9702373436 | G185: 0.9702373436 | I185: -2.427412821 | J185: -0.2427412821 | K185: 0.7918502292 | L185: 316.7400917 | M185: 308.6643084 | N185: 0.9745034382
A186: 29 | B186: =Budget!$M$19 -> 3.231178531 | C186: 1.161785938 | D186: 1.917577536 | E186: 310.545141 | F186: 0.9661505422 | G186: 0.9661505422 | I186: -2.58815335 | J186: -0.258815335 | K186: 0.7900207554 | L186: 316.0083022 | M186: 306.5949158 | N186: 0.9702115852
A187: 30 | B187: =Budget!$M$19 -> 3.231178531 | C187: 1.12116354 | D187: 1.876955138 | E187: 309.1909176 | F187: 0.9619373587 | G187: 0.9619373587 | I187: -2.73934804 | J187: -0.273934804 | K187: 0.7882963402 | L187: 315.3185361 | M187: 304.4849008 | N187: 0.9656422504
A188: 31 | B188: =Budget!$M$19 -> 3.231178531 | C188: 1.088114257 | D188: 1.843905855 | E188: 307.8036449 | F188: 0.9576213541 | G188: 0.9576213541 | I188: -2.881193731 | J188: -0.2881193731 | K188: 0.7866753908 | L188: 314.6701563 | M188: 302.3418365 | N188: 0.960821452
A189: 32 | B189: =Budget!$M$19 -> 3.231178531 | C189: 1.06244459 | D189: 1.818236188 | E189: 306.3907026 | F189: 0.9532254875 | G189: 0.9532254875 | I189: -3.013885027 | J189: -0.3013885027 | K189: 0.7851562826 | L189: 314.0625131 | M189: 300.1731026 | N189: 0.9557750132
A190: 33 | B190: =Budget!$M$19 -> 3.231178531 | C190: 1.04396354 | D190: 1.799755138 | E190: 304.9592792 | F190: 0.9487721238 | G190: 0.9487721238 | I190: -3.137614314 | J190: -0.3137614314 | K190: 0.783737362 | L190: 313.4949448 | M190: 297.9858876 | N190: 0.9505285252
A191: 34 | B191: =Budget!$M$19 -> 3.231178531 | C191: 1.032482583 | D191: 1.788274181 | E191: 303.5163748 | F191: 0.9442830411 | G191: 0.9442830411 | I191: -3.252571774 | J191: -0.3252571774 | K191: 0.782416949 | L191: 312.9667796 | M191: 295.7871916 | N191: 0.9451073114
A192: 35 | B192: =Budget!$M$19 -> 3.231178531 | C192: 1.027815658 | D192: 1.783607256 | E192: 302.0688036 | F192: 0.9397794389 | G192: 0.9397794389 | I192: -3.3589454 | J192: -0.33589454 | K192: 0.7811933397 | L192: 312.4773359 | M192: 293.5838287 | N192: 0.939536392
A193: 36 | B193: =Budget!$M$19 -> 3.231178531 | C193: 1.02977915 | D193: 1.785570748 | E193: 300.6231958 | F193: 0.9352819454 | G193: 0.9352819454 | I193: -3.456921004 | J193: -0.3456921004 | K193: 0.7800648094 | L193: 312.0259238 | M193: 291.3824294 | N193: 0.933840451
A194: 37 | B194: =Budget!$M$19 -> 3.231178531 | C194: 1.03819187 | D194: 1.793983468 | E194: 299.1860007 | F194: 0.9308106251 | G194: 0.9308106251 | I194: -3.546682241 | J194: -0.3546682241 | K194: 0.7790296142 | L194: 311.6118457 | M194: 289.1894427 | N194: 0.9280438041
A195: 38 | B195: =Budget!$M$19 -> 3.231178531 | C195: 1.052875036 | D195: 1.808666634 | E195: 297.7634888 | F195: 0.9263849863 | G195: 0.9263849863 | I195: -3.628410613 | J195: -0.3628410613 | K195: 0.7780859941 | L195: 311.2343976 | M195: 287.0111392 | N195: 0.9221703687
A196: 39 | B196: =Budget!$M$19 -> 3.231178531 | C196: 1.073652264 | D196: 1.829443862 | E196: 296.3617541 | F196: 0.9220239884 | G196: 0.9220239884 | I196: -3.702285488 | J196: -0.3702285488 | K196: 0.7772321744 | L196: 310.8928698 | M196: 284.8536129 | N196: 0.9162436345
A197: 40 | B197: =Budget!$M$19 -> 3.231178531 | C197: 1.100349541 | D197: 1.856141139 | E197: 294.9867167 | F197: 0.9177460495 | G197: 0.9177460495 | I197: -3.768484114 | J197: -0.3768484114 | K197: 0.7764663687 | L197: 310.5865475 | M197: 282.7227839 | N197: 0.9102866374
A198: 41 | B198: =Budget!$M$19 -> 3.231178531 | C198: 1.132795215 | D198: 1.888586813 | E198: 293.644125 | F198: 0.9135690538 | G198: 0.9135690538 | I198: -3.827181631 | J198: -0.3827181631 | K198: 0.7757867805 | L198: 310.3147122 | M198: 280.6244006 | N198: 0.9043219338
A199: 42 | B199: =Budget!$M$19 -> 3.231178531 | C199: 1.170819976 | D199: 1.926611574 | E199: 292.3395581 | F199: 0.9095103586 | G199: 0.9095103586 | I199: -3.878551085 | J199: -0.3878551085 | K199: 0.775191605 | L199: 310.076642 | M199: 278.5640421 | N199: 0.8983715777
A200: 43 | B200: =Budget!$M$19 -> 3.231178531 | C200: 1.214256837 | D200: 1.970048435 | E200: 291.078428 | F200: 0.9055868017 | G200: 0.9055868017 | I200: -3.922763445 | J200: -0.3922763445 | K200: 0.7746790314 | L200: 309.8716126 | M200: 276.5471204 | N200: 0.8924570989
A201: 44 | B201: =Budget!$M$19 -> 3.231178531 | C201: 1.262941119 | D201: 2.018732717 | E201: 289.8659822 | F201: 0.9018147086 | G201: 0.9018147086 | I201: -3.95998761 | J201: -0.395998761 | K201: 0.7742472444 | L201: 309.6988978 | M201: 274.578883 | N201: 0.886599484
A202: 45 | B202: =Budget!$M$19 -> 3.231178531 | C202: 1.316710434 | D202: 2.072502032 | E202: 288.7073057 | F202: 0.8982098996 | G202: 0.8982098996 | I202: -3.990390428 | J202: -0.3990390428 | K202: 0.7738944263 | L202: 309.5577705 | M202: 272.6644149 | N202: 0.8808191583
A203: 46 | B203: =Budget!$M$19 -> 3.231178531 | C203: 1.375404671 | D203: 2.131196269 | E203: 287.6073234 | F203: 0.8947876968 | G203: 0.8947876968 | I203: -4.01413671 | J203: -0.401413671 | K203: 0.773618758 | L203: 309.4475032 | M203: 270.808641 | N203: 0.8751359705
A204: 47 | B204: =Budget!$M$19 -> 3.231178531 | C204: 1.438865972 | D204: 2.19465757 | E204: 286.5708024 | F204: 0.8915629312 | G204: 0.8915629312 | I204: -4.031389238 | J204: -0.4031389238 | K204: 0.7734184212 | L204: 309.3673685 | M204: 269.0163285 | N204: 0.8695691785
A205: 48 | B205: =Budget!$M$19 -> 3.231178531 | C205: 1.506938723 | D205: 2.262730321 | E205: 285.6023542 | F205: 0.8885499497 | G205: 0.8885499497 | I205: -4.042308785 | J205: -0.4042308785 | K205: 0.7732915998 | L205: 309.3166399 | M205: 267.2920886 | N205: 0.8641374377
A206: 49 | B206: =Budget!$M$19 -> 3.231178531 | C206: 1.579469533 | D206: 2.335261131 | E206: 284.7064368 | F206: 0.885762622 | G206: 0.885762622 | I206: -4.047054125 | J206: -0.4047054125 | K206: 0.7732364809 | L206: 309.2945924 | M206: 265.6403796 | N206: 0.8588587909
A207: 50 | B207: =Budget!$M$19 -> 3.231178531 | C207: 1.656307218 | D207: 2.412098816 | E207: 283.8873571 | F207: 0.8832143473 | G207: 0.8832143473 | I207: -4.045782046 | J207: -0.4045782046 | K207: 0.7732512569 | L207: 309.3005028 | M207: 264.0655083 | N207: 0.8537506599
... 1412 more rows

Sheet Lookup
A1: 1 | B1: Device Name | C1: Average Active Current (Amps) | D1: Average Quiescent Current (Amps) | E1: mS Active/Scan Interval | F1: Seconds/Comm Interval | G1: Duty Cycle | J1: Categories
A2: =A1+1 -> 2 | J2: Dataloggers
A3: =A2+1 -> 3 | B3: Dataloggers | C3: 0 | D3: 0 | E3: 0 | F3: 0 | G3: 0 | J3: Sensors
A4: 4 | B4: -------------------------------- | C4: 0 | D4: 0 | E4: 0 | F4: 0 | G4: 0 | J4: Network Peripherals
A5: 5 | B5: CR1000 | C5: 0.01 | D5: 0.0006 | E5: 250 | G5: 1 | J5: Peripherals
A6: 6 | B6: CR10X | C6: 0.045 | D6: 0.001 | E6: 45 | G6: 1 | J6: Communications
A7: 7 | B7: CR200X | C7: 0.003 | D7: 0.0002 | E7: 250 | G7: 1 | J7: Cameras
A8: 8 | B8: CR206 1 Sec Radio | C8: 0.0022 | D8: 0.0022 | E8: 86400000 | G8: 1 | J8: Other
A9: 9 | B9: CR206X 8 Sec | C9: 0.003 | D9: 0.00045 | E9: 150 | G9: 1 | J9: Batteries
A10: 10 | B10: CR206X Always on | C10: 0.027 | D10: 0.027 | E10: 86400000000 | G10: 1 | J10: Solar Panels
A11: 11 | B11: CR216 1 sec | C11: 0.004 | D11: 0 | E11: 86400000 | G11: 1 | J11: Archive
A12: 12 | B12: CR216 8 Sec | C12: 0.0008 | D12: 0 | E12: 86400000 | G12: 1 | J12: Select a Category
A13: 13 | B13: CR216 Radio always on | C13: 0.036 | D13: 0 | E13: 86400000 | G13: 1
A14: 14 | B14: CR3000 | C14: 0.015 | D14: 0.002 | E14: 100 | G14: 1
A15: 15 | B15: CR5000 | C15: 0.2 | D15: 0.0015 | E15: 64000 | G15: 1
A16: 16 | B16: CR5000 Card Active | C16: 0.263 | D16: 0.063 | E16: 50 | G16: 1
A17: 17 | B17: CR6 | C17: 0.1 | D17: 0.06 | G17: 0.5
A18: 18 | B18: CR850 Light | C18: 0.04 | D18: 0 | E18: 0 | F18: 35 | G18: 1
A19: 19 | B19: CR8XX | C19: 0.01 | D19: 0.0006 | E19: 100 | G19: 1
A20: 20 | B20: CR9000X/9041/9011/9032 | C20: 0.485 | D20: 0.41 | E20: 86400000 | G20: 1 | W20: Change Green Boxes | Y20: E=I*R
A21: 21 | B21: CR9050 | C21: 0.015 | D21: 0 | E21: 86400000 | G21: 1 | W21: Results in Pink | Y21: E | Z21: I | AA21: R
A22: 22 | B22: CR9051 | C22: 0.015 | D22: 0 | E22: 86400000 | G22: 1 | Y22: =Z22*AA22 -> 2.5 | Z22: 0.025 | AA22: 100
A23: 23 | B23: CR9052DC | C23: 0.5 | D23: 0.005 | E23: 86400000 | G23: 1 | Y23: 12 | Z23: =Y23/AA23 -> 0.3428571429 | AA23: 35
A24: 24 | B24: CR9052IEPE | C24: 0.84 | D24: 0.005 | E24: 86400000 | G24: 1 | Y24: 25 | Z24: 0.72 | AA24: =Y24/Z24 -> 34.72222222
A25: 25 | B25: CR9055 | C25: 0.015 | D25: 0 | E25: 86400000 | G25: 1
A26: 26 | B26: CR9055E | C26: 0.015 | D26: 0 | E26: 86400000 | G26: 1 | W26: P=I*E | Z26: p=i*e
A27: 27 | B27: CR9058E | C27: 0.36 | D27: 0.005 | E27: 86400000 | G27: 1 | W27: P | X27: I | Y27: E | Z27: 20 | AA27: mW
A28: 28 | B28: CR9060 | C28: 0.125 | D28: 0.108 | E28: 86400000 | G28: 1 | W28: =X28*Y28 -> 2.4 | X28: 24 | Y28: 0.1 | Z28: 12 | AA28: V
A29: 29 | B29: CR9071 | C29: 0.025 | D29: 0.025 | E29: 86400000 | G29: 1 | W29: 73 | X29: =W29/Y29 -> 6.083333333 | Y29: 12 | Z29: =Z27/Z28 -> 1.666666667 | AA29: mA
A30: 30 | B30: CRX000 RS232 | C30: 0.02 | D30: 0 | E30: 200 | G30: 1 | W30: 2.5 | X30: 24 | Y30: =W30/X30 -> 0.1041666667
A31: 31
A32: 32 | B32: Sensors | C32: 0 | D32: 0 | E32: 0 | F32: 0 | G32: 0
A33: 33 | B33: -------------------------------- | C33: 0 | D33: 0 | E33: 0 | F33: 0 | G33: 0
A34: 34 | B34: 014A | C34: 1e-05 | D34: 1e-05 | E34: 86400000000 | G34: 1
A35: 35 | B35: 024A-L | C35: 0.00025 | D35: 0.00025 | E35: 86400000 | G35: 1
A36: 36 | B36: 03001-L/03002-L | C36: 0.00025 | D36: 0.00025 | E36: 86400000 | G36: 1
A37: 37 | B37: 034B-L | C37: 0.00025 | D37: 0.00025 | E37: 86400000 | G37: 1
A38: 38 | B38: 05103-45-L Alpine | C38: 0.00025 | D38: 0.00025 | E38: 86400000 | G38: 1
A39: 39 | B39: 05103-L | C39: 0.00025 | D39: 0.00025 | E39: 86400000 | G39: 1
A40: 40 | B40: 05106-L | C40: 0.00025 | D40: 0.00025 | E40: 86400000 | G40: 1
A41: 41 | B41: 05305-L | C41: 0.00025 | D41: 0.00025 | E41: 86400000 | G41: 1
A42: 42 | B42: 083E-L | C42: 0.004 | D42: 0.004 | E42: 86400000 | G42: 1
A43: 43 | B43: 092-L | C43: 0.01 | D43: 0 | E43: 10000 | G43: 1
A44: 44 | B44: 105T-L | C44: 0 | D44: 0 | E44: 86400000 | G44: 1
A45: 45 | B45: 107-L | C45: 0.00025 | D45: 0 | E45: 2 | G45: 1 | W45: Revision History
A46: 46 | B46: 108-L | C46: 0.00025 | D46: 0 | E46: 2 | G46: 1 | W46: Date | X46: Initials | Y46: Comments
A47: 47 | B47: 109-L | C47: 0.00025 | D47: 0 | E47: 2 | G47: 1 | W47: 2010-05-13 | X47: BKM | Y47: Changed to allow 24 VDC vs 12 VDC. Customer must change cell H46 & H48 and Modify Solar panel ratings
A48: 48 | B48: 127TC | C48: 0 | D48: 0 | E48: 86400000 | G48: 1 | W48: 2010-09-21 | X48: BKM | Y48: Modified CE8 currents & CE4
A49: 49 | B49: 223-L | C49: 0.00025 | D49: 0 | E49: 2 | G49: 1 | W49: 2010-10-23 | X49: BKM | Y49: Fixed 24 hour charging simulation & corrected total load to include losses. Fixed slider controls to avoid going above 24 hours.
A50: 50 | B50: 227-L | C50: 0.00025 | D50: 0 | E50: 2 | G50: 1 | W50: 2010-11-01 | X50: BKM | Y50: Added more boxes to Battery Table and solar panel
A51: 51 | B51: 229-L | C51: 0.00025 | D51: 0 | E51: 2 | G51: 1 | W51: 2010-11-18 | X51: BKM | Y51: Added in a 365 day simulation graph & fixed solar lookup formula to match changes made on 23 Oct
A52: 52 | B52: 237-L | C52: 0.00025 | D52: 0 | E52: 2 | G52: 1 | W52: 2010-11-22 | X52: BKM | Y52: Added duty cycle option on the list of devices.
A53: 53 | B53: 385-L Non Heated | C53: 0.0006 | D53: 0.0006 | E53: 86400000 | G53: 1 | W53: 2011-04-15 | X53: BKM | Y53: Modified look of first page
A54: 54 | B54: 43347-L Temp | C54: 0.0025 | D54: 0 | E54: 20 | G54: 1 | W54: 2011-06-03 | X54: BKM | Y54: Added more boxes to the Lookup list (from 300 to 400)
A55: 55 | B55: 43502-L Ventilator | C55: 0.5 | D55: 0 | E55: 86400000 | G55: 1 | W55: 2011-06-03 | X55: BKM | Y55: Moved all of the calculation tables on the Budget tab to column aa and removed all conditional formatting on these to avoid drawing attention to them.
A56: 56 | B56: 52202-L 12 VDC | C56: 0.36 | D56: 0 | E56: 0 | G56: 0.5 | W56: 2013-01-25 | X56: BKM | Y56: Added in formula to derate battery capacity due to cold temperatures
A57: 57 | B57: 52202-L 24 VDC | C57: 0.72 | D57: 0 | E57: 86400000 | G57: 0.5 | W57: 2013-12-04 | X57: BKM | Y57: Fixed bug on temperature compensation to limit the formula to max battery size. Was over sizing bat at 25°C.
A58: 58 | B58: ASPTC-L | C58: 0.26 | D58: 0.26 | E58: 86400000 | G58: 1 | W58: 2013-12-04 | X58: BKM | Y58: Added in 17 Ahr Battery
A59: 59 | B59: CMP3 | C59: 0 | D59: 0 | E59: 86400000 | G59: 1
A60: 60 | B60: CNF4 Heater | C60: 0.9 | D60: 0 | E60: 0 | G60: 0.7
A61: 61 | B61: CNR1 Heater | C61: 0.5 | D61: 0 | E61: 86400000 | F61: 30 | G61: 1
A62: 62 | B62: CS100 A | C62: 0.003 | D62: 1e-06 | E62: 0 | F62: 45 | G62: 1
A63: 63 | B63: CS106 Active | C63: 0.004 | D63: 1e-06 | E63: 10 | G63: 1
A64: 64 | B64: CS110 1 sec scan | C64: 0.06 | D64: 0.06 | E64: 86400000 | G64: 1
A65: 65 | B65: CS110 select scan | C65: 0.75 | D65: 0.0006 | E65: 79 | G65: 1 | W65: Ideas for improvement:
A66: 66 | B66: CS115A | C66: 0.008 | D66: 1e-06 | E66: 2 | G66: 1
A67: =A66+1 -> 67 | B67: CS120 | C67: 0.1 | D67: 0.008 | E67: 86400000 | G67: 1 | W67: 1 | X67: Add "Reset-all" button.
A68: 68 | B68: CS120 Dew Heaters | C68: 0.08 | D68: 0 | E68: 0 | F68: 600 | G68: 1 | W68: 2 | X68: Add Reserve Time by Latitude in lookup table.
A69: 69 | B69: CS210 | C69: 0.0005 | D69: 0.0005 | E69: 864000 | G69: 1 | W69: 3 | X69: Add Peak Sun hours by zip code or country
A70: 70 | B70: CS215-L A | C70: 0.0017 | D70: 7e-05 | E70: 150 | G70: 1 | W70: 4 | X70: Change colors for color blind
A71: 71 | B71: CS215-L*25 | C71: 0.0425 | D71: 0.00175 | E71: 15000 | G71: 1 | W71: 5 | X71: Add hints if reserve too low or loads too high
A72: 72 | B72: CS300-L | C72: 0 | D72: 0 | E72: 86400000 | G72: 1 | W72: 6 | X72: Show formulas.
A73: 73 | B73: CS410-L | C73: 0.22222 | D73: 0 | E73: 86400000 | G73: 1 | W73: 7 | X73: On line 33, show summary of reserve time, recommendations, etc.
A74: 74 | B74: CS450-L 1 SEC Measure | C74: 0.04 | D74: 0.04 | E74: 86400000 | G74: 1
A75: 75 | B75: CS450-L/451-L | C75: 0.002 | D75: 8e-05 | E75: 86400000 | G75: 1 | W75: 8 | X75: Duty cycle up/down button for each of the loads
A76: 76 | B76: CS455-L/456-L | C76: 0.002 | D76: 8e-05 | E76: 86400000 | G76: 1 | W76: 9 | X76: Link to SCWin so that Power Budget is Automatic, or have SCWin take values from work sheet.
A77: 77 | B77: CS475/476/477 | C77: 0.014 | D77: 0.0047 | E77: 180000 | G77: 1 | W77: 10 | X77: Calculate Battery size needed for backup desired, and solar panel for hours of sun at site.
A78: 78 | B78: CS547A-L | C78: 0.0025 | D78: 0 | E78: 86400000 | G78: 1 | W78: 11 | X78: Cold Temp Winter Extreem temperature affect on battery.
A79: 79 | B79: CS616-L Active | C79: 0.065 | D79: 4.5e-05 | E79: 50 | G79: 1
A80: 80 | B80: CS616-L*4*Mux16 | C80: 0.065 | D80: 4.5e-05 | E80: 3200 | G80: 1 | X80: Ideas for improvement:
A81: 81 | B81: CS625-L Active | C81: 0.065 | D81: 4.5e-05 | E81: 50 | G81: 1
A82: 82 | B82: CS650-L * 5 | C82: 0.00075 | D82: 0.000675 | E82: 0 | F82: 60 | G82: 1 | L82: =14400/3600 -> 4 | W82: 1 | X82: Add in Longitude, Latitude, Elevation calculations
A83: 83 | B83: CS650-L/CS655-L | C83: 0.00015 | D83: 0.000135 | E83: 0 | F83: 60 | G83: 1
A84: 84 | B84: CS700-L | C84: 1e-05 | D84: 1e-05 | E84: 86400000 | G84: 1 | W84: 3 | X84: Show a graph of backup days with a series of different sized batteries.
A85: 85 | B85: CS725 | C85: 0.18 | D85: 0.18 | E85: 86400000 | G85: 1 | W85: 4 | X85: Add SDM-CD8S
A86: 86 | B86: CSAT3 | C86: 0.067 | D86: 0.067 | E86: 86400000 | G86: 1 | W86: 5 | X86: Unlock some cells on first page for notes.
A87: 87 | B87: CSAT3 20 Hz | C87: 0.1 | D87: 0.1 | E87: 86400000 | G87: 1 | W87: 6 | X87: Redesign and set print area so that the report can be printed easily.
A88: 88 | B88: CSAT3 60 Hz | C88: 0.2 | D88: 0.2 | E88: 86400000 | G88: 1 | W88: 7 | X88: Add in feature to block out part of sky for obstructions (derate total hours even more for obstructions).
A89: 89 | B89: CSD3 | C89: 0.01 | D89: 0.01 | G89: 1 | W89: 8 | X89: Add a line for the name of the project
A90: 90 | B90: CSD3 1 watt heater | C90: 0.111 | D90: 0.0083 | F90: 300
A91: 91 | B91: CSD3 10 watt | C91: 1.111 | D91: 0.0083 | F91: 300
A92: 92 | B92: CSIM11 | C92: 0 | D92: 0 | E92: 86400000 | G92: 1
A93: 93 | B93: CVF4 Fan 5 watts | C93: 0.425 | D93: 0.425 | G93: 1
A94: 94 | B94: CVF4 Heater 5.5 watts | C94: 0.47 | D94: 0 | F94: 900
A95: 95 | B95: EC150 Preliminary | C95: 0.5 | D95: 0.5 | E95: 86400000 | G95: 1
A96: 96 | B96: EKO STR-21G Sun Tracker | C96: 0.833 | D96: 0.833 | G96: 1
A97: 97 | B97: GPS16-HVS | C97: 0.065 | D97: 0.065 | E97: 0 | F97: 10 | G97: 1
A98: 98 | B98: HC2S3-L | C98: 0.002 | D98: 0.0002 | E98: 60000 | G98: 1
A99: 99 | B99: HFP01-L | C99: 0 | D99: 0 | E99: 86400000 | G99: 1
A100: 100 | B100: HFP01SC | C100: 0.02 | D100: 0 | E100: 2 | G100: 1
A101: 101 | B101: HMP155A-L 2 second | C101: 0.003 | D101: 0 | E101: 2100 | G101: 1
A102: 102 | B102: HMP155A-L always on | C102: 0.003 | D102: 0.003 | E102: 86400000 | G102: 1
A103: 103 | B103: HMP50-L | C103: 0.002 | D103: 0 | E103: 200 | G103: 1
A104: 104 | B104: KH20 | C104: 0.015 | D104: 0.015 | E104: 86400000 | G104: 1
A105: 105 | B105: LI190SB-L | C105: 0 | D105: 0 | E105: 86400000 | G105: 1
A106: 106 | B106: LI200X-L | C106: 0 | D106: 0 | E106: 86400000 | G106: 1
A107: 107 | B107: LP02-L | C107: 0 | D107: 0 | G107: 1
A108: 108 | B108: LWS-L | C108: 0.0025 | D108: 0 | E108: 10
A109: 109 | B109: NR-LITE-L | C109: 0 | D109: 0 | E109: 86400000 | G109: 1
A110: 110 | B110: OBS-3+ 4-20 mA 10 s | C110: 0.045 | D110: 0 | E110: 10000 | G110: 1
A111: 111 | B111: OBS-3+ Vout 10 sec | C111: 0.015 | D111: 0 | E111: 10000 | G111: 1
A112: 112 | B112: OBS300 4-20 mA 10 s | C112: 0.045 | D112: 0 | E112: 10000 | G112: 1
A113: 113 | B113: OBS300 Vout 10 sec | C113: 0.015 | D113: 0 | E113: 10000 | G113: 1
A114: 114 | B114: OBS500 Burst 100 | C114: 0.04 | D114: 0 | E114: 40000 | G114: 1
A115: 115 | B115: OBS500 shutter 20 sec | C115: 0.12 | D115: 0.0002 | E115: 0 | F115: 20 | G115: 1
A116: 116 | B116: OBS-L | C116: 0.015 | D116: 0 | E116: 86400000 | G116: 1
A117: 117 | B117: PWS100 - SDI12 - dew heater | C117: 0.2 | D117: 0.2 | E117: 86400000 | G117: 1
A118: 118 | B118: PWS100 Hood Heater Only | C118: 14 | D118: 14 | E118: 86400000 | G118: 1
A119: 119 | B119: PWS100 w/DewHeat & SDI12 | C119: 1 | D119: 1 | E119: 86400000 | G119: 1
A120: 120 | B120: RA100 Light pole | C120: 0.25 | D120: 0 | E120: 86400000 | G120: 1
A121: 121 | B121: SR50A-L rs232 | C121: 0.25 | D121: 0.002 | E121: 300 | G121: 1
A122: 122 | B122: SR50A-L SDI-12 | C122: 0.25 | D122: 0.001 | E122: 400 | G122: 1
A123: 123 | B123: Stevens Hydra Probe II | C123: 0.03 | D123: 0.001 | E123: 30000
A124: 124 | B124: TB4-L | C124: 1e-05 | D124: 1e-05 | E124: 86400000 | G124: 1
A125: 125 | B125: TCAV-L | C125: 0 | D125: 0 | E125: 86400000 | G125: 1
A126: 126 | B126: TDR100 Measure | C126: 0.27 | D126: 0.002 | E126: 0 | F126: 4 | G126: 1
A127: 127 | B127: TE525-L | C127: 1e-05 | D127: 1e-05 | E127: 1 | G127: 1
A128: 128 | B128: TE525MM-L | C128: 1e-05 | D128: 1e-05 | E128: 1 | G128: 1
A129: 129 | B129: TE525WS-L | C129: 1e-05 | D129: 1e-05 | E129: 1 | G129: 1
A130: 130 | B130: UVS-B K&Z Heater | C130: 0.864 | D130: 0.075 | G130: 0.25
A131: =A130+1 -> 131 | B131: WINDSONIC1-L | C131: 0.015 | D131: 0.015 | E131: 86400000 | G131: 1
A132: 132 | B132: WINDSONIC4-L | C132: 0.023 | D132: 0.023 | E132: 86400000 | G132: 1
A133: 133 | B133: WXT520 | C133: 0.003 | D133: 0 | E133: 86400000 | F133: 0 | G133: 1
A134: 134 | B134: WXT520 Heater Only | C134: 1.1 | D134: 0 | E134: 0 | F134: 60 | G134: 1
A135: 135 | B135: Young 85000 | C135: 0.03 | D135: 0.001 | E135: 400 | G135: 1
A136: 136
A137: 137 | B137: Network Peripherals | C137: 0 | D137: 0 | E137: 0 | F137: 0 | G137: 0
A138: 138 | B138: -------------------------------- | C138: 0 | D138: 0 | E138: 0 | F138: 0 | G138: 0
A139: 139 | B139: NL100 | C139: 0.14 | D139: 0.14 | E139: 86400000 | F139: 6 | G139: 1
A140: 140 | B140: NL115 Card | C140: 0.023 | D140: 0.02 | E140: 86400000 | F140: 2 | G140: 1
A141: 141 | B141: NL115 Ethernet | C141: 0.02 | D141: 0.02 | E141: 86400000 | F141: 6 | G141: 1
A142: 142 | B142: NL115 Ethernet Sleep | C142: 0.02 | D142: 0.002 | E142: 86400000 | G142: 1
A143: 143 | B143: NL120 | C143: 0.02 | D143: 0.02 | E143: 86400000 | G143: 1
A144: 144 | B144: NL200 Always On | C144: 0.05 | D144: 0.002 | E144: 86400000 | G144: 1
A145: 145 | B145: NL200 IPNetPower | C145: 0.05 | D145: 0.002 | E145: 0 | F145: 300 | G145: 1
A146: 146 | B146: NL201 Always on | C146: 0.05 | D146: 0.05 | G146: 1
A147: 147 | B147: NL240 | C147: 0.056 | D147: 0.05 | E147: 86400000 | G147: 1
A148: 148 | B148: NL240 Low Power mode | C148: 0.04 | D148: 0.0061 | E148: 86400000 | G148: 1
A149: 149 | B149: NP1 | C149: 1 | D149: 2 | E149: 3 | F149: 4 | G149: 0.05
A150: 150 | B150: NP2 | C150: 2 | D150: 3 | E150: 4 | F150: 5 | G150: 0.06
A151: 151 | B151: NP3 | C151: 3 | D151: 4 | E151: 5 | F151: 6 | G151: 0.07
A152: 152 | B152: NP4 | C152: 4 | D152: 5 | E152: 6 | F152: 7 | G152: 0.08
A153: 153 | B153: NP5 | C153: 5 | D153: 6 | E153: 7 | F153: 8 | G153: 0.09
A154: 154
A155: 155 | B155: Peripherals | C155: 0 | D155: 0 | E155: 0 | F155: 0 | G155: 0
A156: 156 | B156: -------------------------------- | C156: 0 | D156: 0 | E156: 0 | F156: 0 | G156: 0
A157: 157 | B157: A547 | C157: 7e-06 | D157: 7e-06 | E157: 86400000 | G157: 1
A158: 158 | B158: A6REL-12 active relay | C158: 0.03 | D158: 6e-06 | E158: 0 | F158: 30 | G158: 1
A159: 159 | B159: AM16/32(A)(B) | C159: 0.006 | D159: 0.00021 | E159: 0 | F159: 60 | G159: 1
A160: 160 | B160: AM25T Active | C160: 0.001 | D160: 0.0005 | E160: 0 | F160: 4 | G160: 1
A161: 161 | B161: AVW200 * 16 | C161: 0.04 | D161: 0.0003 | E161: 32000 | G161: 1
A162: 162 | B162: AVW200 * 32 | C162: 0.04 | D162: 0.0003 | E162: 64000 | G162: 1
A163: 163 | B163: AVW200 * 4 | C163: 0.04 | D163: 0.0003 | E163: 8000 | G163: 1
A164: 164 | B164: AVW200 * 8 | C164: 0.04 | D164: 0.0003 | E164: 16000 | G164: 1
A165: 165 | B165: AVW200 1 Sensor 2 se | C165: 0.04 | D165: 0.0003 | E165: 2000 | G165: 1
A166: 166 | B166: AVW206 1 sens 8 sec Radio | C166: 0.00075 | D166: 0.00075 | E166: 2000 | G166: 1
A167: 167 | B167: AVW206 2 Sens .5 sec radio | C167: 0.044 | D167: 0.0043 | E167: 4000 | G167: 1
A168: 168 | B168: CD294 Active | C168: 0.0055 | D168: 4e-05 | E168: 0 | F168: 30 | G168: 1
A169: 169 | B169: CH200/PS200 | C169: 0.0004 | D169: 0.0004 | E169: 86400000 | G169: 1
A170: 170 | B170: CR1000KD A no light | C170: 0.007 | D170: 0.0001 | E170: 0 | F170: 45 | G170: 1
A171: 171 | B171: CR1000KD A w/light | C171: 0.1 | D171: 0.0001 | E171: 0 | F171: 35 | G171: 1
A172: 172 | B172: CR1000KD Active | C172: 0.015 | D172: 0.0001 | E172: 0 | F172: 45 | G172: 1
A173: 173 | B173: CURS100 | C173: 0.02 | D173: 0.004 | E173: 15 | G173: 1
A174: 174 | B174: LLAC4 | C174: 0.0001 | D174: 0.0001 | E174: 86400000 | G174: 1
A175: 175 | B175: MorningStar | C175: 0.01 | D175: 0.01 | E175: 86400000 | G175: 1
A176: 176
A177: 177 | B177: Communications | C177: 0 | D177: 0 | E177: 0 | F177: 0 | G177: 0
A178: 178 | B178: -------------------------------- | C178: 0 | D178: 0 | E178: 0 | F178: 0 | G178: 0
A179: 179 | B179: CFM100 Active | C179: 0.02 | D179: 0.0008 | E179: 20 | F179: 1 | G179: 1
A180: 180 | B180: COM220 A | C180: 0.03 | D180: 0.00012 | F180: 300 | G180: 1
A181: 181 | B181: COM310 A | C181: 0.14 | D181: 0.0001 | F181: 30 | G181: 1
A182: 182 | B182: FC100 Fiber Optic converter | C182: 0.005 | D182: 0 | E182: 8640000 | G182: 1
A183: 183 | B183: MD485 | C183: 0.002 | D183: 0.0012 | E183: 200 | G183: 1
A184: 184 | B184: MD485 Transmit | C184: 0.007 | D184: 0.0012 | E184: 0 | F184: 10 | G184: 1
A185: 185 | B185: Nano | C185: 0.166 | D185: 0.1 | E185: 10000 | G185: 1
A186: 186 | B186: RavenXT 9 hrs/day | C186: 0.12 | D186: 0 | E186: 0 | G186: 0.38
A187: 187 | B187: RavenXTG | C187: 0.12 | D187: 0.05 | E187: 0 | F187: 300 | G187: 1
A188: 188 | B188: RavenXTV | C188: 0.12 | D188: 0.05 | E188: 0 | F188: 30 | G188: 1
A189: 189 | B189: RavenXTV 10 min Cycle power | C189: 0.12 | D189: 0 | E189: 0 | F189: 600 | G189: 1
A190: 190 | B190: RF300/304 Tx | C190: 1.5 | D190: 0.05 | E190: 0 | F190: 5 | G190: 1
A191: 191 | B191: RF310 B AC | C191: 2 | D191: 2 | E191: 0 | F191: 60 | G191: 1
A192: 192 | B192: RF310M | C192: 0.035 | D192: 0.035 | E192: 0 | F192: 5 | G192: 1
A193: 193 | B193: RF31X RADIOS Rx | C193: 0.035 | D193: 0.035 | E193: 0 | F193: 0 | G193: 1
A194: 194 | B194: RF31X RADIOS Tx1 | C194: 0.8 | D194: 0.035 | E194: 0 | F194: 1 | G194: 1
A195: =A194+1 -> 195 | B195: RF31X RADIOS Tx5 | C195: 1.5 | D195: 0.035 | E195: 0 | F195: 1 | G195: 1
A196: 196 | B196: RF320 | C196: 1.2 | D196: 0.025 | F196: 0.5 | G196: 1
A197: 197 | B197: RF401 0.5 sec | C197: 0.075 | D197: 0.004 | E197: 0 | F197: 5 | G197: 1
A198: 198 | B198: RF401 1 Sec Header | C198: 0.075 | D198: 0.002 | E198: 0 | F198: 5 | G198: 1
A199: 199 | B199: RF401 8 Sec Header | C199: 0.075 | D199: 0.0004 | E199: 0 | F199: 5 | G199: 1
A200: 200 | B200: RF401 Always On | C200: 0.075 | D200: 0.024 | E200: 0 | F200: 5 | G200: 1
... 300 more rows

Sheet Alphabetical
B1: Device Name | C1: Average Active Current (Amps) | D1: Average Quiescent Current (Amps) | E1: mS Active/Scan Interval | F1: Seconds/Comm Interval | G1: Duty Cycle
A2: 1 | I2: Leave this row blank!!!!
A3: =A2+1 -> 2 | B3: 014A | C3: 1e-05 | D3: 1e-05 | E3: 86400000000 | G3: 1
A4: 3 | B4: 024A-L | C4: 0.00025 | D4: 0.00025 | E4: 86400000 | G4: 1
A5: 4 | B5: 03001-L/03002-L | C5: 0.00025 | D5: 0.00025 | E5: 86400000 | G5: 1
A6: 5 | B6: 034B-L | C6: 0.00025 | D6: 0.00025 | E6: 86400000 | G6: 1
A7: 6 | B7: 05103-45-L Alpine | C7: 0.00025 | D7: 0.00025 | E7: 86400000 | G7: 1
A8: 7 | B8: 05103-L | C8: 0.00025 | D8: 0.00025 | E8: 86400000 | G8: 1
A9: 8 | B9: 05106-L | C9: 0.00025 | D9: 0.00025 | E9: 86400000 | G9: 1
A10: 9 | B10: 05305-L | C10: 0.00025 | D10: 0.00025 | E10: 86400000 | G10: 1
A11: 10 | B11: 083E-L | C11: 0.004 | D11: 0.004 | E11: 86400000 | G11: 1
A12: 11 | B12: 092-L | C12: 0.01 | D12: 0 | E12: 10000 | G12: 1
A13: 12 | B13: 105T-L | C13: 0 | D13: 0 | E13: 86400000 | G13: 1
A14: 13 | B14: 107-L | C14: 0.00025 | D14: 0 | E14: 2 | G14: 1
A15: 14 | B15: 108-L | C15: 0.00025 | D15: 0 | E15: 2 | G15: 1
A16: 15 | B16: 109-L | C16: 0.00025 | D16: 0 | E16: 2 | G16: 1
A17: 16 | B17: 127TC | C17: 0 | D17: 0 | E17: 86400000 | G17: 1
A18: 17 | B18: 223-L | C18: 0.00025 | D18: 0 | E18: 2 | G18: 1
A19: 18 | B19: 227-L | C19: 0.00025 | D19: 0 | E19: 2 | G19: 1
A20: 19 | B20: 229-L | C20: 0.00025 | D20: 0 | E20: 2 | G20: 1
A21: 20 | B21: 237-L | C21: 0.00025 | D21: 0 | E21: 2 | G21: 1
A22: 21 | B22: 385-L Non Heated | C22: 0.0006 | D22: 0.0006 | E22: 86400000 | G22: 1
A23: 22 | B23: 43347-L Temp | C23: 0.0025 | D23: 0 | E23: 20 | G23: 1
A24: 23 | B24: 43502-L Ventilator | C24: 0.5 | D24: 0 | E24: 86400000 | G24: 1
A25: 24 | B25: 52202-L 12 VDC | C25: 0.36 | D25: 0 | E25: 0 | G25: 0.5
A26: 25 | B26: 52202-L 24 VDC | C26: 0.72 | D26: 0 | E26: 86400000 | G26: 0.5
A27: 26 | B27: A547 | C27: 7e-06 | D27: 7e-06 | E27: 86400000 | G27: 1
A28: 27 | B28: A6REL-12 active relay | C28: 0.03 | D28: 6e-06 | E28: 0 | F28: 30 | G28: 1
A29: 28 | B29: AM16/32(A)(B) | C29: 0.006 | D29: 0.00021 | E29: 0 | F29: 60 | G29: 1
A30: 29 | B30: AM25T Active | C30: 0.001 | D30: 0.0005 | E30: 0 | F30: 4 | G30: 1
A31: 30 | B31: ASPTC-L | C31: 0.26 | D31: 0.26 | E31: 86400000 | G31: 1
A32: 31 | B32: AVW200 * 16 | C32: 0.04 | D32: 0.0003 | E32: 32000 | G32: 1
A33: 32 | B33: AVW200 * 32 | C33: 0.04 | D33: 0.0003 | E33: 64000 | G33: 1
A34: 33 | B34: AVW200 * 4 | C34: 0.04 | D34: 0.0003 | E34: 8000 | G34: 1
A35: 34 | B35: AVW200 * 8 | C35: 0.04 | D35: 0.0003 | E35: 16000 | G35: 1
A36: 35 | B36: AVW200 1 Sensor 2 se | C36: 0.04 | D36: 0.0003 | E36: 2000 | G36: 1
A37: 36 | B37: AVW206 1 sens 8 sec Radio | C37: 0.00075 | D37: 0.00075 | E37: 2000 | G37: 1
A38: 37 | B38: AVW206 2 Sens .5 sec radio | C38: 0.044 | D38: 0.0043 | E38: 4000 | G38: 1
A39: 38 | B39: CC5MPX | C39: 0.25 | D39: 0.001 | E39: 90000 | F39: 90 | G39: 1
A40: 39 | B40: CC5MPX Heater | C40: 1.2 | D40: 0 | E40: 0 | F40: 300 | G40: 1
A41: 40 | B41: CD294 Active | C41: 0.0055 | D41: 4e-05 | E41: 0 | F41: 30 | G41: 1
A42: 41 | B42: CDM-VW300 | C42: 0.115 | D42: 0.115 | E42: 86400000 | G42: 1
A43: 42 | B43: CDM-VW305 | C43: 0.19 | D43: 0.19 | E43: 86400000 | G43: 1
A44: 43 | B44: CE4 * 16 (mux) | C44: 0.075 | D44: 0 | E44: 480000 | G44: 1
A45: 44 | B45: CE4 1 sensor | C45: 0.05 | D45: 0 | E45: 30000 | G45: 1
A46: 45 | B46: CE8 1 sensor | C46: 0.05 | D46: 0 | E46: 30000 | G46: 1
A47: 46 | B47: CE8 2 sensors | C47: 0.075 | D47: 0 | E47: 60000 | G47: 1
A48: 47 | B48: CE8*6 | C48: 0.075 | D48: 0 | E48: 180000 | G48: 1
A49: 48 | B49: CFM100 Active | C49: 0.02 | D49: 0.0008 | E49: 20 | F49: 1 | G49: 1
A50: 49 | B50: CH200/PS200 | C50: 0.0004 | D50: 0.0004 | E50: 86400000 | G50: 1
A51: 50 | B51: CMP3 | C51: 0 | D51: 0 | E51: 86400000 | G51: 1
A52: 51 | B52: CNF4 Heater | C52: 0.9 | D52: 0 | E52: 0 | G52: 0.7
A53: 52 | B53: CNR1 Heater | C53: 0.5 | D53: 0 | E53: 86400000 | F53: 30 | G53: 1
A54: 53 | B54: COM220 A | C54: 0.03 | D54: 0.00012 | F54: 300 | G54: 1
A55: 54 | B55: COM310 A | C55: 0.14 | D55: 0.0001 | F55: 30 | G55: 1
A56: 55 | B56: CR1000 | C56: 0.01 | D56: 0.0006 | E56: 250 | G56: 1
A57: 56 | B57: CR1000KD A no light | C57: 0.007 | D57: 0.0001 | E57: 0 | F57: 45 | G57: 1
A58: 57 | B58: CR1000KD A w/light | C58: 0.1 | D58: 0.0001 | E58: 0 | F58: 35 | G58: 1
A59: 58 | B59: CR1000KD Active | C59: 0.015 | D59: 0.0001 | E59: 0 | F59: 45 | G59: 1
A60: 59 | B60: CR10X | C60: 0.045 | D60: 0.001 | E60: 45 | G60: 1
A61: 60 | B61: CR200X | C61: 0.003 | D61: 0.0002 | E61: 250 | G61: 1
A62: 61 | B62: CR206 1 Sec Radio | C62: 0.0022 | D62: 0.0022 | E62: 86400000 | G62: 1
A63: 62 | B63: CR206X 8 Sec | C63: 0.003 | D63: 0.00045 | E63: 150 | G63: 1
A64: 63 | B64: CR206X Always on | C64: 0.027 | D64: 0.027 | E64: 86400000000 | G64: 1
A65: 64 | B65: CR216 1 sec | C65: 0.004 | D65: 0 | E65: 86400000 | G65: 1
A66: 65 | B66: CR216 8 Sec | C66: 0.0008 | D66: 0 | E66: 86400000 | G66: 1
A67: =A66+1 -> 66 | B67: CR216 Radio always on | C67: 0.036 | D67: 0 | E67: 86400000 | G67: 1
A68: 67 | B68: CR3000 | C68: 0.015 | D68: 0.002 | E68: 100 | G68: 1
A69: 68 | B69: CR5000 | C69: 0.2 | D69: 0.0015 | E69: 64000 | G69: 1
A70: 69 | B70: CR5000 Card Active | C70: 0.263 | D70: 0.063 | E70: 50 | G70: 1
A71: 70 | B71: CR6 | C71: 0.1 | D71: 0.06 | G71: 0.5
A72: 71 | B72: CR850 Light | C72: 0.04 | D72: 0 | E72: 0 | F72: 35 | G72: 1
A73: 72 | B73: CR8XX | C73: 0.01 | D73: 0.0006 | E73: 100 | G73: 1
A74: 73 | B74: CR9000X/9041/9011/9032 | C74: 0.485 | D74: 0.41 | E74: 86400000 | G74: 1
A75: 74 | B75: CR9050 | C75: 0.015 | D75: 0 | E75: 86400000 | G75: 1
A76: 75 | B76: CR9051 | C76: 0.015 | D76: 0 | E76: 86400000 | G76: 1
A77: 76 | B77: CR9052DC | C77: 0.5 | D77: 0.005 | E77: 86400000 | G77: 1
A78: 77 | B78: CR9052IEPE | C78: 0.84 | D78: 0.005 | E78: 86400000 | G78: 1
A79: 78 | B79: CR9055 | C79: 0.015 | D79: 0 | E79: 86400000 | G79: 1
A80: 79 | B80: CR9055E | C80: 0.015 | D80: 0 | E80: 86400000 | G80: 1
A81: 80 | B81: CR9058E | C81: 0.36 | D81: 0.005 | E81: 86400000 | G81: 1
A82: 81 | B82: CR9060 | C82: 0.125 | D82: 0.108 | E82: 86400000 | G82: 1
A83: 82 | B83: CR9071 | C83: 0.025 | D83: 0.025 | E83: 86400000 | G83: 1
A84: 83 | B84: CRX000 RS232 | C84: 0.02 | D84: 0 | E84: 200 | G84: 1
A85: 84 | B85: CS100 A | C85: 0.003 | D85: 1e-06 | E85: 0 | F85: 45 | G85: 1
A86: 85 | B86: CS106 Active | C86: 0.004 | D86: 1e-06 | E86: 10 | G86: 1
A87: 86 | B87: CS110 1 sec scan | C87: 0.06 | D87: 0.06 | E87: 86400000 | G87: 1
A88: 87 | B88: CS110 select scan | C88: 0.75 | D88: 0.0006 | E88: 79 | G88: 1
A89: 88 | B89: CS115A | C89: 0.008 | D89: 1e-06 | E89: 2 | G89: 1
A90: 89 | B90: CS120 | C90: 0.1 | D90: 0.008 | E90: 86400000 | G90: 1
A91: 90 | B91: CS120 Dew Heaters | C91: 0.08 | D91: 0 | E91: 0 | F91: 600 | G91: 1
A92: 91 | B92: CS210 | C92: 0.0005 | D92: 0.0005 | E92: 864000 | G92: 1
A93: 92 | B93: CS215-L A | C93: 0.0017 | D93: 7e-05 | E93: 150 | G93: 1
A94: 93 | B94: CS215-L*25 | C94: 0.0425 | D94: 0.00175 | E94: 15000 | G94: 1
A95: 94 | B95: CS300-L | C95: 0 | D95: 0 | E95: 86400000 | G95: 1
A96: 95 | B96: CS410-L | C96: 0.22222 | D96: 0 | E96: 86400000 | G96: 1
A97: 96 | B97: CS450-L 1 SEC Measure | C97: 0.04 | D97: 0.04 | E97: 86400000 | G97: 1
A98: 97 | B98: CS450-L/451-L | C98: 0.002 | D98: 8e-05 | E98: 86400000 | G98: 1
A99: 98 | B99: CS455-L/456-L | C99: 0.002 | D99: 8e-05 | E99: 86400000 | G99: 1
A100: 99 | B100: CS475/476/477 | C100: 0.014 | D100: 0.0047 | E100: 180000 | G100: 1
A101: 100 | B101: CS547A-L | C101: 0.0025 | D101: 0 | E101: 86400000 | G101: 1
A102: 101 | B102: CS616-L Active | C102: 0.065 | D102: 4.5e-05 | E102: 50 | G102: 1
A103: 102 | B103: CS616-L*4*Mux16 | C103: 0.065 | D103: 4.5e-05 | E103: 3200 | G103: 1
A104: 103 | B104: CS625-L Active | C104: 0.065 | D104: 4.5e-05 | E104: 50 | G104: 1
A105: 104 | B105: CS650-L * 5 | C105: 0.00075 | D105: 0.000675 | E105: 0 | F105: 60 | G105: 1
A106: 105 | B106: CS650-L/CS655-L | C106: 0.00015 | D106: 0.000135 | E106: 0 | F106: 60 | G106: 1
A107: 106 | B107: CS700-L | C107: 1e-05 | D107: 1e-05 | E107: 86400000 | G107: 1
A108: 107 | B108: CS725 | C108: 0.18 | D108: 0.18 | E108: 86400000 | G108: 1
A109: 108 | B109: CSAT3 | C109: 0.067 | D109: 0.067 | E109: 86400000 | G109: 1
A110: 109 | B110: CSAT3 20 Hz | C110: 0.1 | D110: 0.1 | E110: 86400000 | G110: 1
A111: 110 | B111: CSAT3 60 Hz | C111: 0.2 | D111: 0.2 | E111: 86400000 | G111: 1
A112: 111 | B112: CSD3 | C112: 0.01 | D112: 0.01 | G112: 1
A113: 112 | B113: CSD3 1 watt heater | C113: 0.111 | D113: 0.0083 | F113: 300
A114: 113 | B114: CSD3 10 watt | C114: 1.111 | D114: 0.0083 | F114: 300
A115: 114 | B115: CSIM11 | C115: 0 | D115: 0 | E115: 86400000 | G115: 1
A116: 115 | B116: CURS100 | C116: 0.02 | D116: 0.004 | E116: 15 | G116: 1
A117: 116 | B117: CVF4 Fan 5 watts | C117: 0.425 | D117: 0.425 | G117: 1
A118: 117 | B118: CVF4 Heater 5.5 watts | C118: 0.47 | D118: 0 | F118: 900
A119: 118 | B119: DCDC18R | C119: 0.004 | D119: 0.004 | E119: 86400000 | G119: 1
A120: 119 | B120: EasyAg II | C120: 0.1 | D120: 0.00025 | E120: 30000 | G120: 1
A121: 120 | B121: EC150 Preliminary | C121: 0.5 | D121: 0.5 | E121: 86400000 | G121: 1
A122: 121 | B122: EKO STR-21G Sun Tracker | C122: 0.833 | D122: 0.833 | G122: 1
A123: 122 | B123: ET107 w/o RS232 | C123: 0.016 | D123: 0.001 | E123: 200 | G123: 1
A124: 123 | B124: ET107 w/RS232 | C124: 0.028 | D124: 0.016 | E124: 200 | G124: 1
A125: 124 | B125: FC100 Fiber Optic converter | C125: 0.005 | D125: 0 | E125: 8640000 | G125: 1
A126: 125 | B126: Geonor Precip | C126: 0.05 | D126: 0.05 | E126: 86400000 | G126: 1
A127: 126 | B127: GPS16-HVS | C127: 0.065 | D127: 0.065 | E127: 0 | F127: 10 | G127: 1
A128: 127 | B128: HC2S3-L | C128: 0.002 | D128: 0.0002 | E128: 60000 | G128: 1
A129: 128 | B129: HFP01-L | C129: 0 | D129: 0 | E129: 86400000 | G129: 1
A130: 129 | B130: HFP01SC | C130: 0.02 | D130: 0 | E130: 2 | G130: 1
A131: =A130+1 -> 130 | B131: HMP155A-L 2 second | C131: 0.003 | D131: 0 | E131: 2100 | G131: 1
A132: 131 | B132: HMP155A-L always on | C132: 0.003 | D132: 0.003 | E132: 86400000 | G132: 1
A133: 132 | B133: HMP50-L | C133: 0.002 | D133: 0 | E133: 200 | G133: 1
A134: 133 | B134: Hydro Wiper D | C134: 0.09 | D134: 5e-06 | E134: 10000 | F134: 10 | G134: 1
A135: 134 | B135: KH20 | C135: 0.015 | D135: 0.015 | E135: 86400000 | G135: 1
A136: 135 | B136: LI190SB-L | C136: 0 | D136: 0 | E136: 86400000 | G136: 1
A137: 136 | B137: LI200X-L | C137: 0 | D137: 0 | E137: 86400000 | G137: 1
A138: 137 | B138: LLAC4 | C138: 0.0001 | D138: 0.0001 | E138: 86400000 | G138: 1
A139: 138 | B139: Load 1 Amp | C139: 1 | D139: 1 | G139: 1
A140: 139 | B140: Load1 500 mA | C140: 0.5 | D140: 0.5 | G140: 1
A141: 140 | B141: LP02-L | C141: 0 | D141: 0 | G141: 1
A142: 141 | B142: LT420 Analog Level Transmitter | C142: 0.02 | D142: 0.004 | E142: 50 | G142: 1
A143: 142 | B143: LWS-L | C143: 0.0025 | D143: 0 | E143: 10
A144: 143 | B144: mA 1 | C144: 0.001 | D144: 0.001 | G144: 1
A145: 144 | B145: mA 10 | C145: 0.01 | D145: 0.01 | G145: 1
A146: 145 | B146: mA 100 | C146: 0.1 | D146: 0.1 | G146: 1
A147: 146 | B147: mA 2 | C147: 0.002 | D147: 0.002 | G147: 1
A148: 147 | B148: mA 20 | C148: 0.02 | D148: 0.02 | G148: 1
A149: 148 | B149: mA 250 | C149: 0.25 | D149: 0.25 | F149: 3600
A150: 149 | B150: mA 5 | C150: 0.005 | D150: 0.005 | G150: 1
A151: 150 | B151: mA 50 | C151: 0.05 | D151: 0.05 | G151: 1
A152: 151 | B152: MD485 | C152: 0.002 | D152: 0.0012 | E152: 200 | G152: 1
A153: 152 | B153: MD485 Transmit | C153: 0.007 | D153: 0.0012 | E153: 0 | F153: 10 | G153: 1
A154: 153 | B154: MorningStar | C154: 0.01 | D154: 0.01 | E154: 86400000 | G154: 1
A155: 154 | B155: Nano | C155: 0.166 | D155: 0.1 | E155: 10000 | G155: 1
A156: 155 | B156: NL100 | C156: 0.14 | D156: 0.14 | E156: 86400000 | F156: 6 | G156: 1
A157: 156 | B157: NL115 Card | C157: 0.023 | D157: 0.02 | E157: 86400000 | F157: 2 | G157: 1
A158: 157 | B158: NL115 Ethernet | C158: 0.02 | D158: 0.02 | E158: 86400000 | F158: 6 | G158: 1
A159: 158 | B159: NL115 Ethernet Sleep | C159: 0.02 | D159: 0.002 | E159: 86400000 | G159: 1
A160: 159 | B160: NL120 | C160: 0.02 | D160: 0.02 | E160: 86400000 | G160: 1
A161: 160 | B161: NL200 Always On | C161: 0.05 | D161: 0.002 | E161: 86400000 | G161: 1
A162: 161 | B162: NL200 IPNetPower | C162: 0.05 | D162: 0.002 | E162: 0 | F162: 300 | G162: 1
A163: 162 | B163: NL201 Always on | C163: 0.05 | D163: 0.05 | G163: 1
A164: 163 | B164: NL240 | C164: 0.056 | D164: 0.05 | E164: 86400000 | G164: 1
A165: 164 | B165: NL240 Low Power mode | C165: 0.04 | D165: 0.0061 | E165: 86400000 | G165: 1
A166: 165 | B166: NP1 | C166: 1 | D166: 2 | E166: 3 | F166: 4 | G166: 0.05
A167: 166 | B167: NP2 | C167: 2 | D167: 3 | E167: 4 | F167: 5 | G167: 0.06
A168: 167 | B168: NP3 | C168: 3 | D168: 4 | E168: 5 | F168: 6 | G168: 0.07
A169: 168 | B169: NP4 | C169: 4 | D169: 5 | E169: 6 | F169: 7 | G169: 0.08
A170: 169 | B170: NP5 | C170: 5 | D170: 6 | E170: 7 | F170: 8 | G170: 0.09
A171: 170 | B171: NR-LITE-L | C171: 0 | D171: 0 | E171: 86400000 | G171: 1
A172: 171 | B172: OBS-3+ 4-20 mA 10 s | C172: 0.045 | D172: 0 | E172: 10000 | G172: 1
A173: 172 | B173: OBS-3+ Vout 10 sec | C173: 0.015 | D173: 0 | E173: 10000 | G173: 1
A174: 173 | B174: OBS300 4-20 mA 10 s | C174: 0.045 | D174: 0 | E174: 10000 | G174: 1
A175: 174 | B175: OBS300 Vout 10 sec | C175: 0.015 | D175: 0 | E175: 10000 | G175: 1
A176: 175 | B176: OBS500 Burst 100 | C176: 0.04 | D176: 0 | E176: 40000 | G176: 1
A177: 176 | B177: OBS500 shutter 20 sec | C177: 0.12 | D177: 0.0002 | E177: 0 | F177: 20 | G177: 1
A178: 177 | B178: OBS-L | C178: 0.015 | D178: 0 | E178: 86400000 | G178: 1
A179: 178 | B179: PWS100 - SDI12 - dew heater | C179: 0.2 | D179: 0.2 | E179: 86400000 | G179: 1
A180: 179 | B180: PWS100 Hood Heater Only | C180: 14 | D180: 14 | E180: 86400000 | G180: 1
A181: 180 | B181: PWS100 w/DewHeat & SDI12 | C181: 1 | D181: 1 | E181: 86400000 | G181: 1
A182: 181 | B182: RA100 Light pole | C182: 0.25 | D182: 0 | E182: 86400000 | G182: 1
A183: 182 | B183: RavenXT 9 hrs/day | C183: 0.12 | D183: 0 | E183: 0 | G183: 0.38
A184: 183 | B184: RavenXTG | C184: 0.12 | D184: 0.05 | E184: 0 | F184: 300 | G184: 1
A185: 184 | B185: RavenXTV | C185: 0.12 | D185: 0.05 | E185: 0 | F185: 30 | G185: 1
A186: 185 | B186: RavenXTV 10 min Cycle power | C186: 0.12 | D186: 0 | E186: 0 | F186: 600 | G186: 1
A187: 186 | B187: RF300/304 Tx | C187: 1.5 | D187: 0.05 | E187: 0 | F187: 5 | G187: 1
A188: 187 | B188: RF310 B AC | C188: 2 | D188: 2 | E188: 0 | F188: 60 | G188: 1
A189: 188 | B189: RF310M | C189: 0.035 | D189: 0.035 | E189: 0 | F189: 5 | G189: 1
A190: 189 | B190: RF31X RADIOS Rx | C190: 0.035 | D190: 0.035 | E190: 0 | F190: 0 | G190: 1
A191: 190 | B191: RF31X RADIOS Tx1 | C191: 0.8 | D191: 0.035 | E191: 0 | F191: 1 | G191: 1
A192: 191 | B192: RF31X RADIOS Tx5 | C192: 1.5 | D192: 0.035 | E192: 0 | F192: 1 | G192: 1
A193: 192 | B193: RF320 | C193: 1.2 | D193: 0.025 | F193: 0.5 | G193: 1
A194: 193 | B194: RF401 0.5 sec | C194: 0.075 | D194: 0.004 | E194: 0 | F194: 5 | G194: 1
A195: =A194+1 -> 194 | B195: RF401 1 Sec Header | C195: 0.075 | D195: 0.002 | E195: 0 | F195: 5 | G195: 1
A196: 195 | B196: RF401 8 Sec Header | C196: 0.075 | D196: 0.0004 | E196: 0 | F196: 5 | G196: 1
A197: 196 | B197: RF401 Always On | C197: 0.075 | D197: 0.024 | E197: 0 | F197: 5 | G197: 1
A198: 197 | B198: RF401 Transmit | C198: 0.075 | D198: 0 | E198: 0 | F198: 5 | G198: 1
A199: 198 | B199: RF416 (415) 0.5 sec | C199: 0.076 | D199: 0.0055 | E199: 0 | F199: 10 | G199: 1
A200: 199 | B200: RF416 (415) 1 Sec Header | C200: 0.076 | D200: 0.0028 | E200: 0 | F200: 10 | G200: 1
... 801 more rows

Sheet All
B1: Device Name | C1: Average Active Current (Amps) | D1: Average Quiescent Current (Amps) | E1: mS Active/Scan Interval | F1: Seconds/Comm Interval | G1: Duty Cycle
A2: 1 | I2: Leave this row blank!!!!!
A3: =A2+1 -> 2 | B3: 014A | C3: 1e-05 | D3: 1e-05 | E3: 86400000000 | G3: 1
A4: =A3+1 -> 3 | B4: 024A-L | C4: 0.00025 | D4: 0.00025 | E4: 86400000 | G4: 1
A5: 4 | B5: 03001-L/03002-L | C5: 0.00025 | D5: 0.00025 | E5: 86400000 | G5: 1
A6: 5 | B6: 034A-L | C6: 0.00025 | D6: 0.00025 | E6: 86400000 | G6: 1
A7: 6 | B7: 034B-L | C7: 0.00025 | D7: 0.00025 | E7: 86400000 | G7: 1
A8: 7 | B8: 05103-45-L Alpine | C8: 0.00025 | D8: 0.00025 | E8: 86400000 | G8: 1
A9: 8 | B9: 05103-L | C9: 0.00025 | D9: 0.00025 | E9: 86400000 | G9: 1
A10: 9 | B10: 05106-L | C10: 0.00025 | D10: 0.00025 | E10: 86400000 | G10: 1
A11: 10 | B11: 05305-L | C11: 0.00025 | D11: 0.00025 | E11: 86400000 | G11: 1
A12: 11 | B12: 083E-L | C12: 0.004 | D12: 0.004 | E12: 86400000 | G12: 1
A13: 12 | B13: 092-L | C13: 0.01 | D13: 0 | E13: 10000 | G13: 1
A14: 13 | B14: 105T-L | C14: 0 | D14: 0 | E14: 86400000 | G14: 1
A15: 14 | B15: 107-L | C15: 0.00025 | D15: 0 | E15: 2 | G15: 1
A16: 15 | B16: 107-L*93 | C16: 0.001 | D16: 0 | E16: 186 | G16: 1
A17: 16 | B17: 108-L | C17: 0.00025 | D17: 0 | E17: 2 | G17: 1
A18: 17 | B18: 109-L | C18: 0.00025 | D18: 0 | E18: 2 | G18: 1
A19: 18 | B19: 127TC | C19: 0 | D19: 0 | E19: 86400000 | G19: 1
A20: 19 | B20: 223-L | C20: 0.00025 | D20: 0 | E20: 2 | G20: 1
A21: 20 | B21: 227-L | C21: 0.00025 | D21: 0 | E21: 2 | G21: 1
A22: 21 | B22: 229-L | C22: 0.00025 | D22: 0 | E22: 2 | G22: 1
A23: 22 | B23: 237-L | C23: 0.00025 | D23: 0 | E23: 2 | G23: 1
A24: 23 | B24: 385-L Non Heated | C24: 0.0006 | D24: 0.0006 | E24: 86400000 | G24: 1
A25: 24 | B25: 43347-L Temp | C25: 0.0025 | D25: 0 | E25: 20 | G25: 1
A26: 25 | B26: 43502-L Ventilator | C26: 0.5 | D26: 0 | E26: 86400000 | G26: 1
A27: 26 | B27: 52202-L 12 VDC | C27: 0.36 | D27: 0 | E27: 0 | G27: 0.5
A28: 27 | B28: 52202-L 24 VDC | C28: 0.72 | D28: 0 | E28: 86400000 | G28: 0.5
A29: 28 | B29: A547 | C29: 7e-06 | D29: 7e-06 | E29: 86400000 | G29: 1
A30: 29 | B30: A6REL-12 active relay | C30: 0.03 | D30: 6e-06 | E30: 0 | F30: 30 | G30: 1
A31: 30 | B31: AM16/32(A)(B) | C31: 0.006 | D31: 0.00021 | E31: 0 | F31: 60 | G31: 1
A32: 31 | B32: AM25T Active | C32: 0.001 | D32: 0.0005 | E32: 0 | F32: 4 | G32: 1
A33: 32 | B33: ASPTC-L | C33: 0.26 | D33: 0.26 | E33: 86400000 | G33: 1
A34: 33 | B34: AVW1 Temp | C34: 0.0004 | D34: 0.0004 | E34: 86400000 | G34: 1
A35: 34 | B35: AVW1 VW active | C35: 0.032 | D35: 0.0004 | E35: 250 | G35: 1
A36: 35 | B36: AVW100 Temp | C36: 0.0004 | D36: 0.0004 | E36: 86400000 | G36: 1
A37: 36 | B37: AVW100 V.W Active | C37: 0.032 | D37: 0.0004 | E37: 250 | G37: 1
A38: 37 | B38: AVW200 * 16 | C38: 0.04 | D38: 0.0003 | E38: 32000 | G38: 1
A39: 38 | B39: AVW200 * 32 | C39: 0.04 | D39: 0.0003 | E39: 64000 | G39: 1
A40: 39 | B40: AVW200 * 4 | C40: 0.04 | D40: 0.0003 | E40: 8000 | G40: 1
A41: 40 | B41: AVW200 * 8 | C41: 0.04 | D41: 0.0003 | E41: 16000 | G41: 1
A42: 41 | B42: AVW200 1 Sensor 2 se | C42: 0.04 | D42: 0.0003 | E42: 2000 | G42: 1
A43: 42 | B43: AVW206 1 sens 8 sec Radio | C43: 0.00075 | D43: 0.00075 | E43: 2000 | G43: 1
A44: 43 | B44: AVW206 2 Sens .5 sec radio | C44: 0.044 | D44: 0.0043 | E44: 4000 | G44: 1
A45: 44 | B45: AVW4 Active | C45: 0.032 | D45: 0 | E45: 250 | G45: 1
A46: 45 | B46: CC5MPX | C46: 0.25 | D46: 0.001 | E46: 90000 | F46: 90 | G46: 1
A47: 46 | B47: CC5MPX Heater | C47: 1.2 | D47: 0 | E47: 0 | F47: 300 | G47: 1
A48: 47 | B48: CC640 | C48: 0.25 | D48: 0.00025 | E48: 30000 | G48: 1
A49: 48 | B49: CD294 Active | C49: 0.0055 | D49: 4e-05 | E49: 0 | F49: 30 | G49: 1
A50: 49 | B50: CDM-VW300 | C50: 0.115 | D50: 0.115 | E50: 86400000 | G50: 1
A51: 50 | B51: CDM-VW305 | C51: 0.19 | D51: 0.19 | E51: 86400000 | G51: 1
A52: 51 | B52: CE4 * 16 (mux) | C52: 0.075 | D52: 0 | E52: 480000 | G52: 1
A53: 52 | B53: CE4 1 sensor | C53: 0.05 | D53: 0 | E53: 30000 | G53: 1
A54: 53 | B54: CE8 1 sensor | C54: 0.05 | D54: 0 | E54: 30000 | G54: 1
A55: 54 | B55: CE8 2 sensors | C55: 0.075 | D55: 0 | E55: 60000 | G55: 1
A56: 55 | B56: CE8*6 | C56: 0.075 | D56: 0 | E56: 180000 | G56: 1
A57: 56 | B57: CFM100 Active | C57: 0.02 | D57: 0.0008 | E57: 20 | F57: 1 | G57: 1
A58: 57 | B58: CH200/PS200 | C58: 0.0004 | D58: 0.0004 | E58: 86400000 | G58: 1
A59: 58 | B59: CMP3 | C59: 0 | D59: 0 | E59: 86400000 | G59: 1
A60: 59 | B60: CNF4 Heater | C60: 0.9 | D60: 0 | E60: 0 | G60: 0.7
A61: 60 | B61: CNR1 Heater | C61: 0.5 | D61: 0 | E61: 86400000 | F61: 30 | G61: 1
A62: 61 | B62: COM210 A | C62: 0.16 | D62: 0.00012 | F62: 30 | G62: 1
A63: 62 | B63: COM220 A | C63: 0.03 | D63: 0.00012 | F63: 300 | G63: 1
A64: 63 | B64: COM310 A | C64: 0.14 | D64: 0.0001 | F64: 30 | G64: 1
A65: 64 | B65: CR1000 | C65: 0.01 | D65: 0.0006 | E65: 250 | G65: 1
A66: 65 | B66: CR1000KD A no light | C66: 0.007 | D66: 0.0001 | E66: 0 | F66: 45 | G66: 1
A67: =A66+1 -> 66 | B67: CR1000KD A w/light | C67: 0.1 | D67: 0.0001 | E67: 0 | F67: 35 | G67: 1
A68: 67 | B68: CR1000KD Active | C68: 0.015 | D68: 0.0001 | E68: 0 | F68: 45 | G68: 1
A69: 68 | B69: CR10KD | C69: 0.005 | D69: 0 | F69: 45 | G69: 1
A70: 69 | B70: CR10X | C70: 0.045 | D70: 0.001 | E70: 45 | G70: 1
A71: 70 | B71: CR200X | C71: 0.003 | D71: 0.0002 | E71: 250 | G71: 1
A72: 71 | B72: CR206 1 Sec Radio | C72: 0.0022 | D72: 0.0022 | E72: 86400000 | G72: 1
A73: 72 | B73: CR206X 8 Sec | C73: 0.003 | D73: 0.00045 | E73: 150 | G73: 1
A74: 73 | B74: CR206X Always on | C74: 0.027 | D74: 0.027 | E74: 86400000000 | G74: 1
A75: 74 | B75: CR216 | C75: 0.003 | D75: 0.0002 | E75: 200 | G75: 1
A76: 75 | B76: CR216 1 sec | C76: 0.004 | D76: 0 | E76: 86400000 | G76: 1
A77: 76 | B77: CR216 8 Sec | C77: 0.0008 | D77: 0 | E77: 86400000 | G77: 1
A78: 77 | B78: CR216 Radio always on | C78: 0.036 | D78: 0 | E78: 86400000 | G78: 1
A79: 78 | B79: CR23X | C79: 0.07 | D79: 0.0014 | E79: 333 | G79: 1
A80: 79 | B80: CR23X Display | C80: 0.005 | D80: 0 | E80: 0 | F80: 45 | G80: 1
A81: 80 | B81: CR23X Measure | C81: 0.07 | D81: 0.002 | E81: 100 | G81: 1
A82: 81 | B82: CR23X Processing | C82: 0.045 | D82: 0.002 | E82: 100 | G82: 1
A83: 82 | B83: CR3000 | C83: 0.015 | D83: 0.002 | E83: 100 | G83: 1
A84: 83 | B84: CR5000 | C84: 0.2 | D84: 0.0015 | E84: 64000 | G84: 1
A85: 84 | B85: CR5000 Card Active | C85: 0.263 | D85: 0.063 | E85: 50 | G85: 1
A86: 85 | B86: CR510 (use CR10X) | C86: 0.0015 | D86: 0.0015 | E86: 86400000 | G86: 1
A87: 86 | B87: CR6 | C87: 0.1 | D87: 0.06 | G87: 0.5
A88: 87 | B88: CR850 Light | C88: 0.04 | D88: 0 | E88: 0 | F88: 35 | G88: 1
A89: 88 | B89: CR8XX | C89: 0.01 | D89: 0.0006 | E89: 100 | G89: 1
A90: 89 | B90: CR9000X/9041/9011/9032 | C90: 0.485 | D90: 0.41 | E90: 86400000 | G90: 1
A91: 90 | B91: CR9050 | C91: 0.015 | D91: 0 | E91: 86400000 | G91: 1
A92: 91 | B92: CR9051 | C92: 0.015 | D92: 0 | E92: 86400000 | G92: 1
A93: 92 | B93: CR9052DC | C93: 0.5 | D93: 0.005 | E93: 86400000 | G93: 1
A94: 93 | B94: CR9052IEPE | C94: 0.84 | D94: 0.005 | E94: 86400000 | G94: 1
A95: 94 | B95: CR9055 | C95: 0.015 | D95: 0 | E95: 86400000 | G95: 1
A96: 95 | B96: CR9055E | C96: 0.015 | D96: 0 | E96: 86400000 | G96: 1
A97: 96 | B97: CR9058E | C97: 0.36 | D97: 0.005 | E97: 86400000 | G97: 1
A98: 97 | B98: CR9060 | C98: 0.125 | D98: 0.108 | E98: 86400000 | G98: 1
A99: 98 | B99: CR9071 | C99: 0.025 | D99: 0.025 | E99: 86400000 | G99: 1
A100: 99 | B100: CRX000 RS232 | C100: 0.02 | D100: 0 | E100: 200 | G100: 1
A101: 100 | B101: CS100 A | C101: 0.003 | D101: 1e-06 | E101: 0 | F101: 45 | G101: 1
A102: 101 | B102: CS106 Active | C102: 0.004 | D102: 1e-06 | E102: 10 | G102: 1
A103: 102 | B103: CS110 1 sec scan | C103: 0.06 | D103: 0.06 | E103: 86400000 | G103: 1
A104: 103 | B104: CS110 select scan | C104: 0.75 | D104: 0.0006 | E104: 79 | G104: 1
A105: 104 | B105: CS115A | C105: 0.008 | D105: 1e-06 | E105: 2 | G105: 1
A106: 105 | B106: CS120 | C106: 0.1 | D106: 0.008 | E106: 86400000 | G106: 1
A107: 106 | B107: CS120 Dew Heaters | C107: 0.08 | D107: 0 | E107: 0 | F107: 600 | G107: 1
A108: 107 | B108: CS210 | C108: 0.0005 | D108: 0.0005 | E108: 864000 | G108: 1
A109: 108 | B109: CS215-L A | C109: 0.0017 | D109: 7e-05 | E109: 150 | G109: 1
A110: 109 | B110: CS215-L*25 | C110: 0.0425 | D110: 0.00175 | E110: 15000 | G110: 1
A111: 110 | B111: CS300-L | C111: 0 | D111: 0 | E111: 86400000 | G111: 1
A112: 111 | B112: CS400-L | C112: 0.0005 | D112: 0 | E112: 10 | G112: 1
A113: 112 | B113: CS405-L | C113: 0.22222 | D113: 0 | E113: 86400000 | G113: 1
A114: 113 | B114: CS408-L | C114: 0.22222 | D114: 0 | E114: 86400000 | G114: 1
A115: 114 | B115: CS410-L | C115: 0.22222 | D115: 0 | E115: 86400000 | G115: 1
A116: 115 | B116: CS420-L | C116: 0.22222 | D116: 0 | E116: 86400000 | G116: 1
A117: 116 | B117: CS425-L | C117: 0.22222 | D117: 0 | E117: 86400000 | G117: 1
A118: 117 | B118: CS431-L | C118: 0.0002 | D118: 0 | E118: 10 | G118: 1
A119: 118 | B119: CS440-L | C119: 0.22222 | D119: 0 | E119: 86400000 | G119: 1
A120: 119 | B120: CS445-L | C120: 0.02 | D120: 0 | E120: 86400000 | G120: 1
A121: 120 | B121: CS450-L 1 SEC Measure | C121: 0.04 | D121: 0.04 | E121: 86400000 | G121: 1
A122: 121 | B122: CS450-L/451-L | C122: 0.002 | D122: 8e-05 | E122: 86400000 | G122: 1
A123: 122 | B123: CS455-L/456-L | C123: 0.002 | D123: 8e-05 | E123: 86400000 | G123: 1
A124: 123 | B124: CS475/476/477 | C124: 0.014 | D124: 0.0047 | E124: 180000 | G124: 1
A125: 124 | B125: CS525-L | C125: 0.002 | D125: 0.002 | E125: 86400000 | G125: 1
A126: 125 | B126: CS547A-L | C126: 0.0025 | D126: 0 | E126: 86400000 | G126: 1
A127: 126 | B127: CS616-L Active | C127: 0.065 | D127: 4.5e-05 | E127: 50 | G127: 1
A128: 127 | B128: CS616-L*4*Mux16 | C128: 0.065 | D128: 4.5e-05 | E128: 3200 | G128: 1
A129: 128 | B129: CS625-L Active | C129: 0.065 | D129: 4.5e-05 | E129: 50 | G129: 1
A130: 129 | B130: CS650-L * 5 | C130: 0.00075 | D130: 0.000675 | E130: 0 | F130: 60 | G130: 1
A131: =A130+1 -> 130 | B131: CS650-L/CS655-L | C131: 0.00015 | D131: 0.000135 | E131: 0 | F131: 60 | G131: 1
A132: 131 | B132: CS700-L | C132: 1e-05 | D132: 1e-05 | E132: 86400000 | G132: 1
A133: 132 | B133: CS725 | C133: 0.18 | D133: 0.18 | E133: 86400000 | G133: 1
A134: 133 | B134: CS7500 | C134: 0.85 | D134: 0.85 | E134: 86400000 | G134: 1
A135: 134 | B135: CSAT3 | C135: 0.067 | D135: 0.067 | E135: 86400000 | G135: 1
A136: 135 | B136: CSAT3 20 Hz | C136: 0.1 | D136: 0.1 | E136: 86400000 | G136: 1
A137: 136 | B137: CSAT3 60 Hz | C137: 0.2 | D137: 0.2 | E137: 86400000 | G137: 1
A138: 137 | B138: CSD3 | C138: 0.01 | D138: 0.01 | G138: 1
A139: 138 | B139: CSD3 1 watt heater | C139: 0.111 | D139: 0.0083 | F139: 300
A140: 139 | B140: CSD3 10 watt | C140: 1.111 | D140: 0.0083 | F140: 300
A141: 140 | B141: CSIM11 | C141: 0 | D141: 0 | E141: 86400000 | G141: 1
A142: 141 | B142: CURS100 | C142: 0.02 | D142: 0.004 | E142: 15 | G142: 1
A143: 142 | B143: CVF4 Fan 5 watts | C143: 0.425 | D143: 0.425 | G143: 1
A144: 143 | B144: CVF4 Heater 5.5 watts | C144: 0.47 | D144: 0 | F144: 900
A145: 144 | B145: DCDC18R | C145: 0.004 | D145: 0.004 | E145: 86400000 | G145: 1
A146: 145 | B146: DSP4 | C146: 0.22222 | D146: 0.22222 | E146: 86400000 | G146: 1
A147: 146 | B147: EasyAg II | C147: 0.1 | D147: 0.00025 | E147: 30000 | G147: 1
A148: 147 | B148: EC150 Preliminary | C148: 0.5 | D148: 0.5 | E148: 86400000 | G148: 1
A149: 148 | B149: EKO STR-21G Sun Tracker | C149: 0.833 | D149: 0.833 | G149: 1
A150: 149 | B150: ET107 w/o RS232 | C150: 0.016 | D150: 0.001 | E150: 200 | G150: 1
A151: 150 | B151: ET107 w/RS232 | C151: 0.028 | D151: 0.016 | E151: 200 | G151: 1
A152: 151 | B152: Ethernet Switch | C152: 0.26 | D152: 0.26 | E152: 86400000 | G152: 1
A153: 152 | B153: FC100 Fiber Optic converter | C153: 0.005 | D153: 0 | E153: 8640000 | G153: 1
A154: 153 | B154: Galaxy Modem | C154: 0.37 | D154: 0 | E154: 0 | F154: 0 | G154: 0.1
A155: 154 | B155: Geonor Precip | C155: 0.05 | D155: 0.05 | E155: 86400000 | G155: 1
A156: 155 | B156: GPS16-HVS | C156: 0.065 | D156: 0.065 | E156: 0 | F156: 10 | G156: 1
A157: 156 | B157: GSM CELL PHONE | C157: 0.12 | D157: 0 | E157: 86400000 | G157: 1
A158: 157 | B158: HC2S3-L | C158: 0.002 | D158: 0.0002 | E158: 60000 | G158: 1
A159: 158 | B159: HFP01-L | C159: 0 | D159: 0 | E159: 86400000 | G159: 1
A160: 159 | B160: HFP01SC | C160: 0.02 | D160: 0 | E160: 2 | G160: 1
A161: 160 | B161: HMP155A-L 2 second | C161: 0.003 | D161: 0 | E161: 2100 | G161: 1
A162: 161 | B162: HMP155A-L always on | C162: 0.003 | D162: 0.003 | E162: 86400000 | G162: 1
A163: 162 | B163: HMP45C-L | C163: 0.004 | D163: 0 | E163: 175 | G163: 1
A164: 163 | B164: HMP45C-L Continuous | C164: 0.004 | D164: 0.004 | E164: 86400000 | G164: 1
A165: 164 | B165: HMP50-L | C165: 0.002 | D165: 0 | E165: 200 | G165: 1
A166: 165 | B166: Hydro Wiper D | C166: 0.09 | D166: 5e-06 | E166: 10000 | F166: 10 | G166: 1
A167: 166 | B167: KH20 | C167: 0.015 | D167: 0.015 | E167: 86400000 | G167: 1
A168: 167 | B168: LI190SB-L | C168: 0 | D168: 0 | E168: 86400000 | G168: 1
A169: 168 | B169: LI200X-L | C169: 0 | D169: 0 | E169: 86400000 | G169: 1
A170: 169 | B170: LI7500 | C170: 0.85 | D170: 0.85 | E170: 86400000 | G170: 1
A171: 170 | B171: LLAC4 | C171: 0.0001 | D171: 0.0001 | E171: 86400000 | G171: 1
A172: 171 | B172: Load 1 Amp | C172: 1 | D172: 1 | G172: 1
A173: 172 | B173: Load1 500 mA | C173: 0.5 | D173: 0.5 | G173: 1
A174: 173 | B174: LP02-L | C174: 0 | D174: 0 | G174: 1
A175: 174 | B175: LT420 Analog Level Transmitter | C175: 0.02 | D175: 0.004 | E175: 50 | G175: 1
A176: 175 | B176: LWS-L | C176: 0.0025 | D176: 0 | E176: 10
A177: 176 | B177: mA 1 | C177: 0.001 | D177: 0.001 | G177: 1
A178: 177 | B178: mA 10 | C178: 0.01 | D178: 0.01 | G178: 1
A179: 178 | B179: mA 100 | C179: 0.1 | D179: 0.1 | G179: 1
A180: 179 | B180: mA 2 | C180: 0.002 | D180: 0.002 | G180: 1
A181: 180 | B181: mA 20 | C181: 0.02 | D181: 0.02 | G181: 1
A182: 181 | B182: mA 250 | C182: 0.25 | D182: 0.25 | F182: 3600
A183: 182 | B183: mA 5 | C183: 0.005 | D183: 0.005 | G183: 1
A184: 183 | B184: mA 50 | C184: 0.05 | D184: 0.05 | G184: 1
A185: 184 | B185: MD485 | C185: 0.002 | D185: 0.0012 | E185: 200 | G185: 1
A186: 185 | B186: MD485 Transmit | C186: 0.007 | D186: 0.0012 | E186: 0 | F186: 10 | G186: 1
A187: 186 | B187: MorningStar | C187: 0.01 | D187: 0.01 | E187: 86400000 | G187: 1
A188: 187 | B188: Nano | C188: 0.166 | D188: 0.1 | E188: 10000 | G188: 1
A189: 188 | B189: NL100 | C189: 0.14 | D189: 0.14 | E189: 86400000 | F189: 6 | G189: 1
A190: 189 | B190: NL115 Card | C190: 0.023 | D190: 0.02 | E190: 86400000 | F190: 2 | G190: 1
A191: 190 | B191: NL115 Ethernet | C191: 0.02 | D191: 0.02 | E191: 86400000 | F191: 6 | G191: 1
A192: 191 | B192: NL115 Ethernet Sleep | C192: 0.02 | D192: 0.002 | E192: 86400000 | G192: 1
A193: 192 | B193: NL120 | C193: 0.02 | D193: 0.02 | E193: 86400000 | G193: 1
A194: 193 | B194: NL200 Always On | C194: 0.05 | D194: 0.002 | E194: 86400000 | G194: 1
A195: =A194+1 -> 194 | B195: NL200 IPNetPower | C195: 0.05 | D195: 0.002 | E195: 0 | F195: 300 | G195: 1
A196: 195 | B196: NL201 Always on | C196: 0.05 | D196: 0.05 | G196: 1
A197: 196 | B197: NL240 | C197: 0.056 | D197: 0.05 | E197: 86400000 | G197: 1
A198: 197 | B198: NL240 Low Power mode | C198: 0.04 | D198: 0.0061 | E198: 86400000 | G198: 1
A199: 198 | B199: NP1 | C199: 1 | D199: 2 | E199: 3 | F199: 4 | G199: 0.05
A200: 199 | B200: NP2 | C200: 2 | D200: 3 | E200: 4 | F200: 5 | G200: 0.06
... 801 more rows

Sheet Archive
A1: 1 | B1: Device Name | C1: Average Active Current (Amps) | D1: Average Quiescent Current (Amps) | E1: mS Active/Scan Interval | F1: Seconds/Comm Interval | G1: Duty Cycle
A2: =A1+1 -> 2 | I2: Leave this row blank!!
A3: =A2+1 -> 3 | B3: Dataloggers | C3: 1 | D3: 1 | E3: 1 | F3: 1 | G3: 0.01
A4: 4 | B4: -------------------------------- | C4: 0 | D4: 0 | E4: 0 | F4: 0 | G4: 0
A5: 5 | B5: CR216 | C5: 0.003 | D5: 0.0002 | E5: 200 | G5: 1
A6: =A5+1 -> 6 | B6: CR23X | C6: 0.07 | D6: 0.0014 | E6: 333 | G6: 1
A7: 7 | B7: CR23X Display | C7: 0.005 | D7: 0 | E7: 0 | F7: 45 | G7: 1
A8: 8 | B8: CR23X Measure | C8: 0.07 | D8: 0.002 | E8: 100 | G8: 1
A9: 9 | B9: CR23X Processing | C9: 0.045 | D9: 0.002 | E9: 100 | G9: 1
A10: 10 | B10: CR510 (use CR10X) | C10: 0.0015 | D10: 0.0015 | E10: 86400000 | G10: 1
A11: 11
A12: 12 | B12: Sensors | C12: 0 | D12: 0 | E12: 0 | F12: 0 | G12: 0
A13: 13 | B13: -------------------------------- | C13: 0 | D13: 0 | E13: 0 | F13: 0 | G13: 0
A14: 14 | B14: 034A-L | C14: 0.00025 | D14: 0.00025 | E14: 86400000 | G14: 1
A15: 15 | B15: 107-L*93 | C15: 0.001 | D15: 0 | E15: 186 | G15: 1
A16: 16 | B16: CS400-L | C16: 0.0005 | D16: 0 | E16: 10 | G16: 1
A17: 17 | B17: CS405-L | C17: 0.22222 | D17: 0 | E17: 86400000 | G17: 1
A18: 18 | B18: CS408-L | C18: 0.22222 | D18: 0 | E18: 86400000 | G18: 1
A19: 19 | B19: CS420-L | C19: 0.22222 | D19: 0 | E19: 86400000 | G19: 1
A20: 20 | B20: CS425-L | C20: 0.22222 | D20: 0 | E20: 86400000 | G20: 1
A21: 21 | B21: CS431-L | C21: 0.0002 | D21: 0 | E21: 10 | G21: 1
A22: 22 | B22: CS440-L | C22: 0.22222 | D22: 0 | E22: 86400000 | G22: 1
A23: 23 | B23: CS445-L | C23: 0.02 | D23: 0 | E23: 86400000 | G23: 1
A24: 24 | B24: CS525-L | C24: 0.002 | D24: 0.002 | E24: 86400000 | G24: 1
A25: 25 | B25: CS7500 | C25: 0.85 | D25: 0.85 | E25: 86400000 | G25: 1
A26: 26 | B26: HMP45C-L | C26: 0.004 | D26: 0 | E26: 175 | G26: 1
A27: 27 | B27: HMP45C-L Continuous | C27: 0.004 | D27: 0.004 | E27: 86400000 | G27: 1
A28: 28 | B28: LI7500 | C28: 0.85 | D28: 0.85 | E28: 86400000 | G28: 1
A29: 29 | B29: Q7.1-L | C29: 0 | D29: 0 | E29: 86400000 | G29: 1
A30: 30
A31: 31 | B31: Network Peripherals | C31: 0 | D31: 0 | E31: 0 | F31: 0 | G31: 0
A32: 32 | B32: -------------------------------- | C32: 0 | D32: 0 | E32: 0 | F32: 0 | G32: 0
A33: 33
A34: 34 | B34: Peripherals | C34: 0 | D34: 0 | E34: 0 | F34: 0 | G34: 0
A35: 35 | B35: -------------------------------- | C35: 0 | D35: 0 | E35: 0 | F35: 0 | G35: 0
A36: 36 | B36: AVW1 Temp | C36: 0.0004 | D36: 0.0004 | E36: 86400000 | G36: 1
A37: 37 | B37: AVW1 VW active | C37: 0.032 | D37: 0.0004 | E37: 250 | G37: 1
A38: 38 | B38: AVW100 Temp | C38: 0.0004 | D38: 0.0004 | E38: 86400000 | G38: 1
A39: 39 | B39: AVW100 V.W Active | C39: 0.032 | D39: 0.0004 | E39: 250 | G39: 1
A40: 40 | B40: AVW4 Active | C40: 0.032 | D40: 0 | E40: 250 | G40: 1
A41: 41 | B41: CR10KD | C41: 0.005 | D41: 0 | F41: 45 | G41: 1
A42: 42
A43: 43 | B43: Communications | C43: 0 | D43: 0 | E43: 0 | F43: 0 | G43: 0
A44: 44 | B44: -------------------------------- | C44: 0 | D44: 0 | E44: 0 | F44: 0 | G44: 0
A45: 45 | B45: COM210 A | C45: 0.16 | D45: 0.00012 | F45: 30 | G45: 1
A46: 46 | B46: DSP4 | C46: 0.22222 | D46: 0.22222 | E46: 86400000 | G46: 1
A47: 47 | B47: Ethernet Switch | C47: 0.26 | D47: 0.26 | E47: 86400000 | G47: 1
A48: 48 | B48: Galaxy Modem | C48: 0.37 | D48: 0 | E48: 0 | F48: 0 | G48: 0.1
A49: 49 | B49: GSM CELL PHONE | C49: 0.12 | D49: 0 | E49: 86400000 | G49: 1
A50: 50 | B50: Raven100 | C50: 0.2 | D50: 0.0001 | E50: 0 | F50: 300 | G50: 1
A51: 51 | B51: REDWING100 T & R | C51: 0.12 | D51: 0.02 | E51: 0 | F51: 30 | G51: 1
A52: 52 | B52: RF95A | C52: 0.22222 | D52: 0.222 | E52: 86400000 | F52: 5 | G52: 1
A53: 53 | B53: RF95T | C53: 0.22222 | D53: 0.222 | E53: 86400000 | F53: 5 | G53: 1
A54: 54 | B54: SAT HDR GOES | C54: 0.22222 | D54: 0.222 | E54: 86400000 | F54: 15 | G54: 1
A55: 55 | B55: SM16M | C55: 0.22222 | D55: 0.222 | E55: 86400000 | G55: 1
A56: 56 | B56: SM4M | C56: 0.22222 | D56: 0.222 | E56: 86400000 | G56: 1
A57: 57
A58: 58 | B58: Cameras | C58: 0 | D58: 0 | E58: 0 | F58: 0 | G58: 0
A59: 59 | B59: -------------------------------- | C59: 0 | D59: 0 | E59: 0 | F59: 0 | G59: 0
A60: 60 | B60: CC640 | C60: 0.25 | D60: 0.00025 | E60: 30000 | G60: 1
A61: 61
A62: =A61+1 -> 62 | B62: Other | C62: 0 | D62: 0 | E62: 0 | F62: 0 | G62: 0
A63: 63 | B63: -------------------------------- | C63: 0 | D63: 0 | E63: 0 | F63: 0 | G63: 0
A64: 64
A65: 65
A66: 66
A67: 67
A68: 68
A69: 69
A70: 70
A71: 71
A72: 72
A73: 73
A74: 74
A75: 75
A76: 76
A77: 77
A78: 78
A79: 79
A80: 80
A81: 81
A82: 82
A83: 83
A84: 84
A85: 85
A86: 86
A87: 87
A88: 88
A89: 89
A90: 90
A91: 91
A92: 92
A93: 93
A94: 94
A95: 95
A96: 96
A97: 97
A98: 98
A99: 99
A100: 100
A101: 101
A102: 102
A103: 103
A104: 104
A105: 105
A106: 106
A107: 107
A108: 108
A109: 109
A110: 110
A111: 111
A112: 112
A113: 113
A114: 114
A115: 115
A116: 116
A117: 117
A118: 118
A119: 119
A120: 120
A121: 121
A122: 122
A123: 123
A124: 124
A125: 125
A126: =A125+1 -> 126
A127: 127
A128: 128
A129: 129
A130: 130
A131: 131
A132: 132
A133: 133
A134: 134
A135: 135
A136: 136
A137: 137
A138: 138
A139: 139
A140: 140
A141: 141
A142: 142
A143: 143
A144: 144
A145: 145
A146: 146
A147: 147
A148: 148
A149: 149
A150: 150
A151: 151
A152: 152
A153: 153
A154: 154
A155: 155
A156: 156
A157: 157
A158: 158
A159: 159
A160: 160
A161: 161
A162: 162
A163: 163
A164: 164
A165: 165
A166: 166
A167: 167
A168: 168
A169: 169
A170: 170
A171: 171
A172: 172
A173: 173
A174: 174
A175: 175
A176: 176
A177: 177
A178: 178
A179: 179
A180: 180
A181: 181
A182: 182
A183: 183
A184: 184
A185: 185
A186: 186
A187: 187
A188: 188
A189: 189
A190: =A189+1 -> 190
A191: 191
A192: 192
A193: 193
A194: 194
A195: 195
A196: 196
A197: 197
A198: 198
A199: 199
A200: 200
... 300 more rows

Sheet Batteries
B1: Battery Name | C1: Amp Hours
A2: 1 | B2: 1250Ah | C2: 1250 | F2: 1500 Ah | G2: 1500
A3: =A2+1 -> 2 | B3: 5x200 ah | C3: 1000 | F3: 800 Ah | G3: 800 | N3: 1500 Ah | O3: 1500
A4: =A3+1 -> 3 | B4: 675 Ah | C4: 675 | F4: 675 Ah | G4: 675 | N4: 1250Ah | O4: 1250
A5: 4 | B5: 500 Ah | C5: 500 | F5: 500 Ah | G5: 500 | N5: 675 Ah | O5: 675
A6: 5 | B6: 400 Ah | C6: 400 | F6: 400 Ah | G6: 400 | N6: 500 Ah | O6: 500
A7: 6 | B7: 400ah | C7: 400 | F7: 300 Ah | G7: 300 | N7: 400 Ah | O7: 400
A8: 7 | B8: BP84 * 4 | C8: 336 | F8: 200 Ah | G8: 200 | N8: 300 Ah | O8: 300
A9: 8 | B9: 300 Ah | C9: 300 | F9: 175 Ah | G9: 175 | N9: 200 Ah | O9: 200
A10: 9 | B10: 200 Ah | C10: 200 | F10: 150 Ah | G10: 150 | N10: 175 Ah | O10: 175
A11: 10 | B11: 175 Ah | C11: 175 | F11: 125 Ah | G11: 125 | N11: 150 Ah | O11: 150
A12: 11 | B12: 150 Ah | C12: 150 | F12: 100 Ah | G12: 100 | N12: 125 Ah | O12: 125
A13: 12 | B13: 125 Ah | C13: 125 | F13: BP84 | G13: 84 | N13: 100 Ah | O13: 100
A14: 13 | B14: 100 Ah | C14: 100 | F14: 60 Ah | G14: 60 | N14: BP84 | O14: 84
A15: 14 | B15: BP84 | C15: 84 | F15: BP24 | G15: 24 | N15: 60 Ah | O15: 60
A16: 15 | B16: 60 Ah | C16: 60 | F16: 17 Ah | G16: 17 | N16: BP24 | O16: 24
A17: 16 | B17: BP24 | C17: 24 | F17: BP12 | G17: 12 | N17: 17 Ah | O17: 17
A18: 17 | B18: 17 Ah | C18: 17 | F18: D Alk*8 | G18: 7.5 | N18: BP12 | O18: 12
A19: 18 | B19: BP12 | C19: 12 | F19: PS100 | G19: 7 | N19: D Alk*8 | O19: 7.5
A20: 19 | B20: D Alk*8 | C20: 7.5 | F20: AA * 8 | G20: 1.7 | N20: PS100 | O20: 7
A21: 20 | B21: PS100 | C21: 7 | F21: WH 0.8 | G21: 0.8 | N21: AA * 8 | O21: 1.7
A22: 21 | B22: AA * 8 | C22: 1.7 | N22: WH 0.8 | O22: 0.8
A23: 22 | B23: W Hawk 0.8 | C23: 0.8 | N23: No Battery | O23: 0
A24: 23 | B24: No Battery | C24: 0.0001
A25: 24
A26: 25
A27: 26
A28: 27
A29: 28
A30: 29
A31: 30
A32: 31
A33: 32
A34: 33
A35: 34
A36: 35
A37: 36
A38: 37
A39: 38
A40: 39
A41: 40
A42: 41
A43: 42
A44: 43
A45: 44
A46: 45
A47: 46
A48: 47
A49: 48
A50: 49
A51: 50
A52: 51
A53: 52
A54: 53
A55: 54
A56: 55
A57: 56
A58: 57
A59: 58
A60: 59
A61: 60
A62: 61
A63: 62
A64: 63
A65: 64
A66: 65
A67: 66
A68: =A67+1 -> 67
A69: 68
A70: 69
A71: 70
A72: 71
A73: 72
A74: 73
A75: 74
A76: 75
A77: 76
A78: 77
A79: 78
A80: 79
A81: 80
A82: 81
A83: 82
A84: 83
A85: 84
A86: 85
A87: 86
A88: 87
A89: 88
A90: 89
A91: 90
A92: 91
A93: 92
A94: 93
A95: 94
A96: 95
A97: 96
A98: 97
A99: 98
A100: 99
A101: =A100+1 -> 100

Sheet SolarPanels
B1: solar panels | C1: Watts | D1: Volts | E1: Amps | F1: S.Panel need | G1: Efficiency
A2: 1 | B2: Solar 1000 Watt | C2: 1000 | D2: 18 | E2: 55.56 | F2: =Defaults!$L$19/SolarPanels!E2 -> 0.08191064935 | G2: 0.98 | I2: 14014 AC | J2: 1.3 | K2: =Defaults!$L$19/SolarPanels!J2 -> 3.500735137
A3: =A2+1 -> 2 | B3: Solar 500 | C3: 500 | D3: 18 | E3: 27.78 | F3: =Defaults!$L$19/SolarPanels!E3 -> 0.1638212987 | G3: 0.95 | I3: One Watt | J3: 0.05882 | K3: =Defaults!$L$19/SolarPanels!J3 -> 77.37088878 | N3: 800Solar | O3: =800/17 -> 47.05882353
A4: =A3+1 -> 3 | B4: Solar 90 * 4 | C4: 360 | D4: 18 | E4: 20 | F4: =Defaults!$L$19/SolarPanels!E4 -> 0.2275477839 | G4: 0.9 | I4: 2000Solar | J4: =2000/17 -> 117.6470588 | K4: =Defaults!$L$19/SolarPanels!J4 -> 0.03868312326
A5: 4 | B5: Solar 300 watt | C5: 300 | D5: 18 | E5: 16.67 | F5: =Defaults!$L$19/SolarPanels!E5 -> 0.2730027401 | G5: 0.85 | I5: 1000Solar | J5: =1000/17 -> 58.82352941 | K5: =Defaults!$L$19/SolarPanels!J5 -> 0.07736624652
A6: 5 | B6: 2x140 | C6: 280 | D6: 18 | E6: 15.56 | F6: =Defaults!$L$19/SolarPanels!E6 -> 0.2924778713 | G6: 0.8 | I6: 800Solar | J6: =800/17 -> 47.05882353 | K6: =Defaults!$L$19/SolarPanels!J6 -> 0.09670780815
A7: 6 | B7: SP200 | C7: 200 | D7: 18 | E7: 11.11 | F7: =Defaults!$L$19/SolarPanels!E7 -> 0.4096269737 | G7: 0.75 | I7: 240 Solar | J7: 16.12 | K7: =Defaults!$L$19/SolarPanels!J7 -> 0.2823173497
A8: 7 | B8: SP90 | C8: 86 | D8: 18 | E8: 4.8 | F8: =Defaults!$L$19/SolarPanels!E8 -> 0.9481157662 | G8: 0.7 | I8: 235Solar | J8: =235/13.2 -> 17.8030303 | K8: =Defaults!$L$19/SolarPanels!J8 -> 0.2556281487
A9: 8 | B9: SP50 | C9: 50 | D9: 18 | E9: 2.78 | F9: =Defaults!$L$19/SolarPanels!E9 -> 1.637034416 | I9: 170Solar | J9: 10 | K9: =Defaults!$L$19/SolarPanels!J9 -> 0.4550955678
A10: 9 | B10: 45 Watt | C10: 45 | D10: 18 | E10: 2.5 | F10: =Defaults!$L$19/SolarPanels!E10 -> 1.820382271 | I10: 140Solar | J10: 8.2 | K10: =Defaults!$L$19/SolarPanels!J10 -> 0.5549945948
A11: 10 | B11: SP20 | C11: 20 | D11: 18 | E11: 1.11 | F11: =Defaults!$L$19/SolarPanels!E11 -> 4.09996007 | I11: MSX128 | J11: 7.32 | K11: =Defaults!$L$19/SolarPanels!J11 -> 0.6217152565
A12: 11 | B12: 15 Watt | C12: 15 | D12: 18 | E12: 0.83 | F12: =Defaults!$L$19/SolarPanels!E12 -> 5.48307913 | I12: SP85 | J12: 5 | K12: =Defaults!$L$19/SolarPanels!J12 -> 0.9101911355 | O12: SP5 | P12: 4.5 | Q12: 16.5 | R12: 0.27
A13: 12 | B13: SP10 | C13: 10 | D13: 18 | E13: 0.56 | F13: =Defaults!$L$19/SolarPanels!E13 -> 8.126706567 | I13: SP70 | J13: 4.1 | K13: =Defaults!$L$19/SolarPanels!J13 -> 1.10998919 | O13: None | P13: 0 | Q13: 0 | R13: 1e-05
A14: 13 | B14: SP5 | C14: 4.5 | D14: 18 | E14: 0.25 | F14: =Defaults!$L$19/SolarPanels!E14 -> 18.20382271 | I14: SP64 | J14: 3.66 | K14: =Defaults!$L$19/SolarPanels!J14 -> 1.243430513
A15: 14 | B15: None | C15: 1e-07 | D15: 18 | E15: 5.555555556e-09 | F15: =Defaults!$L$19/SolarPanels!E15 -> 819172022 | I15: SP50 | J15: 2.9 | K15: =Defaults!$L$19/SolarPanels!J15 -> 1.569295061
A16: 15 | F16: =Defaults!$L$19/SolarPanels!E16 ->  | I16: MSX30 | J16: 1.8 | K16: =Defaults!$L$19/SolarPanels!J16 -> 2.52830871 | O16: SP90 | P16: 90 | Q16: 17.9 | R16: 5.03
A17: 16 | F17: =Defaults!$L$19/SolarPanels!E17 ->  | I17: SP20 | J17: 1.17 | K17: =Defaults!$L$19/SolarPanels!J17 -> 3.889705707 | O17: SP50 | P17: 50 | Q17: 17.5 | R17: 2.9
A18: 17 | F18: =Defaults!$L$19/SolarPanels!E18 ->  | I18: SP10 | J18: 0.57 | K18: =Defaults!$L$19/SolarPanels!J18 -> 7.984132768
A19: 18 | F19: =Defaults!$L$19/SolarPanels!E19 ->  | I19: SP5 | J19: 0.288 | K19: =Defaults!$L$19/SolarPanels!J19 -> 15.80192944
A20: 19 | F20: =Defaults!$L$19/SolarPanels!E20 ->  | I20: SP1.6 | J20: 0.1 | K20: =Defaults!$L$19/SolarPanels!J20 -> 45.50955678
A21: 20 | F21: =Defaults!$L$19/SolarPanels!E21 ->  | I21: None | J21: 1e-05 | K21: =Defaults!$L$19/SolarPanels!J21 -> 455095.5678
A22: 21 | F22: =Defaults!$L$19/SolarPanels!E22 -> 
A23: 22 | F23: =Defaults!$L$19/SolarPanels!E23 -> 
A24: 23 | F24: =Defaults!$L$19/SolarPanels!E24 -> 
A25: 24 | F25: =Defaults!$L$19/SolarPanels!E25 -> 
A26: 25 | F26: =Defaults!$L$19/SolarPanels!E26 -> 
A27: 26 | F27: =Defaults!$L$19/SolarPanels!E27 -> 
A28: 27 | F28: =Defaults!$L$19/SolarPanels!E28 -> 
A29: 28 | F29: =Defaults!$L$19/SolarPanels!E29 -> 
A30: 29 | F30: =Defaults!$L$19/SolarPanels!E30 -> 
A31: 30 | F31: =Defaults!$L$19/SolarPanels!E31 -> 
A32: 31 | F32: =Defaults!$L$19/SolarPanels!E32 -> 
A33: 32 | F33: =Defaults!$L$19/SolarPanels!E33 -> 
A34: 33 | F34: =Defaults!$L$19/SolarPanels!E34 -> 
A35: 34 | F35: =Defaults!$L$19/SolarPanels!E35 -> 
A36: 35 | F36: =Defaults!$L$19/SolarPanels!E36 -> 
A37: 36 | F37: =Defaults!$L$19/SolarPanels!E37 -> 
A38: 37 | F38: =Defaults!$L$19/SolarPanels!E38 -> 
A39: 38 | F39: =Defaults!$L$19/SolarPanels!E39 -> 
A40: 39 | F40: =Defaults!$L$19/SolarPanels!E40 -> 
A41: 40 | F41: =Defaults!$L$19/SolarPanels!E41 -> 
A42: 41 | F42: =Defaults!$L$19/SolarPanels!E42 -> 
A43: 42 | F43: =Defaults!$L$19/SolarPanels!E43 -> 
A44: 43 | F44: =Defaults!$L$19/SolarPanels!E44 -> 
A45: 44 | F45: =Defaults!$L$19/SolarPanels!E45 -> 
A46: 45 | F46: =Defaults!$L$19/SolarPanels!E46 -> 
A47: 46 | F47: =Defaults!$L$19/SolarPanels!E47 -> 
A48: 47 | F48: =Defaults!$L$19/SolarPanels!E48 -> 
A49: 48 | F49: =Defaults!$L$19/SolarPanels!E49 -> 
A50: 49 | F50: =Defaults!$L$19/SolarPanels!E50 -> 
A51: 50 | F51: =Defaults!$L$19/SolarPanels!E51 -> 
A52: 51 | F52: =Defaults!$L$19/SolarPanels!E52 -> 
A53: 52 | F53: =Defaults!$L$19/SolarPanels!E53 -> 
A54: 53 | F54: =Defaults!$L$19/SolarPanels!E54 -> 
A55: 54 | F55: =Defaults!$L$19/SolarPanels!E55 -> 
A56: 55 | F56: =Defaults!$L$19/SolarPanels!E56 -> 
A57: 56 | F57: =Defaults!$L$19/SolarPanels!E57 -> 
A58: 57 | F58: =Defaults!$L$19/SolarPanels!E58 -> 
A59: 58 | F59: =Defaults!$L$19/SolarPanels!E59 -> 
A60: 59 | F60: =Defaults!$L$19/SolarPanels!E60 -> 
A61: 60 | F61: =Defaults!$L$19/SolarPanels!E61 -> 
A62: 61 | F62: =Defaults!$L$19/SolarPanels!E62 -> 
A63: 62 | F63: =Defaults!$L$19/SolarPanels!E63 -> 
A64: 63 | F64: =Defaults!$L$19/SolarPanels!E64 -> 
A65: 64 | F65: =Defaults!$L$19/SolarPanels!E65 -> 
A66: 65 | F66: =Defaults!$L$19/SolarPanels!E66 -> 
A67: 66 | F67: =Defaults!$L$19/SolarPanels!E67 -> 
A68: =A67+1 -> 67 | F68: =Defaults!$L$19/SolarPanels!E68 -> 
A69: 68 | F69: =Defaults!$L$19/SolarPanels!E69 -> 
A70: 69 | F70: =Defaults!$L$19/SolarPanels!E70 -> 
A71: 70 | F71: =Defaults!$L$19/SolarPanels!E71 -> 
A72: 71 | F72: =Defaults!$L$19/SolarPanels!E72 -> 
A73: 72 | F73: =Defaults!$L$19/SolarPanels!E73 -> 
A74: 73 | F74: =Defaults!$L$19/SolarPanels!E74 -> 
A75: 74 | F75: =Defaults!$L$19/SolarPanels!E75 -> 
A76: 75 | F76: =Defaults!$L$19/SolarPanels!E76 -> 
A77: 76 | F77: =Defaults!$L$19/SolarPanels!E77 -> 
A78: 77 | F78: =Defaults!$L$19/SolarPanels!E78 -> 
A79: 78 | F79: =Defaults!$L$19/SolarPanels!E79 -> 
A80: 79 | F80: =Defaults!$L$19/SolarPanels!E80 -> 
A81: 80 | F81: =Defaults!$L$19/SolarPanels!E81 -> 
A82: 81 | F82: =Defaults!$L$19/SolarPanels!E82 -> 
A83: 82 | F83: =Defaults!$L$19/SolarPanels!E83 -> 
A84: 83 | F84: =Defaults!$L$19/SolarPanels!E84 -> 
A85: 84 | F85: =Defaults!$L$19/SolarPanels!E85 -> 
A86: 85 | F86: =Defaults!$L$19/SolarPanels!E86 -> 
A87: 86 | F87: =Defaults!$L$19/SolarPanels!E87 -> 
A88: 87 | F88: =Defaults!$L$19/SolarPanels!E88 -> 
A89: 88 | F89: =Defaults!$L$19/SolarPanels!E89 -> 
A90: 89 | F90: =Defaults!$L$19/SolarPanels!E90 -> 
A91: 90 | F91: =Defaults!$L$19/SolarPanels!E91 -> 
A92: 91 | F92: =Defaults!$L$19/SolarPanels!E92 -> 
A93: 92 | F93: =Defaults!$L$19/SolarPanels!E93 -> 
A94: 93 | F94: =Defaults!$L$19/SolarPanels!E94 -> 
A95: 94 | F95: =Defaults!$L$19/SolarPanels!E95 -> 
A96: 95 | F96: =Defaults!$L$19/SolarPanels!E96 -> 
A97: 96 | F97: =Defaults!$L$19/SolarPanels!E97 -> 
A98: 97 | F98: =Defaults!$L$19/SolarPanels!E98 -> 
A99: 98 | F99: =Defaults!$L$19/SolarPanels!E99 -> 
A100: 99 | F100: =Defaults!$L$19/SolarPanels!E100 -> 
A101: 100 | F101: =Defaults!$L$19/SolarPanels!E101 -> 

Sheet Defaults
B1: Value | C1: Units
A2: Device: | B2: CR1000 | J2: System Losses
A3: Scan Interval: | B3: 5 | C3: Seconds
A4: Comm Interval: | B4: 12 | C4: Hours | D4: Previous: | E4: Hours | J4: 5
A5: Battery: | B5: PS100 | J5: =$B$10 -> 0.8 | M5: =LOOKUP(J4,SolarPanels!A2:A8,SolarPanels!G2:G8) -> 0.8
A6: Battery Backup: | B6: 14 | C6: Days
A7: Min Ave Temperature: | B7: 0 | C7: °C | J7: Battery Losses
A8: Equivalent Sun Hours: | B8: 3.5 | C8: Hours
A9: Solar Panel: | B9: SP10 | J9: 5
A10: System Losses: | B10: 0.8 | J10: =$B$11 -> 0.8 | M10: =LOOKUP(J9,SolarPanels!A2:A8,SolarPanels!G2:G8) -> 0.8
A11: Battery Losses: | B11: 0.8
I12: 24 hour total of system, and periodic devices
A13: Solar Panel Volts: | B13: 18 | I13: System | K13: Amp Hours/hr: | L13: =(Calculations!L28*24) -> 2.692648776
I14: Loss factor | L14: 24 hour current w/losses
I15: =2-J5 -> 1.2 | K15: Daily Amp Hours: | L15: =(L13*I15) -> 3.231178531
I17: Peak Sun | J17: Amps | K17: Ahr | L17: Required Amps
I18: Hours | J18: S.Panel | K18: Solar | L18: S.Panel/day
I19: =Calculations!G8 -> 0.71 | J19: =LOOKUP(Calculations!G6,SolarPanels!$A$2:$A$101,SolarPanels!$E$2:$E$101) -> 2.5 | K19: =I19*J19 -> 1.775 | L19: =L15/I19 -> 4.550955678
K20: Hours of sun required from this panel ==> | L20: =L15/J19 -> 1.292471412
J21: Milli-Watts Generated: | K21: =K19*Calculations!L2*1000/24 -> 979.9479167
I22: amount or size of battery | K22: Deep Discharge reserve
I23: reserve time | J23: amps | K23: reserve | L23: battery amp/hr
I24: =Calculations!B8 -> 720 | J24: =L15/24 -> 0.1346324388 | K24: =$J$10 -> 0.8 | L24: =(I24*J24)/K24 -> 121.1691949
I25: =I24/24 -> 30 | J25: <==days of reserve | K25: 0.8 max | L25: =Budget!J14*Calculations!P37 -> 321.4252101
K26: Batteries need | L26: =L24/L25 -> 0.3769747709

Sheet Compare
A5: System Name | B5: Devices | C5: Scan Interval (Seconds) | D5: Communications Interval (Hours) | E5: Lowest Average Temperature (°C) | F5: Battery | G5: Desired Battery Backup (Days) | H5: Estimated Battery Backup (Days) | I5: Equivalent Sun Hours | J5: Solar Panel | K5: Daily Load (Amp Hours) | L5: Daily Solar (Amp Hours)
A6: Uplo_Shelter_noCom | B6: CR1000, 107-L, 107-L, SR50A-L SDI-12, NL115 Ethernet, NL115 Card, CS106 Active, CMP3, LT420 Analog Level Transmitter, CS450-L/451-L, XantrexC35 | C6: 10 | D6: 1 | E6: -3 | F6: 400 Ah | G6: 30 | H6: 119.7671082 | I6: 0.7 | J6: 45 Watt | K6: 2.127746851 | L6: 1.775
A7: Uplo_Shelter_wCom | B7: CR1000, 107-L, 107-L, SR50A-L SDI-12, NL115 Ethernet, NL115 Card, CS106 Active, CMP3, LT420 Analog Level Transmitter, CS450-L/451-L, XantrexC35, Nano | C7: 10 | D7: 1 | E7: -3 | F7: 400 Ah | G7: 30 | H7: 36.88678573 | I7: 0.7 | J7: 45 Watt | K7: 6.908546851 | L7: 1.775
A8: CENT_Shltr | B8: CR1000, 107-L, 107-L, SR50A-L SDI-12, NL115 Ethernet, NL115 Card, CS106 Active, CMP3, LT420 Analog Level Transmitter, CS450-L/451-L, SunSaver20, XTend-NEMA, LT420 Analog Level Transmitter, SA_COM_Signal | C8: 10 | D8: 1 | E8: -2 | F8: 400 Ah | G8: 30 | H8: 48.79117754 | I8: 0.7 | J8: 45 Watt | K8: 5.270218531 | L8: 1.775
A9: CENT_Twr | B9: CR3000, Nano, CSAT3, XantrexC35, NL115 Ethernet, NL115 Card, 05103-L, 107-L, CS616-L Active, CS616-L Active, CS616-L Active, CS616-L Active, HMP50-L, HMP50-L | C9: 10 | D9: 1 | E9: -2 | F9: 675 Ah | G9: 30 | H9: 51.43323015 | I9: 0.7 | J9: SP200 | K9: 8.43664752 | L9: 7.8881
A10: VAN_twr | B10: CR3000, Nano, CSAT3, XantrexC35, NL115 Ethernet, NL115 Card, 05103-L, SR50A-L SDI-12, CS616-L Active, CS616-L Active, CS616-L Active, CS616-L Active, CS450-L/451-L, CMP3 | C10: 10 | D10: 1 | E10: -2 | F10: 5x200 ah | G10: 30 | H10: 73.04930702 | I10: 0.85 | J10: SP200 | K10: 8.80759008 | L10: 9.5546

Sheet Saved
A5: System Name | B5: Devices | C5: Scan Interval (Seconds) | D5: Communications Interval (Hours) | E5: Lowest Average Temperature (°C) | F5: Battery | G5: Desired Battery Backup (Days) | H5: Estimated Battery Backup (Days) | I5: Equivalent Sun Hours | J5: Solar Panel | K5: Daily Load (Amp Hours) | L5: Daily Solar (Amp Hours)
A6: ASP-temp | B6: 43502-L Ventilator, SunSaver20 | C6: 5 | D6: 1 | E6: -2 | F6: 400 Ah | G6: 1 | H6: 17.59045144 | I6: 0.85 | J6: SP90 | K6: 14.6304 | L6: 4.128
A7: CENT_Shltr | B7: CR1000, 107-L, 107-L, SR50A-L SDI-12, NL115 Ethernet, NL115 Card, CS106 Active, CMP3, LT420 Analog Level Transmitter, CS450-L/451-L, SunSaver20, XTend-NEMA, LT420 Analog Level Transmitter, SA_COM_Signal | C7: 10 | D7: 1 | E7: -2 | F7: 400 Ah | G7: 30 | H7: 48.79117754 | I7: 0.7 | J7: 45 Watt | K7: 5.270218531 | L7: 1.775
A8: CENT_Twr | B8: CR3000, Nano, CSAT3, XantrexC35, NL115 Ethernet, NL115 Card, 05103-L, 107-L, CS616-L Active, CS616-L Active, CS616-L Active, CS616-L Active, HMP50-L, HMP50-L | C8: 10 | D8: 1 | E8: -2 | F8: 675 Ah | G8: 30 | H8: 51.43323015 | I8: 0.7 | J8: SP200 | K8: 8.43664752 | L8: 7.8881
A9: Good Reserve Time | B9: CR1000, Load 1 Amp | C9: 5 | D9: 1 | E9: -3 | F9: 400 Ah | G9: 14 | H9: 17.4829205 | I9: 2.5 | J9: SP200 | K9: 14.445216 | L9: 0.1
A10: GRWS100-NoComms | B10: CR1000, 05103-L, TE525WS-L, LI200X-L, HC2S3-L, CS106 Active | C10: 5 | D10: 12 | E10: 0 | F10: PS100 | G10: 14 | H10: 47.6939489 | I10: 3.5 | J10: SP10 | K10: 0.0961631424 | L10: 1.995
A11: Large Load | B11: CR1000, Load 1 Amp, Load 1 Amp, Load 1 Amp, Load 1 Amp, Load 1 Amp | C11: 5 | D11: 12 | E11: -9 | F11: 1250Ah | G11: 365 | H11: 117.0949016 | I11: 0.2 | J11: SP200 | K11: 6.168816 | L11: 0.1
A12: Poor Reserve time | B12: CR1000, Load 1 Amp | C12: 5 | D12: 1 | E12: -3 | F12: BP24 | G12: 1 | H12: 1.04897523 | I12: 2.5 | J12: SP200 | K12: 14.445216 | L12: 0.1
A13: Solar800-NoComms | B13: CR8XX, NL200 IPNetPower, LP02-L, 03001-L/03002-L, 109-L, TE525-L | C13: 5 | D13: 12 | E13: 0 | F13: BP24 | G13: 14 | H13: 161.4699881 | I13: 3.5 | J13: SP20 | K13: 0.09738528 | L13: 4.165
A14: Test | B14: CR1000, 05103-L, TE525WS-L, LI200X-L, HC2S3-L, CS106 Active | C14: 5 | D14: 12 | E14: 22 | F14: PS100 | G14: 14 | H14: 58.23436985 | I14: 4.5 | J14: SP10 | K14: 0.0961631424 | L14: 2.632
A15: Uplo_shltr_noCom | B15: CR1000, 107-L, 107-L, SR50A-L SDI-12, NL115 Ethernet, NL115 Card, CS106 Active, CMP3, LT420 Analog Level Transmitter, CS450-L/451-L, XantrexC35 | C15: 10 | D15: 1 | E15: -2 | F15: 400 Ah | G15: 30 | H15: 120.9520487 | I15: 0.85 | J15: 2x140 | K15: 2.127746851 | L15: 13.3816
A16: Uplo_shltr_wCom | B16: CR1000, 107-L, 107-L, SR50A-L SDI-12, NL115 Ethernet, NL115 Card, CS106 Active, CMP3, LT420 Analog Level Transmitter, CS450-L/451-L, XantrexC35, Nano | C16: 10 | D16: 1 | E16: -2 | F16: 400 Ah | G16: 30 | H16: 37.25173271 | I16: 0.85 | J16: 2x140 | K16: 6.908546851 | L16: 13.3816
A17: Uplo_twr_1com | B17: CR3000, Nano, CSAT3, SA_COM_Signal, NL115 Ethernet, NL115 Card, 05103-L, LT420 Analog Level Transmitter, SunSaver20, CS616-L Active, CS616-L Active, CS616-L Active, CS616-L Active | C17: 10 | D17: 1 | E17: -2 | F17: 675 Ah | G17: 30 | H17: 51.64665907 | I17: 0.85 | J17: SP200 | K17: 8.40881376 | L17: 9.5546
A18: Uplo_twr_2com | B18: CR3000, Nano, CSAT3, SA_COM_Signal, NL115 Ethernet, NL115 Card, 05103-L, LT420 Analog Level Transmitter, SunSaver20, CS616-L Active, CS616-L Active, CS616-L Active, CS616-L Active, Nano | C18: 10 | D18: 1 | E18: -3 | F18: 675 Ah | G18: 30 | H18: 32.60387532 | I18: 0.7 | J18: SP200 | K18: 13.18961376 | L18: 7.8881
A19: VAN_twr | B19: CR3000, Nano, CSAT3, XantrexC35, NL115 Ethernet, NL115 Card, 05103-L, SR50A-L SDI-12, CS616-L Active, CS616-L Active, CS616-L Active, CS616-L Active, CS450-L/451-L, CMP3 | C19: 10 | D19: 1 | E19: -2 | F19: 5x200 ah | G19: 30 | H19: 73.04930702 | I19: 0.85 | J19: SP200 | K19: 8.80759008 | L19: 9.5546
A20: VARA | B20: CR1000, 107-L, 107-L, SR50A-L SDI-12, NL115 Ethernet, NL115 Card, CS450-L/451-L, LT420 Analog Level Transmitter, SunSaver20, Tranzeo | C20: 10 | D20: 1 | E20: -2 | F20: 200 Ah | G20: 30 | H20: 12.39124572 | I20: 0.85 | J20: Solar 300 watt | K20: 10.38456288 | L20: 14.3362

Sheet StationInfo

Sheet BatteryArchive
A2: 1
A3: =A2+1 -> 2
A4: =A3+1 -> 3
A5: 4
A6: 5
A7: =A6+1 -> 6
A8: 7
A9: 8
A10: 9
A11: 10
A12: 11
A13: 12
A14: 13
A15: 14
A16: 15
A17: 16
A18: 17
A19: 18
A20: 19
A21: 20
A22: 21
A23: 22
A24: 23
A25: 24
A26: 25
A27: 26
A28: 27
A29: 28
A30: 29
A31: 30
A32: 31
A33: 32
A34: 33
A35: 34
A36: 35
A37: 36
A38: 37
A39: 38
A40: 39
A41: 40
A42: 41
A43: 42
A44: 43
A45: 44
A46: 45
A47: 46
A48: 47
A49: 48
A50: 49
A51: 50
A52: 51
A53: 52
A54: 53
A55: 54
A56: 55
A57: 56
A58: 57
A59: 58
A60: 59
A61: 60
A62: 61
A63: 62
A64: 63
A65: 64
A66: 65
A67: 66
A68: =A67+1 -> 67
A69: 68
A70: 69
A71: 70
A72: 71
A73: 72
A74: 73
A75: 74
A76: 75
A77: 76
A78: 77
A79: 78
A80: 79
A81: 80
A82: 81
A83: 82
A84: 83
A85: 84
A86: 85
A87: 86
A88: 87
A89: 88
A90: 89
A91: 90
A92: 91
A93: 92
A94: 93
A95: 94
A96: 95
A97: 96
A98: 97
A99: 98
A100: 99
A101: 100
A102: 101
A103: 102
A104: 103
A105: 104
A106: 105
A107: 106
A108: 107
A109: 108
A110: 109
A111: 110
A112: 111
A113: 112
A114: 113
A115: 114
A116: 115
A117: 116
A118: 117
A119: 118
A120: 119
A121: 120
A122: 121
A123: 122
A124: 123
A125: 124
A126: 125
A127: 126
A128: 127
A129: 128
A130: 129
A131: 130
A132: =A131+1 -> 131
A133: 132
A134: 133
A135: 134
A136: 135
A137: 136
A138: 137
A139: 138
A140: 139
A141: 140
A142: 141
A143: 142
A144: 143
A145: 144
A146: 145
A147: 146
A148: 147
A149: 148
A150: 149
A151: 150
A152: 151
A153: 152
A154: 153
A155: 154
A156: 155
A157: 156
A158: 157
A159: 158
A160: 159
A161: 160
A162: 161
A163: 162
A164: 163
A165: 164
A166: 165
A167: 166
A168: 167
A169: 168
A170: 169
A171: 170
A172: 171
A173: 172
A174: 173
A175: 174
A176: 175
A177: 176
A178: 177
A179: 178
A180: 179
A181: 180
A182: 181
A183: 182
A184: 183
A185: 184
A186: 185
A187: 186
A188: 187
A189: 188
A190: 189
A191: 190
A192: 191
A193: 192
A194: 193
A195: 194
A196: =A195+1 -> 195
A197: 196
A198: 197
A199: 198
A200: 199
A201: 200
... 300 more rows

Sheet SolarArchive

Sheet Display
A2: Instructions | B2: 1
A3: Storm Graph | B3: 1
A4: Battery Detail | B4: 1
A5: LocationGraph | B5: 1
A6: Buttons | C6: Position
A7: Add, etc. | B7: 1 | C7: =B7 -> 1
A8: View Specs | B8: 1 | C8: =IF(B8=1,SUM(B7:B8),0) -> 2
A9: Reset | B9: 1 | C9: =IF(B9=1,SUM(B7:B9),0) -> 3
A10: Defaults | B10: 1 | C10: =IF(B10=1,SUM(B7:B10),0) -> 4
A11: Compare | B11: 1 | C11: =IF(B11=1,SUM(B7:B11),0) -> 5
A12: Load/Delete | B12: 1 | C12: =IF(B12=1,SUM(B7:B12),0) -> 6
A13: Print | B13: 1 | C13: =IF(B13=1,SUM(B7:B13),0) -> 7
A14: Total | B14: 1
A17: Printing page: | B17: 1
A20: Admin Options
A21: Full screen | B21: 0
A22: Tabs | B22: 0
A23: Scroll bars | B23: 1
A24: Grid Lines | B24: 0
A25: Formula Bar | B25: 1
A26: Headings | B26: 0
A27: Protection | B27: 0
A32: SolarChartTitle | B32: Solar Input, Load, and Battery Charge
A33: Solar Location | B33: CENT
B34: =B32&CHAR(13)&B33 -> Solar Input, Load, and Battery Charge CENT

Sheet Print-1
D2: Power Budget Spreadsheet
A4: SiteName: | D4: Address: | G4: Prepared By:
A5: Company: | G5: Notes:
A6: Contact:
A7: Phone #
A12: Scan Interval | B12: 10 | C12: Seconds | F12: Devices | G12: CR1000, 107-L, 107-L, SR50A-L SDI-12, NL115 Ethernet, NL115 Card, CS450-L/451-L, LT420 Analog Level Transmitter, SunSaver20, Tranzeo
A14: Communications Interval | B14: 1 | C14: Hours
A16: Lowest Average Temperature | B16: -2 | C16: Temp °C
A18: Battery | B18: 200 Ah
A20: Desired Backup | B20: 30 | C20: Days
A22: Estimated Backup | B22: 12.39124572 | C22: Days
F23: Daily Load | G23: 10.38456288 | H23: Amp Hours
A24: Equivalent Sun Hours | B24: 0.85 | C24: Hours/day
F25: Daily Solar | G25: 4.128 | H25: Amp Hours
A26: Solar Panel | B26: SP90

Sheet Print-2
C2: Power Budget Spreadsheet Comparison
A4: SiteName: | D4: Address: | G4: Prepared By:
A5: Company: | G5: Notes:
A6: Contact:
A7: Phone #
A10: System Name | B10: Devices | C10: Scan Interval (Seconds) | D10: Communications Interval (Hours) | E10: Lowest Average Temperature (°C) | F10: Battery | G10: Desired Battery Backup (Days) | H10: Estimated Battery Backup (Days) | I10: Equivalent Sun Hours | J10: Solar Panel | K10: Daily Load (Amp Hours) | L10: Daily Solar (Amp Hours)
A11: Solar800-NoComms | B11: CR8XX, NL200 IPNetPower, LP02-L, 03001-L/03002-L, 109-L, TE525-L | C11: 5 | D11: 12 | E11: 0 | F11: BP24 | G11: 14 | H11: 161.4699881 | I11: 3.5 | J11: SP20 | K11: 0.09738528 | L11: 4.165
B12: CR1000, CR206 1 Sec Radio, CR216 Radio always on , CR216 8 Sec, CR9051, CR8XX | C12: 1 | D12: 12 | E12: 3 | F12: 60 Ah | G12: 14 | H12: 24.25814584 | I12: 2 | J12: SP20 | K12: 1.684512 | L12: 2.22
